Workbook

Sheet color
A1: 1 | B1: 29 | D1: 1 | E1: =CHAR( 1) ->  | F1: 34 | G1: =CHAR( 34) -> " | H1: 67 | I1: =CHAR( 67) -> C | J1: 100 | K1: =CHAR( 100) -> d | L1: 133 | M1: =CHAR( 133) -> … | N1: 166 | O1: =CHAR( 166) -> ¦ | P1: 199 | Q1: =CHAR( 199) -> Ç | R1: 232 | S1: =CHAR( 232) -> è | T1: POUR VIM : | U1: Accent | V1: Aspect | W1: LaTeX | X1: HTML | Y1: méta | Z1: compose
A2: 2 | B2: 30 | D2: 2 | E2: =CHAR( 2) ->  | F2: 35 | G2: =CHAR( 35) -> # | H2: 68 | I2: =CHAR( 68) -> D | J2: 101 | K2: =CHAR( 101) -> e | L2: 134 | M2: =CHAR( 134) -> † | N2: 167 | O2: =CHAR( 167) -> § | P2: 200 | Q2: =CHAR( 200) -> È | R2: 233 | S2: =CHAR( 233) -> é | T2: =CONCATENATE(":%s/",V2,"/\",W2,"/ge") -> :%s//\/ge | U2: paragraphe | V2:  | X2: &para; | Y2: M-' | Z2: C s o
A3: 3 | B3: 31 | D3: 3 | E3: =CHAR( 3) ->  | F3: 36 | G3: =CHAR( 36) -> $ | H3: 69 | I3: =CHAR( 69) -> E | J3: 102 | K3: =CHAR( 102) -> f | L3: 135 | M3: =CHAR( 135) -> ‡ | N3: 168 | O3: =CHAR( 168) -> ¨ | P3: 201 | Q3: =CHAR( 201) -> É | R3: 234 | S3: =CHAR( 234) -> ê | T3: =CONCATENATE(":%s/",V3,"/\",W3,"/ge") -> :%s/«/\<</ge | U3: guillemet français ouvrant | V3: « | W3: << | X3: &laquo; | Y3: M-+ | Z3: C < <
A4: 4 | B4: 32 | D4: 4 | E4: =CHAR( 4) ->  | F4: 37 | G4: =CHAR( 37) -> % | H4: 70 | I4: =CHAR( 70) -> F | J4: 103 | K4: =CHAR( 103) -> g | L4: 136 | M4: =CHAR( 136) -> ˆ | N4: 169 | O4: =CHAR( 169) -> © | P4: 202 | Q4: =CHAR( 202) -> Ê | R4: 235 | S4: =CHAR( 235) -> ë | T4: :%s/»/\>>/ge | U4: guillemet français fermant | V4: » | W4: >> | X4: &raquo; | Y4: M-; | Z4: C > >
A5: 5 | B5: 33 | D5: 5 | E5: =CHAR( 5) ->  | F5: 38 | G5: =CHAR( 38) -> & | H5: 71 | I5: =CHAR( 71) -> G | J5: 104 | K5: =CHAR( 104) -> h | L5: 137 | M5: =CHAR( 137) -> ‰ | N5: 170 | O5: =CHAR( 170) -> ª | P5: 203 | Q5: =CHAR( 203) -> Ë | R5: 236 | S5: =CHAR( 236) -> ì | T5: :%s/á/\\'a/ge | U5: a accent aigu | V5: á | W5: \'a | X5: &aacute; | Y5: M-a | Z5: C ' a
A6: 6 | B6: 34 | D6: 6 | E6: =CHAR( 6) ->  | F6: 39 | G6: =CHAR( 39) -> ' | H6: 72 | I6: =CHAR( 72) -> H | J6: 105 | K6: =CHAR( 105) -> i | L6: 138 | M6: =CHAR( 138) -> Š | N6: 171 | O6: =CHAR( 171) -> « | P6: 204 | Q6: =CHAR( 204) -> Ì | R6: 237 | S6: =CHAR( 237) -> í | T6: :%s/à/\\`a/ge | U6: a accent grave | V6: à | W6: \`a | X6: &agrave; | Y6: M-` | Z6: C ` a
A7: 7 | B7: 35 | D7: 7 | E7: =CHAR( 7) ->  | F7: 40 | G7: =CHAR( 40) -> ( | H7: 73 | I7: =CHAR( 73) -> I | J7: 106 | K7: =CHAR( 106) -> j | L7: 139 | M7: =CHAR( 139) -> ‹ | N7: 172 | O7: =CHAR( 172) -> ¬ | P7: 205 | Q7: =CHAR( 205) -> Í | R7: 238 | S7: =CHAR( 238) -> î | T7: :%s/â/\\^a/ge | U7: a accent circonflexe | V7: â | W7: \^a | X7: &acirc; | Y7: M-b | Z7: C ^ a
A8: 8 | B8: 36 | D8: 8 | E8: =CHAR( 8) ->  | F8: 41 | G8: =CHAR( 41) -> ) | H8: 74 | I8: =CHAR( 74) -> J | J8: 107 | K8: =CHAR( 107) -> k | L8: 140 | M8: =CHAR( 140) -> Œ | N8: 173 | O8: =CHAR( 173) -> ­ | P8: 206 | Q8: =CHAR( 206) -> Î | R8: 239 | S8: =CHAR( 239) -> ï | T8: :%s/ä/\\"a/ge | U8: a tréma | V8: ä | W8: \"a | X8: &auml; | Y8: M-d | Z8: C " a
A9: 9 | B9: 37 | D9: 9 | E9: =CHAR( 9) ->  | F9: 42 | G9: =CHAR( 42) -> * | H9: 75 | I9: =CHAR( 75) -> K | J9: 108 | K9: =CHAR( 108) -> l | L9: 141 | M9: =CHAR( 141) ->  | N9: 174 | O9: =CHAR( 174) -> ® | P9: 207 | Q9: =CHAR( 207) -> Ï | R9: 240 | S9: =CHAR( 240) -> ð | T9: :%s/Ä/\\"A/ge | U9: A tréma | V9: Ä | W9: \"A | X9: &Auml; | Y9: M-D | Z9: C " A
A10: 10 | B10: 38 | D10: 10 | E10: =CHAR( 10) ->  | F10: 43 | G10: =CHAR( 43) -> + | H10: 76 | I10: =CHAR( 76) -> L | J10: 109 | K10: =CHAR( 109) -> m | L10: 142 | M10: =CHAR( 142) -> Ž | N10: 175 | O10: =CHAR( 175) -> ¯ | P10: 208 | Q10: =CHAR( 208) -> Ð | R10: 241 | S10: =CHAR( 241) -> ñ | T10: :%s/å/\\aa/ge | U10: a rond | V10: å | W10: \aa | X10: &aring; | Y10: M-e | Z10: C * a
A11: 11 | B11: 39 | D11: 11 | E11: =CHAR( 11) ->  | F11: 44 | G11: =CHAR( 44) -> , | H11: 77 | I11: =CHAR( 77) -> M | J11: 110 | K11: =CHAR( 110) -> n | L11: 143 | M11: =CHAR( 143) ->  | N11: 176 | O11: =CHAR( 176) -> ° | P11: 209 | Q11: =CHAR( 209) -> Ñ | R11: 242 | S11: =CHAR( 242) -> ò | T11: :%s/Å/\\AA/ge | U11: A rond | V11: Å | W11: \AA | X11: &Aring; | Y11: M-E | Z11: C * A
A12: 12 | B12: 40 | D12: 12 | E12: =CHAR( 12) ->  | F12: 45 | G12: =CHAR( 45) -> - | H12: 78 | I12: =CHAR( 78) -> N | J12: 111 | K12: =CHAR( 111) -> o | L12: 144 | M12: =CHAR( 144) ->  | N12: 177 | O12: =CHAR( 177) -> ± | P12: 210 | Q12: =CHAR( 210) -> Ò | R12: 243 | S12: =CHAR( 243) -> ó | T12: :%s/æ/\\ae/ge | U12: ae ligaturé | V12: æ | W12: \ae | X12: &aelig; | Y12: M-f | Z12: C a e
A13: 13 | B13: 41 | D13: 13 | E13: =CHAR( 13) ->  | F13: 46 | G13: =CHAR( 46) -> . | H13: 79 | I13: =CHAR( 79) -> O | J13: 112 | K13: =CHAR( 112) -> p | L13: 145 | M13: =CHAR( 145) -> ‘ | N13: 178 | O13: =CHAR( 178) -> ² | P13: 211 | Q13: =CHAR( 211) -> Ó | R13: 244 | S13: =CHAR( 244) -> ô | T13: :%s/Æ/\\AE/ge | U13: AE ligaturé | V13: Æ | W13: \AE | X13: &AElig; | Y13: M-F | Z13: C A E
A14: 14 | B14: 42 | D14: 14 | E14: =CHAR( 14) ->  | F14: 47 | G14: =CHAR( 47) -> / | H14: 80 | I14: =CHAR( 80) -> P | J14: 113 | K14: =CHAR( 113) -> q | L14: 146 | M14: =CHAR( 146) -> ’ | N14: 179 | O14: =CHAR( 179) -> ³ | P14: 212 | Q14: =CHAR( 212) -> Ô | R14: 245 | S14: =CHAR( 245) -> õ | T14: :%s/c/\/ge | U14: copyright | V14: c | X14: &copy; | Y14: M-) | Z14: C c 0
A15: 15 | B15: 43 | D15: 15 | E15: =CHAR( 15) ->  | F15: 48 | G15: =CHAR( 48) -> 0 | H15: 81 | I15: =CHAR( 81) -> Q | J15: 114 | K15: =CHAR( 114) -> r | L15: 147 | M15: =CHAR( 147) -> “ | N15: 180 | O15: =CHAR( 180) -> ´ | P15: 213 | Q15: =CHAR( 213) -> Õ | R15: 246 | S15: =CHAR( 246) -> ö | T15: :%s/ç/\\c c/ge | U15: c cédille | V15: ç | W15: \c c | X15: &ccedil; | Y15: M-g | Z15: C , c
A16: 16 | B16: 44 | D16: 16 | E16: =CHAR( 16) ->  | F16: 49 | G16: =CHAR( 49) -> 1 | H16: 82 | I16: =CHAR( 82) -> R | J16: 115 | K16: =CHAR( 115) -> s | L16: 148 | M16: =CHAR( 148) -> ” | N16: 181 | O16: =CHAR( 181) -> µ | P16: 214 | Q16: =CHAR( 214) -> Ö | R16: 247 | S16: =CHAR( 247) -> ÷ | T16: :%s/Ç/\\c C/ge | U16: C cédille | V16: Ç | W16: \c C | X16: &Ccedil; | Y16: M-G | Z16: C , C
A17: 17 | B17: 45 | D17: 17 | E17: =CHAR( 17) ->  | F17: 50 | G17: =CHAR( 50) -> 2 | H17: 83 | I17: =CHAR( 83) -> S | J17: 116 | K17: =CHAR( 116) -> t | L17: 149 | M17: =CHAR( 149) -> • | N17: 182 | O17: =CHAR( 182) -> ¶ | P17: 215 | Q17: =CHAR( 215) -> × | R17: 248 | S17: =CHAR( 248) -> ø | T17: :%s/E/\\"E/ge | U17: E tréma | V17: E | W17: \"E | X17: &Euml; | Y17: M-K | Z17: C " E
A18: 18 | B18: 46 | D18: 18 | E18: =CHAR( 18) ->  | F18: 51 | G18: =CHAR( 51) -> 3 | H18: 84 | I18: =CHAR( 84) -> T | J18: 117 | K18: =CHAR( 117) -> u | L18: 150 | M18: =CHAR( 150) -> – | N18: 183 | O18: =CHAR( 183) -> · | P18: 216 | Q18: =CHAR( 216) -> Ø | R18: 249 | S18: =CHAR( 249) -> ù | T18: :%s/é/\\'e/ge | U18: e accent aigu | V18: é | W18: \'e | X18: &eacute; | Y18: M-i | Z18: C ' e
A19: 19 | B19: 47 | D19: 19 | E19: =CHAR( 19) ->  | F19: 52 | G19: =CHAR( 52) -> 4 | H19: 85 | I19: =CHAR( 85) -> U | J19: 118 | K19: =CHAR( 118) -> v | L19: 151 | M19: =CHAR( 151) -> — | N19: 184 | O19: =CHAR( 184) -> ¸ | P19: 217 | Q19: =CHAR( 217) -> Ù | R19: 250 | S19: =CHAR( 250) -> ú | T19: :%s/É/\\'E/ge | U19: E accent aigu | V19: É | W19: \'E | X19: &Eacute; | Y19: M-I | Z19: C ' E
A20: 20 | B20: 48 | D20: 20 | E20: =CHAR( 20) ->  | F20: 53 | G20: =CHAR( 53) -> 5 | H20: 86 | I20: =CHAR( 86) -> V | J20: 119 | K20: =CHAR( 119) -> w | L20: 152 | M20: =CHAR( 152) -> ˜ | N20: 185 | O20: =CHAR( 185) -> ¹ | P20: 218 | Q20: =CHAR( 218) -> Ú | R20: 251 | S20: =CHAR( 251) -> û | T20: :%s/è/\\`e/ge | U20: e accent grave | V20: è | W20: \`e | X20: &egrave; | Y20: M-h | Z20: C ` e
A21: 21 | B21: 49 | D21: 21 | E21: =CHAR( 21) ->  | F21: 54 | G21: =CHAR( 54) -> 6 | H21: 87 | I21: =CHAR( 87) -> W | J21: 120 | K21: =CHAR( 120) -> x | L21: 153 | M21: =CHAR( 153) -> ™ | N21: 186 | O21: =CHAR( 186) -> º | P21: 219 | Q21: =CHAR( 219) -> Û | R21: 252 | S21: =CHAR( 252) -> ü | T21: :%s/ê/\\^e/ge | U21: e accent circonflexe | V21: ê | W21: \^e | X21: &ecirc; | Y21: M-j | Z21: C ^ e
A22: 22 | B22: 50 | D22: 22 | E22: =CHAR( 22) ->  | F22: 55 | G22: =CHAR( 55) -> 7 | H22: 88 | I22: =CHAR( 88) -> X | J22: 121 | K22: =CHAR( 121) -> y | L22: 154 | M22: =CHAR( 154) -> š | N22: 187 | O22: =CHAR( 187) -> » | P22: 220 | Q22: =CHAR( 220) -> Ü | R22: 253 | S22: =CHAR( 253) -> ý | T22: :%s/ë/\\"e/ge | U22: e tréma | V22: ë | W22: \"e | X22: &euml; | Y22: M-k | Z22: C " e
A23: 23 | B23: 51 | D23: 23 | E23: =CHAR( 23) ->  | F23: 56 | G23: =CHAR( 56) -> 8 | H23: 89 | I23: =CHAR( 89) -> Y | J23: 122 | K23: =CHAR( 122) -> z | L23: 155 | M23: =CHAR( 155) -> › | N23: 188 | O23: =CHAR( 188) -> ¼ | P23: 221 | Q23: =CHAR( 221) -> Ý | R23: 254 | S23: =CHAR( 254) -> þ | T23: :%s/í/\\'i/ge | U23: i accent aigu | V23: í | W23: \'i | X23: &iacute; | Y23: M-m | Z23: C ' i
A24: 24 | B24: 52 | D24: 24 | E24: =CHAR( 24) ->  | F24: 57 | G24: =CHAR( 57) -> 9 | H24: 90 | I24: =CHAR( 90) -> Z | J24: 123 | K24: =CHAR( 123) -> { | L24: 156 | M24: =CHAR( 156) -> œ | N24: 189 | O24: =CHAR( 189) -> ½ | P24: 222 | Q24: =CHAR( 222) -> Þ | R24: 255 | S24: =CHAR( 255) -> ÿ | T24: :%s/ì/\\`i/ge | U24: i accent grave | V24: ì | W24: \`i | X24: &igrave; | Y24: M-l | Z24: C ` i
A25: 25 | B25: 53 | D25: 25 | E25: =CHAR( 25) ->  | F25: 58 | G25: =CHAR( 58) -> : | H25: 91 | I25: =CHAR( 91) -> [ | J25: 124 | K25: =CHAR( 124) -> | | L25: 157 | M25: =CHAR( 157) ->  | N25: 190 | O25: =CHAR( 190) -> ¾ | P25: 223 | Q25: =CHAR( 223) -> ß | R25: 255 lettres de l'alphabet : | T25: :%s/î/\\^i/ge | U25: i accent circonflexe | V25: î | W25: \^i | X25: &icirc; | Y25: M-n | Z25: C ^ i
A26: 26 | B26: 54 | D26: 26 | E26: =CHAR( 26) ->  | F26: 59 | G26: =CHAR( 59) -> ; | H26: 92 | I26: =CHAR( 92) -> \ | J26: 125 | K26: =CHAR( 125) -> } | L26: 158 | M26: =CHAR( 158) -> ž | N26: 191 | O26: =CHAR( 191) -> ¿ | P26: 224 | Q26: =CHAR( 224) -> à | T26: :%s/ï/\\"i/ge | U26: i tréma | V26: ï | W26: \"i | X26: &iuml; | Y26: M-o | Z26: C " i
A27: 27 | B27: 55 | D27: 27 | E27: =CHAR( 27) ->  | F27: 60 | G27: =CHAR( 60) -> < | H27: 93 | I27: =CHAR( 93) -> ] | J27: 126 | K27: =CHAR( 126) -> ~ | L27: 159 | M27: =CHAR( 159) -> Ÿ | N27: 192 | O27: =CHAR( 192) -> À | P27: 225 | Q27: =CHAR( 225) -> á | T27: :%s/ñ/\\~n/ge | U27: n tilde | V27: ñ | W27: \~n | X27: &ntilde; | Y27: M-q | Z27: C ~ n
A28: 28 | B28: 56 | D28: 28 | E28: =CHAR( 28) ->  | F28: 61 | G28: =CHAR( 61) -> = | H28: 94 | I28: =CHAR( 94) -> ^ | J28: 127 | K28: =CHAR( 127) ->  | L28: 160 | M28: =CHAR( 160) ->  | N28: 193 | O28: =CHAR( 193) -> Á | P28: 226 | Q28: =CHAR( 226) -> â | R28: VBA : | S28: CHR | T28: :%s/Ñ/\\~N/ge | U28: N tilde | V28: Ñ | W28: \~N | X28: &Ntilde; | Y28: M-Q | Z28: C ~ N
D29: 29 | E29: =CHAR( 29) ->  | F29: 62 | G29: =CHAR( 62) -> > | H29: 95 | I29: =CHAR( 95) -> _ | J29: 128 | K29: =CHAR( 128) -> € | L29: 161 | M29: =CHAR( 161) -> ¡ | N29: 194 | O29: =CHAR( 194) -> Â | P29: 227 | Q29: =CHAR( 227) -> ã | T29: :%s/ó/\\'o/ge | U29: o accent aigu | V29: ó | W29: \'o | X29: &oacute; | Y29: M-s | Z29: C ' o
D30: 30 | E30: =CHAR( 30) ->  | F30: 63 | G30: =CHAR( 63) -> ? | H30: 96 | I30: =CHAR( 96) -> ` | J30: 129 | K30: =CHAR( 129) ->  | L30: 162 | M30: =CHAR( 162) -> ¢ | N30: 195 | O30: =CHAR( 195) -> Ã | P30: 228 | Q30: =CHAR( 228) -> ä | R30: Excel Fr : | S30: CAR(i) | T30: :%s/ò/\\`o/ge | U30: o accent grave | V30: ò | W30: \`o | X30: &ograve; | Y30: M-r | Z30: C ` o
D31: 31 | E31: =CHAR( 31) ->  | F31: 64 | G31: =CHAR( 64) -> @ | H31: 97 | I31: =CHAR( 97) -> a | J31: 130 | K31: =CHAR( 130) -> ‚ | L31: 163 | M31: =CHAR( 163) -> £ | N31: 196 | O31: =CHAR( 196) -> Ä | P31: 229 | Q31: =CHAR( 229) -> å | R31: Excel GB : | S31: CHAR(i) | T31: :%s/ô/\\^o/ge | U31: o accent circonflexe | V31: ô | W31: \^o | X31: &ocirc; | Y31: M-t | Z31: C ^ o
D32: 32 | E32: =CHAR( 32) ->  | F32: 65 | G32: =CHAR( 65) -> A | H32: 98 | I32: =CHAR( 98) -> b | J32: 131 | K32: =CHAR( 131) -> ƒ | L32: 164 | M32: =CHAR( 164) -> ¤ | N32: 197 | O32: =CHAR( 197) -> Å | P32: 230 | Q32: =CHAR( 230) -> æ | T32: :%s/ö/\\"o/ge | U32: o tréma | V32: ö | W32: \"o | X32: &ouml; | Y32: M-v | Z32: C " o
D33: 33 | E33: =CHAR( 33) -> ! | F33: 66 | G33: =CHAR( 66) -> B | H33: 99 | I33: =CHAR( 99) -> c | J33: 132 | K33: =CHAR( 132) -> „ | L33: 165 | M33: =CHAR( 165) -> ¥ | N33: 198 | O33: =CHAR( 198) -> Æ | P33: 231 | Q33: =CHAR( 231) -> ç | T33: :%s/Ö/\\"O/ge | U33: O tréma | V33: Ö | W33: \"O | X33: &Ouml; | Y33: M-V | Z33: C " O
T34: :%s/ß/\\ss/ge | U34: double s allemand | V34: ß | W34: \ss | X34: &szlig; | Y34: M-_ | Z34: C s s
T35: :%s/ú/\\'u/ge | U35: u accent aigu | V35: ú | W35: \'u | X35: &uacute; | Y35: M-z | Z35: C ' u
T36: :%s/ù/\\`u/ge | U36: u accent grave | V36: ù | W36: \`u | X36: &ugrave; | Y36: M-y | Z36: C ` u
T37: :%s/û/\\^u/ge | U37: u accent circonflexe | V37: û | W37: \^u | X37: &ucirc; | Y37: M-{ | Z37: C ^ u
T38: :%s/ü/\\"u/ge | U38: u tréma | V38: ü | W38: \"u | X38: &uuml; | Y38: M-| | Z38: C " u
T39: :%s/Ü/\\"/ge | U39: U tréma | V39: Ü | W39: \" | X39: &Uuml; | Y39: M-\ | Z39: C " U

Sheet viscosite
A1: catégorie_vis | B1: viscosite | C1: =CONCATENATE(" <!-- question XLQ ", titre_vis, "-->") -> <!-- question XLQ viscosite_vis--> | F1: Valeur Mini_vis | G1: Valeur Maxi_vis | H1: Sig. Digit_vis | I1: Val Choix_vis
B2: viscosite_vis | C2: =CONCATENATE(" <question type=",CHAR(34),"category",CHAR(34),"><category><text>", categorie_vis,"</text></category></question>)") -> <question type="category"><category><text>viscosite</text></category></question>) | E2: V1.R_vis | F2: 0.5 | G2: 1.5 | H2: -1 | I2: =RANDBETWEEN(ValMini_vis*10^-SigDig_vis, ValMaxi_vis*10^-SigDig_vis)/10^-SigDig_vis -> 1
A3: Tag_vis | B3: viscosite_vis | C3: <question type="cloze"> | E3: V2.L_vis | F3: 15 | G3: 35 | H3: 0 | I3: 23 | CA3: <p>&nbsp;R=#1# mm, L=#2# mm. Les r&eacute;sultats de d&eacute;bits volumiques (Q en m<sup>3</sup>.s<sup>-1</sup>) et de pressions (P en Pa) sont pr&eacute;sent&eacute;s dans le tableau. Calculer la viscosit&eacute; apparente (&eta; en Pa.s), la contrainte apparente (&tau; en Pa) et le taux de cisaillement apparent (d&gamma;/dt s-1).</p><table style=""height: 179px;"" border=""1"" width=""507""><tbody><tr><td >Q</td><td >P</td><td >d&gamma;/dt</td><td >&tau;</td><td >&eta;</td></tr><tr><td >#3#</td><td >#10#</td><td >$1$</td><td >$8$</td><td >$15$</td></tr><tr><td >#4#</td><td >#11#</td><td >$2$</td><td >$9$</td><td >$16$</td></tr><tr><td >#5#</td><td >#12#</td><td >$3$</td><td >$10$</td><td >$17$</td></tr><tr><td >#6#</td><td >#13#</td><td >$4$</td><td >$11$</td><td >$18$</td></tr><tr><td >#7#</td><td >#14#</td><td >$5$</td><td >$12$</td><td >$19$</td></tr><tr><td >#8#</td><td >#15#</td><td >$6$</td><td >$13$</td><td >$20$</td></tr><tr><td >#9#</td><td >#16#</td><td >$7$</td><td >$14$</td><td >$21$</td></tr></tbody></table><p>Le polym&egrave;re &eacute;tudi&eacute; a un comportement pseudoplastique, d&eacute;terminer les param&egrave;tres &eta;<sub>0</sub> $22$, K $25$ et n $26$.</p>
A4: idnumber_vis | B4: =TEXT(NOW(),"aammjj-hhmmss.00") -> 210710-210621.92 | C4: =CONCATENATE(" <name><text>", titre_vis, "</text></name>") -> <name><text>viscosite_vis</text></name> | E4: V3.Q1_vis | F4: 7e-08 | G4: 1e-07 | H4: -9 | I4: 9.6e-08
A5: points_vis | B5: 1 | C5: <questiontext format="html"> | E5: V4.Q2_vis | F5: 1.1e-07 | G5: 3e-07 | H5: -9 | I5: 1.47e-07
A6: tolérance_vis | B6: 0.05 | C6: =CONCATENATE(" <text><![CDATA[<p>", question_vis, "</p>]]></text>") -> <text><![CDATA[<p> <p>&nbsp;R=1 mm, L=23 mm. Les r&eacute;sultats de d&eacute;bits volumiques (Q en m<sup>3</sup>.s<sup>-1</sup>) et de pressions (P en Pa) sont pr&eacute;sent&eacute;s dans le tableau. Calculer la viscosit&eacute;apparente (&eta; en Pa.s), la contrainte apparente (&tau; en Pa) et le taux de cisaillement apparent (d&gamma;/dt s-1).</p><table style="height: 179px;" border="1" width="507"><tbody><tr><td >Q</td><td>P</td><td >d&gamma;/dt</td><td >&tau;</td><td >&eta;</td></tr><tr><td >0.000000096</td><td >77338000</td><td >{1:NUMERICAL:=1.22E+02:6.11E+00}</td><td >{1:NUMERICAL:=1.68E+06:8.40E+04}</td><td >{1:NUMERICAL:=1.37E+04:6.87E+02}</td></tr><tr><td >0.000000147</td><td >166995000</td><td >{1:NUMERICAL:=1.87E+02:9.36E+00}</td><td >{1:NUMERICAL:=3.63E+06:1.81E+05}</td><td >{1:NUMERICAL:=1.94E+04:9.69E+02}</td></tr><tr><td>0.000000446</td><td >485990000</td><td >{1:NUMERICAL:=5.68E+02:2.84E+01}</td><td >{1:NUMERICAL:=1.06E+07:5.28E+05}</td><td >{1:NUMERICAL:=1.86E+04:9.30E+02}</td></tr><tr><td >0.000000836</td><td >579141000</td><td >{1:NUMERICAL:=1.06E+03:5.32E+01}</td><td >{1:NUMERICAL:=1.26E+07:6.29E+05}</td><td >{1:NUMERICAL:=1.18E+04:5.91E+02}</td></tr><tr><td >0.0000012</td><td >1184906000</td><td >{1:NUMERICAL:=1.53E+03:7.64E+01}</td><td >{1:NUMERICAL:=2.58E+07:1.29E+06}</td><td>{1:NUMERICAL:=1.69E+04:8.43E+02}</td></tr><tr><td >0.00000516</td><td >1894903000</td><td >{1:NUMERICAL:=6.57E+03:3.28E+02}</td><td >{1:NUMERICAL:=4.12E+07:2.06E+06}</td><td >{1:NUMERICAL:=6.27E+03:3.13E+02}</td></tr><tr><td >0.00000926</td><td >1955163000</td><td >{1:NUMERICAL:=1.18E+04:5.90E+02}</td><td >{1:NUMERICAL:=4.25E+07:2.13E+06}</td><td >{1:NUMERICAL:=3.60E+03:1.80E+02}</td></tr></tbody></table><p>Le polym&egrave;re&eacute;tudi&eacute; a un comportement pseudoplastique, d&eacute;terminer les param&egrave;tres &eta;<sub>0</sub> {1:NUMERICAL:=1.72E+04:8.62E+02}, K {1:NUMERICAL:=3.70E+05:1.85E+04} et n {1:NUMERICAL:=5.06E-01:2.53E-02}.</p></p>]]></text> | E6: V5.Q3_vis | F6: 3.1e-07 | G6: 8e-07 | H6: -9 | I6: 4.46e-07
A7: penalité_vis | B7: 0.1 | C7: </questiontext> | E7: V6.Q4_vis | F7: 8.1e-07 | G7: 1e-06 | H7: -9 | I7: 8.36e-07
A8: feedback_vis | B8: _ | C8: =CONCATENATE(" <defaultgrade>",points_vis,"</defaultgrade><generalfeedback><text>",feedback_vis,"</text></generalfeedback><penalty>",penalty_vis,"</penalty><hidden>0</hidden>)") -> <defaultgrade>1</defaultgrade><generalfeedback><text>_</text></generalfeedback><penalty>0.1</penalty><hidden>0</hidden>) | E8: V7.Q5_vis | F8: 1.1e-06 | G8: 3e-06 | H8: -8 | I8: 1.2e-06
A9: Cellule vides_vis | B9: =COUNTBLANK(B1:B8) -> 0 | C9: =CONCATENATE(" <idnumber>",idnumber_vis,"</idnumber><tags><tag><text>",Tag_vis,"</text></tag></tags>") -> <idnumber>210710-210621.92</idnumber><tags><tag><text>viscosite_vis</text></tag></tags> | E9: V8.Q6_vis | F9: 3.1e-06 | G9: 8e-06 | H9: -8 | I9: 5.16e-06
A10: question format HTML_vis | B10: =CONCATENATE(" ",B19,B20,B21,B22,B23,B24,B25,B26,B27,B28,B29,B30,B31) -> <p>&nbsp;R=1 mm, L=23 mm. Les r&eacute;sultats de d&eacute;bits volumiques (Q en m<sup>3</sup>.s<sup>-1</sup>) et de pressions (P en Pa) sont pr&eacute;sent&eacute;s dans le tableau. Calculer la viscosit&eacute;apparente (&eta; en Pa.s), la contrainte apparente (&tau; en Pa) et le taux de cisaillement apparent (d&gamma;/dt s-1).</p><table style="height: 179px;" border="1" width="507"><tbody><tr><td >Q</td><td>P</td><td >d&gamma;/dt</td><td >&tau;</td><td >&eta;</td></tr><tr><td >0.000000096</td><td >77338000</td><td >{1:NUMERICAL:=1.22E+02:6.11E+00}</td><td >{1:NUMERICAL:=1.68E+06:8.40E+04}</td><td >{1:NUMERICAL:=1.37E+04:6.87E+02}</td></tr><tr><td >0.000000147</td><td >166995000</td><td >{1:NUMERICAL:=1.87E+02:9.36E+00}</td><td >{1:NUMERICAL:=3.63E+06:1.81E+05}</td><td >{1:NUMERICAL:=1.94E+04:9.69E+02}</td></tr><tr><td>0.000000446</td><td >485990000</td><td >{1:NUMERICAL:=5.68E+02:2.84E+01}</td><td >{1:NUMERICAL:=1.06E+07:5.28E+05}</td><td >{1:NUMERICAL:=1.86E+04:9.30E+02}</td></tr><tr><td >0.000000836</td><td >579141000</td><td >{1:NUMERICAL:=1.06E+03:5.32E+01}</td><td >{1:NUMERICAL:=1.26E+07:6.29E+05}</td><td >{1:NUMERICAL:=1.18E+04:5.91E+02}</td></tr><tr><td >0.0000012</td><td >1184906000</td><td >{1:NUMERICAL:=1.53E+03:7.64E+01}</td><td >{1:NUMERICAL:=2.58E+07:1.29E+06}</td><td>{1:NUMERICAL:=1.69E+04:8.43E+02}</td></tr><tr><td >0.00000516</td><td >1894903000</td><td >{1:NUMERICAL:=6.57E+03:3.28E+02}</td><td >{1:NUMERICAL:=4.12E+07:2.06E+06}</td><td >{1:NUMERICAL:=6.27E+03:3.13E+02}</td></tr><tr><td >0.00000926</td><td >1955163000</td><td >{1:NUMERICAL:=1.18E+04:5.90E+02}</td><td >{1:NUMERICAL:=4.25E+07:2.13E+06}</td><td >{1:NUMERICAL:=3.60E+03:1.80E+02}</td></tr></tbody></table><p>Le polym&egrave;re&eacute;tudi&eacute; a un comportement pseudoplastique, d&eacute;terminer les param&egrave;tres &eta;<sub>0</sub> {1:NUMERICAL:=1.72E+04:8.62E+02}, K {1:NUMERICAL:=3.70E+05:1.85E+04} et n {1:NUMERICAL:=5.06E-01:2.53E-02}.</p> | C10: </question> | E10: V9.Q7_vis | F10: 8.1e-06 | G10: 1e-05 | H10: -8 | I10: 9.26e-06
A11: Repere Var Rep | B11: _vis | E11: V10.P1_vis | F11: 60000000 | G11: 80000000 | H11: 3 | I11: 77338000
A12: HTML File | B12: vis.txt | E12: V11.P2_vis | F12: 150000000 | G12: 220000000 | H12: 3 | I12: 166995000
A13: Valide ? | E13: V12.P3_vis | F13: 450000000 | G13: 490000000 | H13: 3 | I13: 485990000
A14: https://html-online.com/editor/ | E14: V13.P4_vis | F14: 540000000 | G14: 590000000 | H14: 3 | I14: 579141000
C15: 18 | E15: V14.P5_vis | F15: 1050000000 | G15: 1200000000 | H15: 3 | I15: 1184906000
A16: Var : | B16: # | C16: 16 | E16: V15.P6_vis | F16: 1750000000 | G16: 1930000000 | H16: 3 | I16: 1894903000
A17: Res : | B17: $ | C17: 26 | E17: V16.P7_vis | F17: 1950000000 | G17: 2120000000 | H17: 3 | I17: 1955163000
B19: =CONCATENATE("<p>&nbsp;R=",V1.R_vis," mm, L=",V2.L_vis," mm. Les r&eacute;sultats de d&eacute;bits volumiques (Q en m<sup>3</sup>.s<sup>-1</sup>) et de pressions (P en Pa) sont pr&eacute;sent&eacute;s dans le tableau. Calculer la viscosit&eacute;") -> <p>&nbsp;R=1 mm, L=23 mm. Les r&eacute;sultats de d&eacute;bits volumiques (Q en m<sup>3</sup>.s<sup>-1</sup>) et de pressions (P en Pa) sont pr&eacute;sent&eacute;s dans le tableau. Calculer la viscosit&eacute; | F19: Cible_vis | G19: Toler_vis | H19: PointsQuestion_vis
B20: =CONCATENATE("apparente (&eta; en Pa.s), la contrainte apparente (&tau; en Pa) et le taux de cisaillement apparent (d&gamma;/dt s-1).</p><table style=""height: 179px;"" border=""1"" width=""507""><tbody><tr><td >Q</td><td") -> apparente (&eta; en Pa.s), la contrainte apparente (&tau; en Pa) et le taux de cisaillement apparent (d&gamma;/dt s-1).</p><table style="height: 179px;" border="1" width="507"><tbody><tr><td >Q</td><td | E20: R1.G1_vis | F20: =(4*V3.Q1_vis)/(PI()*(V1.R_vis*0.001)^3) -> 122.2309963 | G20: =tolerance_vis*ValMini_vis -> 6.111549815 | H20: 1 | I20: =CONCATENATE("{",PointsQuestion_vis,":NUMERICAL:=",TEXT(Cible_vis,"0.00E+00"),":",TEXT(ABS(Tolere_vis),"0.00E+00"),"}") -> {1:NUMERICAL:=1.22E+02:6.11E+00}
B21: =CONCATENATE(">P</td><td >d&gamma;/dt</td><td >&tau;</td><td >&eta;</td></tr><tr><td >",V3.Q1_vis,"</td><td >",V10.P1_vis,"</td><td >",R1.G1_vis,"</td><td >",R8.T1_vis,"</td><td >",R15.E1_vis,"</td></tr><tr><td >",V4.Q2_vis,"</td><td >",V11.P2_vis,"</td><td >",R2.G2_vis,"</td><td >",R9.T2_vis,"</td><td >",R16.E2_vis,"</td></tr><tr><td") -> >P</td><td >d&gamma;/dt</td><td >&tau;</td><td >&eta;</td></tr><tr><td >0.000000096</td><td >77338000</td><td >{1:NUMERICAL:=1.22E+02:6.11E+00}</td><td >{1:NUMERICAL:=1.68E+06:8.40E+04}</td><td >{1:NUMERICAL:=1.37E+04:6.87E+02}</td></tr><tr><td >0.000000147</td><td >166995000</td><td >{1:NUMERICAL:=1.87E+02:9.36E+00}</td><td >{1:NUMERICAL:=3.63E+06:1.81E+05}</td><td >{1:NUMERICAL:=1.94E+04:9.69E+02}</td></tr><tr><td | E21: R2.G2_vis | F21: =(4*V4.Q2_vis)/(PI()*(V1.R_vis*0.001)^3) -> 187.1662131 | G21: 9.358310654 | H21: 1 | I21: {1:NUMERICAL:=1.87E+02:9.36E+00}
B22: =CONCATENATE(">",V5.Q3_vis,"</td><td >",V12.P3_vis,"</td><td >",R3.G3_vis,"</td><td >",R10.T3_vis,"</td><td >",R17.E3_vis,"</td></tr><tr><td >",V6.Q4_vis,"</td><td >",V13.P4_vis,"</td><td >",R4.G4_vis,"</td><td >",R11.T4_vis,"</td><td >",R18.E4_vis,"</td></tr><tr><td >",V7.Q5_vis,"</td><td >",V14.P5_vis,"</td><td >",R5.G5_vis,"</td><td >",R12.T5_vis,"</td><td") -> >0.000000446</td><td >485990000</td><td >{1:NUMERICAL:=5.68E+02:2.84E+01}</td><td >{1:NUMERICAL:=1.06E+07:5.28E+05}</td><td >{1:NUMERICAL:=1.86E+04:9.30E+02}</td></tr><tr><td >0.000000836</td><td >579141000</td><td >{1:NUMERICAL:=1.06E+03:5.32E+01}</td><td >{1:NUMERICAL:=1.26E+07:6.29E+05}</td><td >{1:NUMERICAL:=1.18E+04:5.91E+02}</td></tr><tr><td >0.0000012</td><td >1184906000</td><td >{1:NUMERICAL:=1.53E+03:7.64E+01}</td><td >{1:NUMERICAL:=2.58E+07:1.29E+06}</td><td | E22: R3.G3_vis | F22: =(4*V5.Q3_vis)/(PI()*(V1.R_vis*0.001)^3) -> 567.864837 | G22: 28.39324185 | H22: 1 | I22: {1:NUMERICAL:=5.68E+02:2.84E+01}
B23: =CONCATENATE(">",R19.E5_vis,"</td></tr><tr><td >",V8.Q6_vis,"</td><td >",V15.P6_vis,"</td><td >",R6.G6_vis,"</td><td >",R13.T6_vis,"</td><td >",R20.E6_vis,"</td></tr><tr><td >",V9.Q7_vis,"</td><td >",V16.P7_vis,"</td><td >",R7.G7_vis,"</td><td >",R14.T7_vis,"</td><td >",R21.E7_vis,"</td></tr></tbody></table><p>Le polym&egrave;re") -> >{1:NUMERICAL:=1.69E+04:8.43E+02}</td></tr><tr><td >0.00000516</td><td >1894903000</td><td >{1:NUMERICAL:=6.57E+03:3.28E+02}</td><td >{1:NUMERICAL:=4.12E+07:2.06E+06}</td><td >{1:NUMERICAL:=6.27E+03:3.13E+02}</td></tr><tr><td >0.00000926</td><td >1955163000</td><td >{1:NUMERICAL:=1.18E+04:5.90E+02}</td><td >{1:NUMERICAL:=4.25E+07:2.13E+06}</td><td >{1:NUMERICAL:=3.60E+03:1.80E+02}</td></tr></tbody></table><p>Le polym&egrave;re | E23: R4.G4_vis | F23: =(4*V6.Q4_vis)/(PI()*(V1.R_vis*0.001)^3) -> 1064.428259 | G23: 53.22141297 | H23: 1 | I23: {1:NUMERICAL:=1.06E+03:5.32E+01}
B24: =CONCATENATE("&eacute;tudi&eacute; a un comportement pseudoplastique, d&eacute;terminer les param&egrave;tres &eta;<sub>0</sub> ",R22.E0_vis,", K ",R25.K_vis," et n ",R26.N_vis,".</p>") -> &eacute;tudi&eacute; a un comportement pseudoplastique, d&eacute;terminer les param&egrave;tres &eta;<sub>0</sub> {1:NUMERICAL:=1.72E+04:8.62E+02}, K {1:NUMERICAL:=3.70E+05:1.85E+04} et n {1:NUMERICAL:=5.06E-01:2.53E-02}.</p> | E24: R5.G5_vis | F24: =(4*V7.Q5_vis)/(PI()*(V1.R_vis*0.001)^3) -> 1527.887454 | G24: 76.39437268 | H24: 1 | I24: {1:NUMERICAL:=1.53E+03:7.64E+01}
B25: =CONCATENATE("") ->  | E25: R6.G6_vis | F25: =(4*V8.Q6_vis)/(PI()*(V1.R_vis*0.001)^3) -> 6569.916051 | G25: 328.4958025 | H25: 1 | I25: {1:NUMERICAL:=6.57E+03:3.28E+02}
E26: R7.G7_vis | F26: =(4*V9.Q7_vis)/(PI()*(V1.R_vis*0.001)^3) -> 11790.19818 | G26: 589.5099092 | H26: 1 | I26: {1:NUMERICAL:=1.18E+04:5.90E+02}
E27: R8.T1_vis | F27: =(V1.R_vis*(V10.P1_vis-100000))/(2*V2.L_vis) -> 1679086.957 | G27: 83954.34783 | H27: 1 | I27: {1:NUMERICAL:=1.68E+06:8.40E+04}
E28: R9.T2_vis | F28: =(V1.R_vis*(V11.P2_vis-100000))/(2*V2.L_vis) -> 3628152.174 | G28: 181407.6087 | H28: 1 | I28: {1:NUMERICAL:=3.63E+06:1.81E+05}
E29: R10.T3_vis | F29: =(V1.R_vis*(V12.P3_vis-100000))/(2*V2.L_vis) -> 10562826.09 | G29: 528141.3043 | H29: 1 | I29: {1:NUMERICAL:=1.06E+07:5.28E+05}
E30: R11.T4_vis | F30: =(V1.R_vis*(V13.P4_vis-100000))/(2*V2.L_vis) -> 12587847.83 | G30: 629392.3913 | H30: 1 | I30: {1:NUMERICAL:=1.26E+07:6.29E+05}
E31: R12.T5_vis | F31: =(V1.R_vis*(V14.P5_vis-100000))/(2*V2.L_vis) -> 25756652.17 | G31: 1287832.609 | H31: 1 | I31: {1:NUMERICAL:=2.58E+07:1.29E+06}
E32: R13.T6_vis | F32: =(V1.R_vis*(V15.P6_vis-100000))/(2*V2.L_vis) -> 41191369.57 | G32: 2059568.478 | H32: 1 | I32: {1:NUMERICAL:=4.12E+07:2.06E+06}
E33: R14.T7_vis | F33: =(V1.R_vis*(V16.P7_vis-100000))/(2*V2.L_vis) -> 42501369.57 | G33: 2125068.478 | H33: 1 | I33: {1:NUMERICAL:=4.25E+07:2.13E+06}
E34: R15.E1_vis | F34: =F27/F20 -> 13736.99804 | G34: 686.849902 | H34: 1 | I34: {1:NUMERICAL:=1.37E+04:6.87E+02}
E35: R16.E2_vis | F35: 19384.65343 | G35: 969.2326714 | H35: 1 | I35: {1:NUMERICAL:=1.94E+04:9.69E+02}
E36: R17.E3_vis | F36: 18600.95114 | G36: 930.0475571 | H36: 1 | I36: {1:NUMERICAL:=1.86E+04:9.30E+02}
E37: R18.E4_vis | F37: 11825.92412 | G37: 591.296206 | H37: 1 | I37: {1:NUMERICAL:=1.18E+04:5.91E+02}
E38: R19.E5_vis | F38: 16857.68943 | G38: 842.8844714 | H38: 1 | I38: {1:NUMERICAL:=1.69E+04:8.43E+02}
E39: R20.E6_vis | F39: 6269.694962 | G39: 313.4847481 | H39: 1 | I39: {1:NUMERICAL:=6.27E+03:3.13E+02}
E40: R21.E7_vis | F40: 3604.805356 | G40: 180.2402678 | H40: 1 | I40: {1:NUMERICAL:=3.60E+03:1.80E+02}
E41: R22.E0_vis | F41: =AVERAGE(F34:F36) -> 17240.86754 | G41: 862.0433768 | H41: 1 | I41: {1:NUMERICAL:=1.72E+04:8.62E+02}
E42: R23.N1_vis | F42: =(LOG10(F40)-LOG10(F37))/(LOG10(F26)-LOG10(F23)) -> -0.4940166047 | G42: -0.02470083023 | H42: 1 | I42: {1:NUMERICAL:=-4.94E-01:2.47E-02}
E43: R24.LK_vis | F43: =LOG10(F40)-F42*LOG10(F26) -> 5.568280852 | G43: 0.2784140426 | H43: 1 | I43: {1:NUMERICAL:=5.57E+00:2.78E-01}
E44: R25.K_vis | F44: =10^F43 -> 370067.4197 | G44: 18503.37098 | H44: 1 | I44: {1:NUMERICAL:=3.70E+05:1.85E+04}
E45: R26.N_vis | F45: =F42+1 -> 0.5059833953 | G45: 0.02529916977 | H45: 1 | I45: {1:NUMERICAL:=5.06E-01:2.53E-02}

Sheet ModelLin
A1: catégorie_Model | B1: Model_Linear | C1: =CONCATENATE(" <!-- question XLQ ", titre_Model, "-->") -> <!-- question XLQ Lineaire--> | F1: Valeur Mini_Model | G1: Valeur Maxi_Model | H1: Sig. Digit_Model | I1: Val Choix_Model | K1: x | M1: pente | N1: ordo
A2: titre_Model | B2: Lineaire | C2: =CONCATENATE(" <question type=",CHAR(34),"category",CHAR(34),"><category><text>", categorie_Model,"</text></category></question>)") -> <question type="category"><category><text>Model_Linear</text></category></question>) | E2: V1._Model | F2: =(K2*pente+ordo)*(1-$M$5) -> 21.36 | G2: =(K2*pente+ordo)*(1+$M$5) -> 32.04 | H2: -2 | I2: =RANDBETWEEN(ValMini_Model*10^-SigDig_Model, ValMaxi_Model*10^-SigDig_Model)/10^-SigDig_Model -> 29.54 | K2: 1 | L2: min | M2: 1 | N2: 7
A3: Tag_Model | B3: DroiteReg | C3: <question type="cloze"> | E3: V2._Model | F3: 25.96 | G3: 38.94 | H3: -2 | I3: 28.93 | K3: 2 | L3: max | M3: 50 | N3: 50
A4: idnumber_Model | B4: =TEXT(NOW(),"aammjj-hhmmss.00") -> 210710-210621.92 | C4: =CONCATENATE(" <name><text>", titre_Model, "</text></name>") -> <name><text>Lineaire</text></name> | E4: V3._Model | F4: 30.56 | G4: 45.84 | H4: -2 | I4: 40.45 | K4: 3 | L4: Choix | M4: =RANDBETWEEN(100*M2,100*M3)/100 -> 5.75 | N4: =RANDBETWEEN(100*N2,100*N3)/100 -> 20.95
A5: points_Model | B5: 1 | C5: <questiontext format="html"> | E5: V4._Model | F5: 35.16 | G5: 52.74 | H5: -2 | I5: 50.21 | K5: 4 | L5: bruit | M5: 0.2
A6: tolérance_Model | B6: 0.1 | C6: =CONCATENATE(" <text><![CDATA[<p>", question_Model, "</p>]]></text>") -> <text><![CDATA[<p> <p>A la suite d'un grand nombre d'exp&eacute;riences, on obtient les r&eacute;sultats suivants :&nbsp;</p><table style=""border-collapse: collapse; width: 480pt;"" border=""0"" width=""640""cellspacing=""0"" cellpadding=""0""><tbody><tr style=""height: 15.0pt;""><td class=""xl64"" style=""height: 15.0pt; width: 60pt;"" width=""80"" height=""20"">x=</td><td class=""xl65""style=""border-left: none; width: 60pt;"" width=""80"">1</td><td class=""xl65"" style=""border-left: none; width: 60pt;"" width=""80"">2</td><td class=""xl65"" style=""border-left:none; width: 60pt;"" width=""80"">3</td><td class=""xl65"" style=""border-left: none; width: 60pt;"" width=""80"">4</td><td class=""xl65"" style=""border-left: none; width: 60pt;""width=""80"">5</td><td class=""xl65"" style=""border-left: none; width: 60pt;"" width=""80"">6</td><td class=""xl65"" style=""border-left: none; width: 60pt;"" width=""80"">7</td></tr><trstyle=""height: 15.75pt;""><td class=""xl66"" style=""height: 15.75pt; border-top: none;"" height=""21"">y=</td><td class=""xl67"" style=""border-top: none; border-left: none; width:60pt;"" width=""80"">29.54</td><td class=""xl67"" style=""border-top: none; border-left: none; width: 60pt;"" width=""80"">28.93</td><td class=""xl67"" style=""border-top: none; border-left:none; width: 60pt;"" width=""80"">40.45</td><td class=""xl67"" style=""border-top: none; border-left: none; width: 60pt;"" width=""80"">50.21</td><td class=""xl67"" style=""border-top:none; border-left: none; width: 60pt;"" width=""80"">47.72</td><td class=""xl67"" style=""border-top: none; border-left: none; width: 60pt;"" width=""80"">65.5</td><td class=""xl67""style=""border-top: none; border-left: none; width: 60pt;"" width=""80"">55.6</td></tr></tbody></table><p>&nbsp;</p><table style=""border-collapse: collapse; width: 600pt;"" border=""0""width=""800"" cellspacing=""0"" cellpadding=""0""><tbody><tr style=""height: 15.0pt;""><td class=""xl65"" style=""height: 15.0pt; width: 60pt;"" width=""80"" height=""20"">x=</td><tdclass=""xl66"" style=""border-left: none; width: 60pt;"" width=""80"">7</td><td class=""xl66"" style=""border-left: none; width: 60pt;"" width=""80"">8</td><td class=""xl66""style=""border-left: none; width: 60pt;"" width=""80"">9</td><td class=""xl66"" style=""border-left: none; width: 60pt;"" width=""80"">10</td><td class=""xl66"" style=""border-left:none; width: 60pt;"" width=""80"">11</td><td class=""xl66"" style=""border-left: none; width: 60pt;"" width=""80"">12</td><td class=""xl66"" style=""border-left: none; width: 60pt;""width=""80"">13</td><td class=""xl66"" style=""border-left: none; width: 60pt;"" width=""80"">14</td><td class=""xl67"" style=""border-left: none; width: 60pt;"" width=""80"">15</td></tr><trstyle=""height: 15.75pt;""><td class=""xl68"" style=""height: 15.75pt; border-top: none;"" height=""21"">y=</td><td class=""xl69"" style=""border-top: none; border-left: none; width:60pt;"" width=""80"">55.6</td><td class=""xl69"" style=""border-top: none; border-left: none; width: 60pt;"" width=""80"">79.06</td><td class=""xl69"" style=""border-top: none; border-left:none; width: 60pt;"" width=""80"">67.15</td><td class=""xl69"" style=""border-top: none; border-left: none; width: 60pt;"" width=""80"">74.1</td><td class=""xl69"" style=""border-top:none; border-left: none; width: 60pt;"" width=""80"">87.11</td><td class=""xl69"" style=""border-top: none; border-left: none; width: 60pt;"" width=""80"">103.22</td><td class=""xl69""style=""border-top: none; border-left: none; width: 60pt;"" width=""80"">81.25</td><td class=""xl69"" style=""border-top: none; border-left: none; width: 60pt;"" width=""80"">86.7</td><tdclass=""xl70"" style=""border-top: none; border-left: none; width: 60pt;"" width=""80"">104.99</td></tr></tbody></table><p>Les donn&eacute;es suivent une loi lin&eacute;aire, d&eacute;terminer:</p><p>&nbsp;</p><ul><li>la pente P: {1:NUMERICAL:=5.13E+00:5.13E-01}</li><li>L'incertitude sur la pente &Delta;P&nbsp;: {1:NUMERICAL:=4.99E-01:4.99E-02}</li><li>L'ordonn&eacute;e &agrave; l'origine Y<sub>0</sub> : {1:NUMERICAL:=2.57E+01:2.57E+00}</li><li>Son incertitude&nbsp;&Delta;Y<sub>0</sub></p>]]></text> | E6: V5._Model | F6: 39.76 | G6: 59.64 | H6: -2 | I6: 47.72 | K6: 5
A7: penalité_Model | B7: 0.1 | C7: </questiontext> | E7: V6._Model | F7: 44.36 | G7: 66.54 | H7: -2 | I7: 65.5 | K7: 6 | M7: Vérification
A8: feedback_Model | B8: cest_une_droite | C8: =CONCATENATE(" <defaultgrade>",points_Model,"</defaultgrade><generalfeedback><text>",feedback_Model,"</text></generalfeedback><penalty>",penalty_Model,"</penalty><hidden>0</hidden>)") -> <defaultgrade>1</defaultgrade><generalfeedback><text>cest_une_droite</text></generalfeedback><penalty>0.1</penalty><hidden>0</hidden>) | E8: V7._Model | F8: 48.96 | G8: 73.44 | H8: -2 | I8: 55.6 | K8: 7 | M8: Pente | N8: Ord
A9: Cellule vides_Model | B9: =COUNTBLANK(B1:B8) -> 0 | C9: =CONCATENATE(" <idnumber>",idnumber_Model,"</idnumber><tags><tag><text>",Tag_Model,"</text></tag></tags>") -> <idnumber>210710-210621.92</idnumber><tags><tag><text>DroiteReg</text></tag></tags> | E9: V8._Model | F9: 53.56 | G9: 80.34 | H9: -2 | I9: 79.06 | K9: 8 | M9: =ABS(pente-F19) -> 0.61525 | N9: =ABS(F21-ordo) -> 4.740666667
A10: question format HTML_Model | B10: =CONCATENATE(" ",B19,B20,B21,B22,B23,B24,B25,B26,B27,B28,B29,B30,B31,B32,B33,B34,B35,B36,B37,B38,B39,B40,B41,B42,B43,B44,B45,B46,B47,B48,B49,B50,B51,B52,B53,B54,B55,B56,B57,B58,B59,B60,B61,B62,B63,B64,B65) -> <p>A la suite d'un grand nombre d'exp&eacute;riences, on obtient les r&eacute;sultats suivants :&nbsp;</p><table style=""border-collapse: collapse; width: 480pt;"" border=""0"" width=""640""cellspacing=""0"" cellpadding=""0""><tbody><tr style=""height: 15.0pt;""><td class=""xl64"" style=""height: 15.0pt; width: 60pt;"" width=""80"" height=""20"">x=</td><td class=""xl65""style=""border-left: none; width: 60pt;"" width=""80"">1</td><td class=""xl65"" style=""border-left: none; width: 60pt;"" width=""80"">2</td><td class=""xl65"" style=""border-left:none; width: 60pt;"" width=""80"">3</td><td class=""xl65"" style=""border-left: none; width: 60pt;"" width=""80"">4</td><td class=""xl65"" style=""border-left: none; width: 60pt;""width=""80"">5</td><td class=""xl65"" style=""border-left: none; width: 60pt;"" width=""80"">6</td><td class=""xl65"" style=""border-left: none; width: 60pt;"" width=""80"">7</td></tr><trstyle=""height: 15.75pt;""><td class=""xl66"" style=""height: 15.75pt; border-top: none;"" height=""21"">y=</td><td class=""xl67"" style=""border-top: none; border-left: none; width:60pt;"" width=""80"">29.54</td><td class=""xl67"" style=""border-top: none; border-left: none; width: 60pt;"" width=""80"">28.93</td><td class=""xl67"" style=""border-top: none; border-left:none; width: 60pt;"" width=""80"">40.45</td><td class=""xl67"" style=""border-top: none; border-left: none; width: 60pt;"" width=""80"">50.21</td><td class=""xl67"" style=""border-top:none; border-left: none; width: 60pt;"" width=""80"">47.72</td><td class=""xl67"" style=""border-top: none; border-left: none; width: 60pt;"" width=""80"">65.5</td><td class=""xl67""style=""border-top: none; border-left: none; width: 60pt;"" width=""80"">55.6</td></tr></tbody></table><p>&nbsp;</p><table style=""border-collapse: collapse; width: 600pt;"" border=""0""width=""800"" cellspacing=""0"" cellpadding=""0""><tbody><tr style=""height: 15.0pt;""><td class=""xl65"" style=""height: 15.0pt; width: 60pt;"" width=""80"" height=""20"">x=</td><tdclass=""xl66"" style=""border-left: none; width: 60pt;"" width=""80"">7</td><td class=""xl66"" style=""border-left: none; width: 60pt;"" width=""80"">8</td><td class=""xl66""style=""border-left: none; width: 60pt;"" width=""80"">9</td><td class=""xl66"" style=""border-left: none; width: 60pt;"" width=""80"">10</td><td class=""xl66"" style=""border-left:none; width: 60pt;"" width=""80"">11</td><td class=""xl66"" style=""border-left: none; width: 60pt;"" width=""80"">12</td><td class=""xl66"" style=""border-left: none; width: 60pt;""width=""80"">13</td><td class=""xl66"" style=""border-left: none; width: 60pt;"" width=""80"">14</td><td class=""xl67"" style=""border-left: none; width: 60pt;"" width=""80"">15</td></tr><trstyle=""height: 15.75pt;""><td class=""xl68"" style=""height: 15.75pt; border-top: none;"" height=""21"">y=</td><td class=""xl69"" style=""border-top: none; border-left: none; width:60pt;"" width=""80"">55.6</td><td class=""xl69"" style=""border-top: none; border-left: none; width: 60pt;"" width=""80"">79.06</td><td class=""xl69"" style=""border-top: none; border-left:none; width: 60pt;"" width=""80"">67.15</td><td class=""xl69"" style=""border-top: none; border-left: none; width: 60pt;"" width=""80"">74.1</td><td class=""xl69"" style=""border-top:none; border-left: none; width: 60pt;"" width=""80"">87.11</td><td class=""xl69"" style=""border-top: none; border-left: none; width: 60pt;"" width=""80"">103.22</td><td class=""xl69""style=""border-top: none; border-left: none; width: 60pt;"" width=""80"">81.25</td><td class=""xl69"" style=""border-top: none; border-left: none; width: 60pt;"" width=""80"">86.7</td><tdclass=""xl70"" style=""border-top: none; border-left: none; width: 60pt;"" width=""80"">104.99</td></tr></tbody></table><p>Les donn&eacute;es suivent une loi lin&eacute;aire, d&eacute;terminer:</p><p>&nbsp;</p><ul><li>la pente P: {1:NUMERICAL:=5.13E+00:5.13E-01}</li><li>L'incertitude sur la pente &Delta;P&nbsp;: {1:NUMERICAL:=4.99E-01:4.99E-02}</li><li>L'ordonn&eacute;e &agrave; l'origine Y<sub>0</sub> : {1:NUMERICAL:=2.57E+01:2.57E+00}</li><li>Son incertitude&nbsp;&Delta;Y<sub>0</sub> | C10: </question> | E10: V9._Model | F10: 58.16 | G10: 87.24 | H10: -2 | I10: 67.15 | K10: 9 | M10: =M9/pente -> 0.107 | N10: =N9/ordo -> 0.2262848051
A11: Repere Var Rep | B11: _Model | E11: V10._Model | F11: 62.76 | G11: 94.14 | H11: -2 | I11: 74.1 | K11: 10 | M11: =IF(ABS(F19-pente)>F20,"Mauvaise Stat","Ok") -> Mauvaise Stat | N11: =IF(ABS(F21-ordo)>F22,"Mauvaise Stat","Ok") -> Mauvaise Stat
A12: HTML File | B12: ModeleLineaire.HTML.txt | E12: V11._Model | F12: 67.36 | G12: 101.04 | H12: -2 | I12: 87.11 | K12: 11
A13: https://html-online.com/editor/ | E13: V12._Model | F13: 71.96 | G13: 107.94 | H13: -2 | I13: 103.22 | K13: 12
E14: V13._Model | F14: 76.56 | G14: 114.84 | H14: -2 | I14: 81.25 | K14: 13
C15: 17 | E15: V14._Model | F15: 81.16 | G15: 121.74 | H15: -2 | I15: 86.7 | K15: 14
A16: Var : | B16: # | C16: 15 | E16: V15._Model | F16: 85.76 | G16: 128.64 | H16: -2 | I16: 104.99 | K16: 15
A17: Res : | B17: $ | C17: 4 | M17: =LINEST(I2:I16,K2:K16,1,1) -> 5.13475 | N17: 25.69066667
F18: Cible_Model | G18: Toler_Model | H18: PointsQuestion_Model | M18: 0.4990908922 | N18: 4.537794847
B19: =CONCATENATE("<p>A la suite d'un grand nombre d'exp&eacute;riences, on obtient les r&eacute;sultats suivants :&nbsp;</p><table style=""""border-collapse: collapse; width: 480pt;"""" border=""""0"""" width=""""640""""") -> <p>A la suite d'un grand nombre d'exp&eacute;riences, on obtient les r&eacute;sultats suivants :&nbsp;</p><table style=""border-collapse: collapse; width: 480pt;"" border=""0"" width=""640"" | E19: R1.slope_Model | F19: =M17 -> 5.13475 | G19: =tolerance_Model*ValMini_Model -> 0.513475 | H19: 1 | I19: =CONCATENATE("{",PointsQuestion_Model,":NUMERICAL:=",TEXT(Cible_Model,"0.00E+00"),":",TEXT(Tolere_Model,"0.00E+00"),"}") -> {1:NUMERICAL:=5.13E+00:5.13E-01} | M19: 0.890615837 | N19: 8.351387982
B20: =CONCATENATE("cellspacing=""""0"""" cellpadding=""""0""""><tbody><tr style=""""height: 15.0pt;""""><td class=""""xl64"""" style=""""height: 15.0pt; width: 60pt;"""" width=""""80"""" height=""""20"""">x=</td><td class=""""xl65""""") -> cellspacing=""0"" cellpadding=""0""><tbody><tr style=""height: 15.0pt;""><td class=""xl64"" style=""height: 15.0pt; width: 60pt;"" width=""80"" height=""20"">x=</td><td class=""xl65"" | E20: R2.Dslope_Model | F20: =M18 -> 0.4990908922 | G20: =tolerance_Model*ValMini_Model -> 0.04990908922 | H20: 1 | I20: =CONCATENATE("{",PointsQuestion_Model,":NUMERICAL:=",TEXT(Cible_Model,"0.00E+00"),":",TEXT(Tolere_Model,"0.00E+00"),"}") -> {1:NUMERICAL:=4.99E-01:4.99E-02} | M20: 105.8471864 | N20: 13
B21: =CONCATENATE("style=""""border-left: none; width: 60pt;"""" width=""""80"""">1</td><td class=""""xl65"""" style=""""border-left: none; width: 60pt;"""" width=""""80"""">2</td><td class=""""xl65"""" style=""""border-left:") -> style=""border-left: none; width: 60pt;"" width=""80"">1</td><td class=""xl65"" style=""border-left: none; width: 60pt;"" width=""80"">2</td><td class=""xl65"" style=""border-left: | E21: R3.Ordo_Model | F21: =N17 -> 25.69066667 | G21: =tolerance_Model*ValMini_Model -> 2.569066667 | H21: 1 | I21: =CONCATENATE("{",PointsQuestion_Model,":NUMERICAL:=",TEXT(Cible_Model,"0.00E+00"),":",TEXT(Tolere_Model,"0.00E+00"),"}") -> {1:NUMERICAL:=2.57E+01:2.57E+00} | M21: 7382.384117 | N21: 906.6938558
B22: =CONCATENATE("none; width: 60pt;"""" width=""""80"""">3</td><td class=""""xl65"""" style=""""border-left: none; width: 60pt;"""" width=""""80"""">4</td><td class=""""xl65"""" style=""""border-left: none; width: 60pt;""""") -> none; width: 60pt;"" width=""80"">3</td><td class=""xl65"" style=""border-left: none; width: 60pt;"" width=""80"">4</td><td class=""xl65"" style=""border-left: none; width: 60pt;"" | E22: R4.DOrdon_Model | F22: =N18 -> 4.537794847 | G22: =tolerance_Model*ValMini_Model -> 0.4537794847 | H22: 1 | I22: =CONCATENATE("{",PointsQuestion_Model,":NUMERICAL:=",TEXT(Cible_Model,"0.00E+00"),":",TEXT(Tolere_Model,"0.00E+00"),"}") -> {1:NUMERICAL:=4.54E+00:4.54E-01}
B23: =CONCATENATE("width=""""80"""">5</td><td class=""""xl65"""" style=""""border-left: none; width: 60pt;"""" width=""""80"""">6</td><td class=""""xl65"""" style=""""border-left: none; width: 60pt;"""" width=""""80"""">7</td></tr><tr") -> width=""80"">5</td><td class=""xl65"" style=""border-left: none; width: 60pt;"" width=""80"">6</td><td class=""xl65"" style=""border-left: none; width: 60pt;"" width=""80"">7</td></tr><tr
B24: =CONCATENATE("style=""""height: 15.75pt;""""><td class=""""xl66"""" style=""""height: 15.75pt; border-top: none;"""" height=""""21"""">y=</td><td class=""""xl67"""" style=""""border-top: none; border-left: none; width:") -> style=""height: 15.75pt;""><td class=""xl66"" style=""height: 15.75pt; border-top: none;"" height=""21"">y=</td><td class=""xl67"" style=""border-top: none; border-left: none; width:
B25: =CONCATENATE("60pt;"""" width=""""80"""">",V1._Model,"</td><td class=""""xl67"""" style=""""border-top: none; border-left: none; width: 60pt;"""" width=""""80"""">",V2._Model,"</td><td class=""""xl67"""" style=""""border-top: none; border-left:") -> 60pt;"" width=""80"">29.54</td><td class=""xl67"" style=""border-top: none; border-left: none; width: 60pt;"" width=""80"">28.93</td><td class=""xl67"" style=""border-top: none; border-left:
B26: =CONCATENATE("none; width: 60pt;"""" width=""""80"""">",V3._Model,"</td><td class=""""xl67"""" style=""""border-top: none; border-left: none; width: 60pt;"""" width=""""80"""">",V4._Model,"</td><td class=""""xl67"""" style=""""border-top:") -> none; width: 60pt;"" width=""80"">40.45</td><td class=""xl67"" style=""border-top: none; border-left: none; width: 60pt;"" width=""80"">50.21</td><td class=""xl67"" style=""border-top:
B27: =CONCATENATE("none; border-left: none; width: 60pt;"""" width=""""80"""">",V5._Model,"</td><td class=""""xl67"""" style=""""border-top: none; border-left: none; width: 60pt;"""" width=""""80"""">",V6._Model,"</td><td class=""""xl67""""") -> none; border-left: none; width: 60pt;"" width=""80"">47.72</td><td class=""xl67"" style=""border-top: none; border-left: none; width: 60pt;"" width=""80"">65.5</td><td class=""xl67""
B28: =CONCATENATE("style=""""border-top: none; border-left: none; width: 60pt;"""" width=""""80"""">",V7._Model,"</td></tr></tbody></table><p>&nbsp;</p><table style=""""border-collapse: collapse; width: 600pt;"""" border=""""0""""") -> style=""border-top: none; border-left: none; width: 60pt;"" width=""80"">55.6</td></tr></tbody></table><p>&nbsp;</p><table style=""border-collapse: collapse; width: 600pt;"" border=""0"" | G28: x= | H28: 1 | I28: 2 | J28: 3 | K28: 4 | L28: 5 | M28: 6 | N28: 7
B29: =CONCATENATE("width=""""800"""" cellspacing=""""0"""" cellpadding=""""0""""><tbody><tr style=""""height: 15.0pt;""""><td class=""""xl65"""" style=""""height: 15.0pt; width: 60pt;"""" width=""""80"""" height=""""20"""">x=</td><td") -> width=""800"" cellspacing=""0"" cellpadding=""0""><tbody><tr style=""height: 15.0pt;""><td class=""xl65"" style=""height: 15.0pt; width: 60pt;"" width=""80"" height=""20"">x=</td><td | G29: y= | H29: =CONCATENATE("#",H28,"#") -> #1# | I29: =CONCATENATE("#",I28,"#") -> #2# | J29: #3# | K29: #4# | L29: #5# | M29: #6# | N29: #7#
B30: =CONCATENATE("class=""""xl66"""" style=""""border-left: none; width: 60pt;"""" width=""""80"""">7</td><td class=""""xl66"""" style=""""border-left: none; width: 60pt;"""" width=""""80"""">8</td><td class=""""xl66""""") -> class=""xl66"" style=""border-left: none; width: 60pt;"" width=""80"">7</td><td class=""xl66"" style=""border-left: none; width: 60pt;"" width=""80"">8</td><td class=""xl66""
B31: =CONCATENATE("style=""""border-left: none; width: 60pt;"""" width=""""80"""">9</td><td class=""""xl66"""" style=""""border-left: none; width: 60pt;"""" width=""""80"""">10</td><td class=""""xl66"""" style=""""border-left:") -> style=""border-left: none; width: 60pt;"" width=""80"">9</td><td class=""xl66"" style=""border-left: none; width: 60pt;"" width=""80"">10</td><td class=""xl66"" style=""border-left: | G31: x= | H31: 7 | I31: 8 | J31: 9 | K31: 10 | L31: 11 | M31: 12 | N31: 13 | O31: 14 | P31: 15
B32: =CONCATENATE("none; width: 60pt;"""" width=""""80"""">11</td><td class=""""xl66"""" style=""""border-left: none; width: 60pt;"""" width=""""80"""">12</td><td class=""""xl66"""" style=""""border-left: none; width: 60pt;""""") -> none; width: 60pt;"" width=""80"">11</td><td class=""xl66"" style=""border-left: none; width: 60pt;"" width=""80"">12</td><td class=""xl66"" style=""border-left: none; width: 60pt;"" | G32: y= | H32: =CONCATENATE("#",H31,"#") -> #7# | I32: =CONCATENATE("#",I31,"#") -> #8# | J32: #9# | K32: #10# | L32: #11# | M32: #12# | N32: #13# | O32: =CONCATENATE("#",O31,"#") -> #14# | P32: =CONCATENATE("#",P31,"#") -> #15#
B33: =CONCATENATE("width=""""80"""">13</td><td class=""""xl66"""" style=""""border-left: none; width: 60pt;"""" width=""""80"""">14</td><td class=""""xl67"""" style=""""border-left: none; width: 60pt;"""" width=""""80"""">15</td></tr><tr") -> width=""80"">13</td><td class=""xl66"" style=""border-left: none; width: 60pt;"" width=""80"">14</td><td class=""xl67"" style=""border-left: none; width: 60pt;"" width=""80"">15</td></tr><tr
B34: =CONCATENATE("style=""""height: 15.75pt;""""><td class=""""xl68"""" style=""""height: 15.75pt; border-top: none;"""" height=""""21"""">y=</td><td class=""""xl69"""" style=""""border-top: none; border-left: none; width:") -> style=""height: 15.75pt;""><td class=""xl68"" style=""height: 15.75pt; border-top: none;"" height=""21"">y=</td><td class=""xl69"" style=""border-top: none; border-left: none; width:
B35: =CONCATENATE("60pt;"""" width=""""80"""">",V7._Model,"</td><td class=""""xl69"""" style=""""border-top: none; border-left: none; width: 60pt;"""" width=""""80"""">",V8._Model,"</td><td class=""""xl69"""" style=""""border-top: none; border-left:") -> 60pt;"" width=""80"">55.6</td><td class=""xl69"" style=""border-top: none; border-left: none; width: 60pt;"" width=""80"">79.06</td><td class=""xl69"" style=""border-top: none; border-left:
B36: =CONCATENATE("none; width: 60pt;"""" width=""""80"""">",V9._Model,"</td><td class=""""xl69"""" style=""""border-top: none; border-left: none; width: 60pt;"""" width=""""80"""">",V10._Model,"</td><td class=""""xl69"""" style=""""border-top:") -> none; width: 60pt;"" width=""80"">67.15</td><td class=""xl69"" style=""border-top: none; border-left: none; width: 60pt;"" width=""80"">74.1</td><td class=""xl69"" style=""border-top:
B37: =CONCATENATE("none; border-left: none; width: 60pt;"""" width=""""80"""">",V11._Model,"</td><td class=""""xl69"""" style=""""border-top: none; border-left: none; width: 60pt;"""" width=""""80"""">",V12._Model,"</td><td class=""""xl69""""") -> none; border-left: none; width: 60pt;"" width=""80"">87.11</td><td class=""xl69"" style=""border-top: none; border-left: none; width: 60pt;"" width=""80"">103.22</td><td class=""xl69""
B38: =CONCATENATE("style=""""border-top: none; border-left: none; width: 60pt;"""" width=""""80"""">",V13._Model,"</td><td class=""""xl69"""" style=""""border-top: none; border-left: none; width: 60pt;"""" width=""""80"""">",V14._Model,"</td><td") -> style=""border-top: none; border-left: none; width: 60pt;"" width=""80"">81.25</td><td class=""xl69"" style=""border-top: none; border-left: none; width: 60pt;"" width=""80"">86.7</td><td
B39: =CONCATENATE("class=""""xl70"""" style=""""border-top: none; border-left: none; width: 60pt;"""" width=""""80"""">",V15._Model,"</td></tr></tbody></table><p>Les donn&eacute;es suivent une loi lin&eacute;aire, d&eacute;terminer") -> class=""xl70"" style=""border-top: none; border-left: none; width: 60pt;"" width=""80"">104.99</td></tr></tbody></table><p>Les donn&eacute;es suivent une loi lin&eacute;aire, d&eacute;terminer
B40: =CONCATENATE(":</p><p>&nbsp;</p><ul><li>la pente P: ",R1.slope_Model,"</li><li>L'incertitude sur la pente &Delta;P&nbsp;: ",R2.Dslope_Model,"</li><li>L'ordonn&eacute;e &agrave; l'origine Y<sub>0</sub> : ",R3.Ordo_Model,"</li><li>Son incertitude&nbsp;&Delta;Y<sub>0</sub>") -> :</p><p>&nbsp;</p><ul><li>la pente P: {1:NUMERICAL:=5.13E+00:5.13E-01}</li><li>L'incertitude sur la pente &Delta;P&nbsp;: {1:NUMERICAL:=4.99E-01:4.99E-02}</li><li>L'ordonn&eacute;e &agrave; l'origine Y<sub>0</sub> : {1:NUMERICAL:=2.57E+01:2.57E+00}</li><li>Son incertitude&nbsp;&Delta;Y<sub>0</sub>
C41: :</p><p>&nbsp;</p><ul><li>la pente P: ",R1.slope_Model,"</li><li>L'incertitude sur la pente &Delta;P&nbsp;: ",R2.Dslope_Model,"</li><li>L'ordonn&eacute;e &agrave; l'origine Y<sub>0</sub> : ",R3.Ordo_Model,"</li><li>Son incertitude&nbsp;&Delta;Y<sub>0</sub>

Sheet Stat
A1: catégorie_Stat | B1: Incert_Stat | C1: =CONCATENATE(" <!-- question XLQ ", titre_Stat, "-->") -> <!-- question XLQ Moy_et_Ecart--> | F1: Valeur Mini_Stat | G1: Valeur Maxi_Stat | H1: Sig. Digit_Stat | I1: Val Choix_Stat | M1: 1 | N1: =CONCATENATE("#",M1," ; ") -> #1 ;
A2: titre_Stat | B2: Moy_et_Ecart | C2: =CONCATENATE(" <question type=",CHAR(34),"category",CHAR(34),"><category><text>", categorie_Stat,"</text></category></question>)") -> <question type="category"><category><text>Incert_Stat</text></category></question>) | E2: V1._Stat | F2: 1 | G2: 10 | H2: -1 | I2: =RANDBETWEEN(ValMini_Stat*10^-SigDig_Stat, ValMaxi_Stat*10^-SigDig_Stat)/10^-SigDig_Stat -> 7.6 | M2: 2 | N2: =CONCATENATE("#",M2," ; ") -> #2 ;
A3: Tag_Stat | B3: M-STDV | C3: <question type="cloze"> | E3: V2._Stat | F3: 1 | G3: 20 | H3: -1 | I3: 4.5 | M3: 3 | N3: #3 ;
A4: idnumber_Stat | B4: =TEXT(NOW(),"aammjj-hhmmss.00") -> 210710-210621.92 | C4: =CONCATENATE(" <name><text>", titre_Stat, "</text></name>") -> <name><text>Moy_et_Ecart</text></name> | E4: V3._Stat | F4: 1 | G4: 30 | H4: -1 | I4: 23.4 | M4: 4 | N4: #4 ;
A5: points_Stat | B5: 1 | C5: <questiontext format="html"> | E5: V4._Stat | F5: 1 | G5: 100 | H5: 0 | I5: 97 | M5: 5 | N5: #5 ;
A6: tolérance_Stat | B6: 0.05 | C6: =CONCATENATE(" <text><![CDATA[<p>", question_Stat, "</p>]]></text>") -> <text><![CDATA[<p>Pour cet ensemble de valeurs : 7.6 ; 4.5 ; 23.4 ; 97 ; 8.9 ; 9.9 ; 10.9 ; 2 ; 30 ; 13 ; 9.2 ; 10 , calculez la moyenne : {1:NUMERICAL:=1.89E+01:9.43E-01} et l'ecart type : {1:NUMERICAL:=2.58E+01:1.29E+00}<p></p>]]></text> | E6: V5._Stat | F6: 6 | G6: 16 | H6: -1 | I6: 8.9 | M6: 6 | N6: #6 ;
A7: penalité_Stat | B7: 0.1 | C7: </questiontext> | E7: V6._Stat | F7: 1 | G7: 99 | H7: -1 | I7: 9.9 | M7: 7 | N7: #7 ;
A8: feedback_Stat | B8: Statistiques | C8: =CONCATENATE(" <defaultgrade>",points_Stat,"</defaultgrade><generalfeedback><text>",feedback_Stat,"</text></generalfeedback><penalty>",penalty_Stat,"</penalty><hidden>0</hidden>)") -> <defaultgrade>1</defaultgrade><generalfeedback><text>Statistiques</text></generalfeedback><penalty>0.1</penalty><hidden>0</hidden>) | E8: V7._Stat | F8: 1 | G8: 22 | H8: -1 | I8: 10.9 | M8: 8 | N8: #8 ;
A9: Cellule vides_Stat | B9: =COUNTBLANK(B1:B8) -> 0 | C9: =CONCATENATE(" <idnumber>",idnumber_Stat,"</idnumber><tags><tag><text>",Tag_Stat,"</text></tag></tags>") -> <idnumber>210710-210621.92</idnumber><tags><tag><text>M-STDV</text></tag></tags> | E9: V8._Stat | F9: 1 | G9: 74 | H9: 0 | I9: 2 | M9: 9 | N9: #9 ;
A10: question format HTML_Stat | B10: =CONCATENATE(C19, C20, C21, C22) -> Pour cet ensemble de valeurs : 7.6 ; 4.5 ; 23.4 ; 97 ; 8.9 ; 9.9 ; 10.9 ; 2 ; 30 ; 13 ; 9.2 ; 10 , calculez la moyenne : {1:NUMERICAL:=1.89E+01:9.43E-01} et l'ecart type : {1:NUMERICAL:=2.58E+01:1.29E+00}<p> | C10: </question> | E10: V9._Stat | F10: 5 | G10: 35 | H10: 1 | I10: 30 | M10: 10 | N10: #10 ;
A11: Repere Var Rep | B11: _Stat | E11: V10._Stat | F11: 9 | G11: 26 | H11: -1 | I11: 13 | M11: 11 | N11: #11 ;
A12: HTML File | B12: Stats.txt | E12: V11._Stat | F12: 3 | G12: 12 | H12: -1 | I12: 9.2 | M12: 12 | N12: #12 ;
A13: https://html-online.com/editor/ | E13: V12._Stat | F13: 4 | G13: 12 | H13: 0 | I13: 10
M14: =CONCATENATE("Pour cet ensemble de valeurs : ",N1,N2,N3,N4,N5,N6,N7,N8,N9,N10,N11,N12,", calculez la moyenne : $1 et l'ecart type : $2.") -> Pour cet ensemble de valeurs : #1 ; #2 ; #3 ; #4 ; #5 ; #6 ; #7 ; #8 ; #9 ; #10 ; #11 ; #12 ; , calculez la moyenne : $1 et l'ecart type : $2.
C15: 14 | F15: Cible_Stat | G15: Tolér_Stat | H15: Sig. Digit_Stat | M15: Pour cet ensemble de valeurs : #1 ; #2 ; #3 ; #4 ; #5 ; #6 ; #7 ; #8 ; #9 ; #10 ; #11 ; #12 , calculez la moyenne : $1 et l'ecart type : $2
A16: Var : | B16: # | C16: 12 | E16: R1.Moy_Stat | F16: =AVERAGE(I2:I13) -> 18.86666667 | G16: =tolerance_Stat*ValMini_Stat -> 0.9433333333 | H16: 1 | I16: =CONCATENATE("{1:NUMERICAL:=",TEXT(Cible_Stat,"0.00E+00"),":",TEXT(Tolere_Stat,"0.00E+00"),"}") -> {1:NUMERICAL:=1.89E+01:9.43E-01}
A17: Res : | B17: $ | C17: 2 | E17: R2.Ecart_Stat | F17: =STDEV(I2:I13) -> 25.79081349 | G17: =tolerance_Stat*ValMini_Stat -> 1.289540675 | H17: 1 | I17: =CONCATENATE("{1:NUMERICAL:=",TEXT(Cible_Stat,"0.00E+00"),":",TEXT(Tolere_Stat,"0.00E+00"),"}") -> {1:NUMERICAL:=2.58E+01:1.29E+00}
C19: =CONCATENATE("Pour cet ensemble de valeurs : ",V1._Stat," ; ",V2._Stat," ; ",V3._Stat," ;") -> Pour cet ensemble de valeurs : 7.6 ; 4.5 ; 23.4 ;
C20: =CONCATENATE(" ",V4._Stat," ; ",V5._Stat," ; ",V6._Stat," ; ",V7._Stat," ; ",V8._Stat," ; ",V9._Stat," ; ",V10._Stat," ;") -> 97 ; 8.9 ; 9.9 ; 10.9 ; 2 ; 30 ; 13 ;
C21: =CONCATENATE(" ",V11._Stat," ; ",V12._Stat," , calculez la moyenne : ",R1.Moy_Stat," et l'ecar") -> 9.2 ; 10 , calculez la moyenne : {1:NUMERICAL:=1.89E+01:9.43E-01} et l'ecar
C22: =CONCATENATE("t type : ",R2.Ecart_Stat,"<p>") -> t type : {1:NUMERICAL:=2.58E+01:1.29E+00}<p>

Sheet Expr
A1: catégorie_EPhy | B1: Expr_Phys | C1: =CONCATENATE(" <!-- question XLQ ", titre_EPhy, "-->") -> <!-- question XLQ Expr_Phys--> | F1: Valeur Mini | G1: Valeur Maxi | H1: Sig. Digit | I1: Val Choix | J1: ODG | P1: u
A2: titre_EPhy | B2: Expr_Phys | C2: =CONCATENATE(" <question type=",CHAR(34),"category",CHAR(34),"><category><text>", categorie_EPhy,"</text></category></question>)") -> <question type="category"><category><text>Expr_Phys</text></category></question>) | E2: VarA_EPhy | F2: =RAND()*10^(J2) -> 5.153977864e-07 | G2: =ROUND(F2,1-INT(LOG10(ABS(M2)))) -> 5.154e-07 | J2: -6 | L2: DeltA_EPhy | M2: =F2*10^(-3*(RAND()+0.1)) -> 1.794372529e-09 | N2: =ROUNDUP(M2,1-INT(LOG10(ABS(M2)))) -> 1.8e-09
A3: Tag_EPhy | B3: Ecriture_correcte | C3: <question type="cloze"> | E3: VarB_EPhy | F3: =RAND()*10^(J3) -> 0.0008164166285 | G3: =ROUND(F3,1-INT(LOG10(ABS(M3)))) -> 0.00081642 | J3: -3 | L3: DelB_EPhy | M3: =F3*10^(-3*(RAND()+0.1)) -> 7.850238194e-07 | N3: =ROUNDUP(M3,1-INT(LOG10(ABS(M3)))) -> 7.9e-07
A4: idnumber_EPhy | B4: =TEXT(NOW(),"aammjj-hhmmss.00") -> 210710-210621.92 | C4: =CONCATENATE(" <name><text>", titre_EPhy, "</text></name>") -> <name><text>Expr_Phys</text></name> | E4: VarC_EPhy | F4: =RAND()*10^(J4) -> 204.794177 | G4: =ROUND(F4,1-INT(LOG10(ABS(M4)))) -> 204.79 | J4: 3 | L4: DeltC_EPhy | M4: =F4*10^(-3*(RAND()+0.1)) -> 0.1519398513 | N4: =ROUNDUP(M4,1-INT(LOG10(ABS(M4)))) -> 0.16
A5: points_EPhy | B5: 1 | C5: <questiontext format="html"> | E5: VarD_EPhy | F5: =RAND()*10^(J5) -> 785519.6483 | G5: =ROUND(F5,1-INT(LOG10(ABS(M5)))) -> 790000 | J5: 6 | L5: DeltD_EPhy | M5: =F5*10^(-3*(RAND()+0.1)) -> 346335.569 | N5: =ROUNDUP(M5,1-INT(LOG10(ABS(M5)))) -> 350000
A6: tolérance_EPhy | B6: 0.03 | C6: =CONCATENATE(" <text><![CDATA[<p>", question_EPhy, "</p>]]></text>") -> <text><![CDATA[<p><p>Exprimer correctement ces r&eacute;sultats num&eacute;riques (valeur, incertitude et pr&eacute;fixe : f,n,u,m,-,k,M,G,T) :</p><ul><li>258190788648.125+/-21989541303.4943={1:NUMERICAL:=258:25.8}+/-{1:NUMERICAL:=22:2.2}{1:SHORTANSWER:=G}<BR>785519.648267663+/-346335.568954742={1:NUMERICAL:=790:79}+/-{1:NUMERICAL:=350:35}{1:SHORTANSWER:=k}<BR>204.794177031215+/-0.151939851270706={1:NUMERICAL:=204790:20479}+/-{1:NUMERICAL:=160:16}{1:SHORTANSWER:=m}<BR>0.000816416628477685+/-7.85023819402849E-07={1:NUMERICAL:=816420:81642}+/-{1:NUMERICAL:=790:79}{1:SHORTANSWER:=n}<BR>5.15397786422304E-07+/-1.79437252886068E-09={1:NUMERICAL:=515.4:51.54}+/-{1:NUMERICAL:=1.8:0.18}{1:SHORTANSWER:=n}<BR></li></ul></p>]]></text> | E6: VarE_EPhy | F6: =RAND()*10^(J6) -> 2.581907886e+11 | G6: =ROUND(F6,1-INT(LOG10(ABS(M6)))) -> 258000000000 | J6: 12 | L6: DeltE_EPhy | M6: =F6*10^(-3*(RAND()+0.1)) -> 2.19895413e+10 | N6: =ROUNDUP(M6,1-INT(LOG10(ABS(M6)))) -> 22000000000
A7: penalité_EPhy | B7: 0.1 | C7: </questiontext>
A8: feedback_EPhy | B8: revoir_le_cours | C8: =CONCATENATE(" <defaultgrade>",points_EPhy,"</defaultgrade><generalfeedback><text>",feedback_EPhy,"</text></generalfeedback><penalty>",penalty_EPhy,"</penalty><hidden>0</hidden>)") -> <defaultgrade>1</defaultgrade><generalfeedback><text>revoir_le_cours</text></generalfeedback><penalty>0.1</penalty><hidden>0</hidden>)
A9: Cellule vides_Ephys | B9: =COUNTBLANK(B1:B8) -> 0 | C9: =CONCATENATE(" <idnumber>",idnumber_EPhy,"</idnumber><tags><tag><text>",Tag_EPhy,"</text></tag></tags>") -> <idnumber>210710-210621.92</idnumber><tags><tag><text>Ecriture_correcte</text></tag></tags>
A10: question format HTML_EPhy | B10: =CONCATENATE("<p>Exprimer correctement ces r&eacute;sultats num&eacute;riques (valeur, incertitude et pr&eacute;fixe : f,n,u,m,-,k,M,G,T) :</p><ul><li>",TRIM(I20),"</li></ul>") -> <p>Exprimer correctement ces r&eacute;sultats num&eacute;riques (valeur, incertitude et pr&eacute;fixe : f,n,u,m,-,k,M,G,T) :</p><ul><li>258190788648.125+/-21989541303.4943={1:NUMERICAL:=258:25.8}+/-{1:NUMERICAL:=22:2.2}{1:SHORTANSWER:=G}<BR>785519.648267663+/-346335.568954742={1:NUMERICAL:=790:79}+/-{1:NUMERICAL:=350:35}{1:SHORTANSWER:=k}<BR>204.794177031215+/-0.151939851270706={1:NUMERICAL:=204790:20479}+/-{1:NUMERICAL:=160:16}{1:SHORTANSWER:=m}<BR>0.000816416628477685+/-7.85023819402849E-07={1:NUMERICAL:=816420:81642}+/-{1:NUMERICAL:=790:79}{1:SHORTANSWER:=n}<BR>5.15397786422304E-07+/-1.79437252886068E-09={1:NUMERICAL:=515.4:51.54}+/-{1:NUMERICAL:=1.8:0.18}{1:SHORTANSWER:=n}<BR></li></ul> | C10: </question>
A11: Repere Var Rep | B11: _Ephys
A12: HTML File | B12: Expression.HTML.txt
A13: https://html-online.com/editor/ | F13: Resltat X | G13: Delta X
E14: ResA_EPhy | F14: =CONCATENATE( IF(N2<1000000000000000,IF(N2>=1000000000000,CONCATENATE(ABS(G2)/1000000000000,""),""),""), IF(N2<1000000000000,IF(N2>=1000000000,CONCATENATE(ABS(G2)/1000000000,""),""),""), IF(N2<1000000000,IF(N2>=1000000,CONCATENATE(ABS(G2)/1000000,""),""),""), IF(N2<1000000,IF(N2>=1000,CONCATENATE(ABS(G2)/1000,""),""),""), IF(N2<1000,IF(N2>=1,CONCATENATE(ABS(G2)/1,""),""),""), IF(N2<1,IF(N2>=0.001,CONCATENATE(ABS(G2)/0.001,""),""),""), IF(N2<0.001,IF(N2>=0.000001,CONCATENATE(ABS(G2)/0.000001,""),""),""), IF(N2<0.000001,IF(N2>=0.000000001,CONCATENATE(ABS(G2)/0.000000001,""),""),""), IF(N2<0.000000001,IF(N2>=0.000000000001,CONCATENATE(ABS(G2)/0.000000000001,""),""),"")) -> 515.4 | G14: =CONCATENATE( IF(N2<1000000000000000,IF(N2>=1000000000000,CONCATENATE(ABS(N2)/1000000000000,""),""),""), IF(N2<1000000000000,IF(N2>=1000000000,CONCATENATE(ABS(N2)/1000000000,""),""),""), IF(N2<1000000000,IF(N2>=1000000,CONCATENATE(ABS(N2)/1000000,""),""),""), IF(N2<1000000,IF(N2>=1000,CONCATENATE(ABS(N2)/1000,""),""),""), IF(N2<1000,IF(N2>=1,CONCATENATE(ABS(N2)/1,""),""),""), IF(N2<1,IF(N2>=0.001,CONCATENATE(ABS(N2)/0.001,""),""),""), IF(N2<0.001,IF(N2>=0.000001,CONCATENATE(ABS(N2)/0.000001,""),""),""), IF(N2<0.000001,IF(N2>=0.000000001,CONCATENATE(ABS(N2)/0.000000001,""),""),""), IF(N2<0.000000001,IF(N2>=0.000000000001,CONCATENATE(ABS(N2)/0.000000000001,""),""),""), ) -> 1.8 | H14: =CONCATENATE( IF(N2<1000000000000000,IF(N2>=1000000000000,"T",""),""), IF(N2<1000000000000,IF(N2>=1000000000,"G",""),""), IF(N2<1000000000,IF(N2>=1000000,"M",""),""), IF(N2<1000000,IF(N2>=1000,"k",""),""), IF(N2<1000,IF(N2>=1,"-",""),""), IF(N2<1,IF(N2>=0.001,"m",""),""), IF(N2<0.001,IF(N2>=0.000001,"u",""),""), IF(N2<0.000001,IF(N2>=0.000000001,"n",""),""), IF(N2<0.000000001,IF(N2>=0.000000000001,"p",""),""), ) -> n | I14: =IF(ISNA(G14),"",TRIM(CONCATENATE(F2,"+/-",M2,"={1:NUMERICAL:=",F14,":",F14/10,"}+/-{1:NUMERICAL:=",G14,":",G14/10,"}{1:SHORTANSWER:=",H14,"}<BR>"))) -> 5.15397786422304E-07+/-1.79437252886068E-09={1:NUMERICAL:=515.4:51.54}+/-{1:NUMERICAL:=1.8:0.18}{1:SHORTANSWER:=n}<BR>
C15: 3 | E15: ResB_EPhy | F15: =CONCATENATE( IF(N3<1000000000000000,IF(N3>=1000000000000,CONCATENATE(ABS(G3)/1000000000000,""),""),""), IF(N3<1000000000000,IF(N3>=1000000000,CONCATENATE(ABS(G3)/1000000000,""),""),""), IF(N3<1000000000,IF(N3>=1000000,CONCATENATE(ABS(G3)/1000000,""),""),""), IF(N3<1000000,IF(N3>=1000,CONCATENATE(ABS(G3)/1000,""),""),""), IF(N3<1000,IF(N3>=1,CONCATENATE(ABS(G3)/1,""),""),""), IF(N3<1,IF(N3>=0.001,CONCATENATE(ABS(G3)/0.001,""),""),""), IF(N3<0.001,IF(N3>=0.000001,CONCATENATE(ABS(G3)/0.000001,""),""),""), IF(N3<0.000001,IF(N3>=0.000000001,CONCATENATE(ABS(G3)/0.000000001,""),""),""), IF(N3<0.000000001,IF(N3>=0.000000000001,CONCATENATE(ABS(G3)/0.000000000001,""),""),"")) -> 816420 | G15: =CONCATENATE( IF(N3<1000000000000000,IF(N3>=1000000000000,CONCATENATE(ABS(N3)/1000000000000,""),""),""), IF(N3<1000000000000,IF(N3>=1000000000,CONCATENATE(ABS(N3)/1000000000,""),""),""), IF(N3<1000000000,IF(N3>=1000000,CONCATENATE(ABS(N3)/1000000,""),""),""), IF(N3<1000000,IF(N3>=1000,CONCATENATE(ABS(N3)/1000,""),""),""), IF(N3<1000,IF(N3>=1,CONCATENATE(ABS(N3)/1,""),""),""), IF(N3<1,IF(N3>=0.001,CONCATENATE(ABS(N3)/0.001,""),""),""), IF(N3<0.001,IF(N3>=0.000001,CONCATENATE(ABS(N3)/0.000001,""),""),""), IF(N3<0.000001,IF(N3>=0.000000001,CONCATENATE(ABS(N3)/0.000000001,""),""),""), IF(N3<0.000000001,IF(N3>=0.000000000001,CONCATENATE(ABS(N3)/0.000000000001,""),""),""), ) -> 790 | H15: =CONCATENATE( IF(N3<1000000000000000,IF(N3>=1000000000000,"T",""),""), IF(N3<1000000000000,IF(N3>=1000000000,"G",""),""), IF(N3<1000000000,IF(N3>=1000000,"M",""),""), IF(N3<1000000,IF(N3>=1000,"k",""),""), IF(N3<1000,IF(N3>=1,"-",""),""), IF(N3<1,IF(N3>=0.001,"m",""),""), IF(N3<0.001,IF(N3>=0.000001,"u",""),""), IF(N3<0.000001,IF(N3>=0.000000001,"n",""),""), IF(N3<0.000000001,IF(N3>=0.000000000001,"p",""),""), ) -> n | I15: =IF(ISNA(G15),"",TRIM(CONCATENATE(F3,"+/-",M3,"={1:NUMERICAL:=",F15,":",F15/10,"}+/-{1:NUMERICAL:=",G15,":",G15/10,"}{1:SHORTANSWER:=",H15,"}<BR>"))) -> 0.000816416628477685+/-7.85023819402849E-07={1:NUMERICAL:=816420:81642}+/-{1:NUMERICAL:=790:79}{1:SHORTANSWER:=n}<BR>
A16: Var : | B16: # | C16: 0 | E16: ResC_EPhy | F16: =CONCATENATE( IF(N4<1000000000000000,IF(N4>=1000000000000,CONCATENATE(ABS(G4)/1000000000000,""),""),""), IF(N4<1000000000000,IF(N4>=1000000000,CONCATENATE(ABS(G4)/1000000000,""),""),""), IF(N4<1000000000,IF(N4>=1000000,CONCATENATE(ABS(G4)/1000000,""),""),""), IF(N4<1000000,IF(N4>=1000,CONCATENATE(ABS(G4)/1000,""),""),""), IF(N4<1000,IF(N4>=1,CONCATENATE(ABS(G4)/1,""),""),""), IF(N4<1,IF(N4>=0.001,CONCATENATE(ABS(G4)/0.001,""),""),""), IF(N4<0.001,IF(N4>=0.000001,CONCATENATE(ABS(G4)/0.000001,""),""),""), IF(N4<0.000001,IF(N4>=0.000000001,CONCATENATE(ABS(G4)/0.000000001,""),""),""), IF(N4<0.000000001,IF(N4>=0.000000000001,CONCATENATE(ABS(G4)/0.000000000001,""),""),"")) -> 204790 | G16: =CONCATENATE( IF(N4<1000000000000000,IF(N4>=1000000000000,CONCATENATE(ABS(N4)/1000000000000,""),""),""), IF(N4<1000000000000,IF(N4>=1000000000,CONCATENATE(ABS(N4)/1000000000,""),""),""), IF(N4<1000000000,IF(N4>=1000000,CONCATENATE(ABS(N4)/1000000,""),""),""), IF(N4<1000000,IF(N4>=1000,CONCATENATE(ABS(N4)/1000,""),""),""), IF(N4<1000,IF(N4>=1,CONCATENATE(ABS(N4)/1,""),""),""), IF(N4<1,IF(N4>=0.001,CONCATENATE(ABS(N4)/0.001,""),""),""), IF(N4<0.001,IF(N4>=0.000001,CONCATENATE(ABS(N4)/0.000001,""),""),""), IF(N4<0.000001,IF(N4>=0.000000001,CONCATENATE(ABS(N4)/0.000000001,""),""),""), IF(N4<0.000000001,IF(N4>=0.000000000001,CONCATENATE(ABS(N4)/0.000000000001,""),""),""), ) -> 160 | H16: =CONCATENATE( IF(N4<1000000000000000,IF(N4>=1000000000000,"T",""),""), IF(N4<1000000000000,IF(N4>=1000000000,"G",""),""), IF(N4<1000000000,IF(N4>=1000000,"M",""),""), IF(N4<1000000,IF(N4>=1000,"k",""),""), IF(N4<1000,IF(N4>=1,"-",""),""), IF(N4<1,IF(N4>=0.001,"m",""),""), IF(N4<0.001,IF(N4>=0.000001,"u",""),""), IF(N4<0.000001,IF(N4>=0.000000001,"n",""),""), IF(N4<0.000000001,IF(N4>=0.000000000001,"p",""),""), ) -> m | I16: =IF(ISNA(G16),"",TRIM(CONCATENATE(F4,"+/-",M4,"={1:NUMERICAL:=",F16,":",F16/10,"}+/-{1:NUMERICAL:=",G16,":",G16/10,"}{1:SHORTANSWER:=",H16,"}<BR>"))) -> 204.794177031215+/-0.151939851270706={1:NUMERICAL:=204790:20479}+/-{1:NUMERICAL:=160:16}{1:SHORTANSWER:=m}<BR>
A17: Res : | B17: $ | C17: 10 | E17: ResD_EPhy | F17: =CONCATENATE( IF(N5<1000000000000000,IF(N5>=1000000000000,CONCATENATE(ABS(G5)/1000000000000,""),""),""), IF(N5<1000000000000,IF(N5>=1000000000,CONCATENATE(ABS(G5)/1000000000,""),""),""), IF(N5<1000000000,IF(N5>=1000000,CONCATENATE(ABS(G5)/1000000,""),""),""), IF(N5<1000000,IF(N5>=1000,CONCATENATE(ABS(G5)/1000,""),""),""), IF(N5<1000,IF(N5>=1,CONCATENATE(ABS(G5)/1,""),""),""), IF(N5<1,IF(N5>=0.001,CONCATENATE(ABS(G5)/0.001,""),""),""), IF(N5<0.001,IF(N5>=0.000001,CONCATENATE(ABS(G5)/0.000001,""),""),""), IF(N5<0.000001,IF(N5>=0.000000001,CONCATENATE(ABS(G5)/0.000000001,""),""),""), IF(N5<0.000000001,IF(N5>=0.000000000001,CONCATENATE(ABS(G5)/0.000000000001,""),""),"")) -> 790 | G17: =CONCATENATE( IF(N5<1000000000000000,IF(N5>=1000000000000,CONCATENATE(ABS(N5)/1000000000000,""),""),""), IF(N5<1000000000000,IF(N5>=1000000000,CONCATENATE(ABS(N5)/1000000000,""),""),""), IF(N5<1000000000,IF(N5>=1000000,CONCATENATE(ABS(N5)/1000000,""),""),""), IF(N5<1000000,IF(N5>=1000,CONCATENATE(ABS(N5)/1000,""),""),""), IF(N5<1000,IF(N5>=1,CONCATENATE(ABS(N5)/1,""),""),""), IF(N5<1,IF(N5>=0.001,CONCATENATE(ABS(N5)/0.001,""),""),""), IF(N5<0.001,IF(N5>=0.000001,CONCATENATE(ABS(N5)/0.000001,""),""),""), IF(N5<0.000001,IF(N5>=0.000000001,CONCATENATE(ABS(N5)/0.000000001,""),""),""), IF(N5<0.000000001,IF(N5>=0.000000000001,CONCATENATE(ABS(N5)/0.000000000001,""),""),""), ) -> 350 | H17: =CONCATENATE( IF(N5<1000000000000000,IF(N5>=1000000000000,"T",""),""), IF(N5<1000000000000,IF(N5>=1000000000,"G",""),""), IF(N5<1000000000,IF(N5>=1000000,"M",""),""), IF(N5<1000000,IF(N5>=1000,"k",""),""), IF(N5<1000,IF(N5>=1,"-",""),""), IF(N5<1,IF(N5>=0.001,"m",""),""), IF(N5<0.001,IF(N5>=0.000001,"u",""),""), IF(N5<0.000001,IF(N5>=0.000000001,"n",""),""), IF(N5<0.000000001,IF(N5>=0.000000000001,"p",""),""), ) -> k | I17: =IF(ISNA(G17),"",TRIM(CONCATENATE(F5,"+/-",M5,"={1:NUMERICAL:=",F17,":",F17/10,"}+/-{1:NUMERICAL:=",G17,":",G17/10,"}{1:SHORTANSWER:=",H17,"}<BR>"))) -> 785519.648267663+/-346335.568954742={1:NUMERICAL:=790:79}+/-{1:NUMERICAL:=350:35}{1:SHORTANSWER:=k}<BR>
E18: ResE_EPhy | F18: =CONCATENATE( IF(N6<1000000000000000,IF(N6>=1000000000000,CONCATENATE(ABS(G6)/1000000000000,""),""),""), IF(N6<1000000000000,IF(N6>=1000000000,CONCATENATE(ABS(G6)/1000000000,""),""),""), IF(N6<1000000000,IF(N6>=1000000,CONCATENATE(ABS(G6)/1000000,""),""),""), IF(N6<1000000,IF(N6>=1000,CONCATENATE(ABS(G6)/1000,""),""),""), IF(N6<1000,IF(N6>=1,CONCATENATE(ABS(G6)/1,""),""),""), IF(N6<1,IF(N6>=0.001,CONCATENATE(ABS(G6)/0.001,""),""),""), IF(N6<0.001,IF(N6>=0.000001,CONCATENATE(ABS(G6)/0.000001,""),""),""), IF(N6<0.000001,IF(N6>=0.000000001,CONCATENATE(ABS(G6)/0.000000001,""),""),""), IF(N6<0.000000001,IF(N6>=0.000000000001,CONCATENATE(ABS(G6)/0.000000000001,""),""),"")) -> 258 | G18: =CONCATENATE( IF(N6<1000000000000000,IF(N6>=1000000000000,CONCATENATE(ABS(N6)/1000000000000,""),""),""), IF(N6<1000000000000,IF(N6>=1000000000,CONCATENATE(ABS(N6)/1000000000,""),""),""), IF(N6<1000000000,IF(N6>=1000000,CONCATENATE(ABS(N6)/1000000,""),""),""), IF(N6<1000000,IF(N6>=1000,CONCATENATE(ABS(N6)/1000,""),""),""), IF(N6<1000,IF(N6>=1,CONCATENATE(ABS(N6)/1,""),""),""), IF(N6<1,IF(N6>=0.001,CONCATENATE(ABS(N6)/0.001,""),""),""), IF(N6<0.001,IF(N6>=0.000001,CONCATENATE(ABS(N6)/0.000001,""),""),""), IF(N6<0.000001,IF(N6>=0.000000001,CONCATENATE(ABS(N6)/0.000000001,""),""),""), IF(N6<0.000000001,IF(N6>=0.000000000001,CONCATENATE(ABS(N6)/0.000000000001,""),""),""), ) -> 22 | H18: =CONCATENATE( IF(N6<1000000000000000,IF(N6>=1000000000000,"T",""),""), IF(N6<1000000000000,IF(N6>=1000000000,"G",""),""), IF(N6<1000000000,IF(N6>=1000000,"M",""),""), IF(N6<1000000,IF(N6>=1000,"k",""),""), IF(N6<1000,IF(N6>=1,"-",""),""), IF(N6<1,IF(N6>=0.001,"m",""),""), IF(N6<0.001,IF(N6>=0.000001,"u",""),""), IF(N6<0.000001,IF(N6>=0.000000001,"n",""),""), IF(N6<0.000000001,IF(N6>=0.000000000001,"p",""),""), ) -> G | I18: =IF(ISNA(G18),"",TRIM(CONCATENATE(F6,"+/-",M6,"={1:NUMERICAL:=",F18,":",F18/10,"}+/-{1:NUMERICAL:=",G18,":",G18/10,"}{1:SHORTANSWER:=",H18,"}<BR>"))) -> 258190788648.125+/-21989541303.4943={1:NUMERICAL:=258:25.8}+/-{1:NUMERICAL:=22:2.2}{1:SHORTANSWER:=G}<BR>
C19: <p>Exprimer correctement ces résultats numériques :</p><ul><li>#1 +/- #6 = $1 +/- $6 </li><li>#2 +/- #7 = $2 +/- $7</li><li>#3 +/- #8 = $3 +/- $8 </li><li>#4 +/- #9 = $4 +/- $9 </li><li>#5 +/- #10 = $5 +/- $10 </li></ul>
I20: =CONCATENATE(TRIM(ResE_EPhy),TRIM(ResD_EPhy),TRIM(ResC_EPhy),TRIM(ResB_EPhy),TRIM(ResA_EPhy)) -> 258190788648.125+/-21989541303.4943={1:NUMERICAL:=258:25.8}+/-{1:NUMERICAL:=22:2.2}{1:SHORTANSWER:=G}<BR>785519.648267663+/-346335.568954742={1:NUMERICAL:=790:79}+/-{1:NUMERICAL:=350:35}{1:SHORTANSWER:=k}<BR>204.794177031215+/-0.151939851270706={1:NUMERICAL:=204790:20479}+/-{1:NUMERICAL:=160:16}{1:SHORTANSWER:=m}<BR>0.000816416628477685+/-7.85023819402849E-07={1:NUMERICAL:=816420:81642}+/-{1:NUMERICAL:=790:79}{1:SHORTANSWER:=n}<BR>5.15397786422304E-07+/-1.79437252886068E-09={1:NUMERICAL:=515.4:51.54}+/-{1:NUMERICAL:=1.8:0.18}{1:SHORTANSWER:=n}<BR>

Sheet RDT_Malade
A1: catégorie_Mala | B1: RDT_mala | C1: =CONCATENATE(" <!-- question XLQ ", titre_Mala, "-->") -> <!-- question XLQ Posologie--> | F1: Valeur Mini_Mala | G1: Valeur Maxi_Mala | H1: Sig. Digit_Mala | I1: Val Choix_Mala
A2: titre_Mala | B2: Posologie | C2: =CONCATENATE(" <question type=",CHAR(34),"category",CHAR(34),"><category><text>", categorie_Mala,"</text></category></question>)") -> <question type="category"><category><text>RDT_mala</text></category></question>) | E2: V1._Mala | F2: 49 | G2: 91 | H2: 0 | I2: =RANDBETWEEN(ValMini_Mala*10^-SigDig_Mala, ValMaxi_Mala*10^-SigDig_Mala)/10^-SigDig_Mala -> 83 | J2: kg | K2: poids | L2: 90 | Q2: X = 10 × 90
A3: Tag_Mala | B3: malade | C3: <question type="cloze"> | E3: V2._Mala | F3: 10 | G3: 50 | H3: 1 | I3: =RANDBETWEEN(ValMini_Mala*10^-SigDig_Mala, ValMaxi_Mala*10^-SigDig_Mala)/10^-SigDig_Mala -> 50 | J3: mg/j/kg | K3: dose | L3: 10 | Q3: 1
A4: idnumber_Mala | B4: =TEXT(NOW(),"aammjj-hhmmss.00") -> 210710-210621.92 | C4: =CONCATENATE(" <name><text>", titre_Mala, "</text></name>") -> <name><text>Posologie</text></name> | E4: V3._Mala | F4: 50 | G4: 500 | H4: 2 | I4: =RANDBETWEEN(ValMini_Mala*10^-SigDig_Mala, ValMaxi_Mala*10^-SigDig_Mala)/10^-SigDig_Mala -> 200 | J4: mg | K4: masse dilu | L4: 300 | Q4: × 10
A5: points_Mala | B5: 1 | C5: <questiontext format="html"> | E5: V4._Mala | F5: 1 | G5: 30 | H5: 0 | I5: =RANDBETWEEN(ValMini_Mala*10^-SigDig_Mala, ValMaxi_Mala*10^-SigDig_Mala)/10^-SigDig_Mala -> 4 | J5: ml | K5: vol dilu | L5: 10 | Q5: 300
A6: tolérance_Mala | B6: 0.05 | C6: =CONCATENATE(" <text><![CDATA[<p>", question_Mala, "</p>]]></text>") -> <text><![CDATA[<p> <p>Un malade p&egrave;se 83kg. Pour se soigner, il doit absor-<br />ber chaque jour une dose de tonique cardiaque corres-<br />pondant &agrave; 5010mg par kilogramme de masse corporelle.<br />Ce toniqueest distribu&eacute; sous la forme de m&eacute;lange d&rsquo;eau<br />et de m&eacute;dicament, contenant 200300mg de m&eacute;dicament par<br />410ml de potion. Combien de millilitres de potion le ma-<br/>lade doit-il absorber quotidiennement ? R&eacute;ponse {1:NUMERICAL:=8.30E+01:4.15E+00}</p> On peut facilement vérifier sa réponse : {1:NUMERICAL:=8.30E+01:4.15E+00}mg par j et par kgX = 10 × 90</p>]]></text> | E6: V5._Mala | I6: =RANDBETWEEN(ValMini_Mala*10^-SigDig_Mala, ValMaxi_Mala*10^-SigDig_Mala)/10^-SigDig_Mala -> 0 | Q6: = 30ml On vériﬁe : 30ml ⇒
A7: penalité_Mala | B7: 0.1 | C7: </questiontext> | Q7: 900mg ⇒ 10mg/kg
A8: feedback_Mala | B8: Faites_attention | C8: =CONCATENATE(" <defaultgrade>",points_Mala,"</defaultgrade><generalfeedback><text>",feedback_Mala,"</text></generalfeedback><penalty>",penalty_Mala,"</penalty><hidden>0</hidden>)") -> <defaultgrade>1</defaultgrade><generalfeedback><text>Faites_attention</text></generalfeedback><penalty>0.1</penalty><hidden>0</hidden>) | F8: Cible_Mala | G8: Toler_Mala | H8: PointsQuestion_Mala
A9: Cellule vides_Mala | B9: =COUNTBLANK(B1:B8) -> 0 | C9: =CONCATENATE(" <idnumber>",idnumber_Mala,"</idnumber><tags><tag><text>",Tag_Mala,"</text></tag></tags>") -> <idnumber>210710-210621.92</idnumber><tags><tag><text>malade</text></tag></tags> | E9: R1._Mala | F9: =V2._Mala*V1._Mala*V4._Mala/V3._Mala -> 83 | G9: =tolerance_Mala*ValMini_Mala -> 4.15 | H9: 1 | I9: =CONCATENATE("{",PointsQuestion_Mala,":NUMERICAL:=",TEXT(Cible_Mala,"0.00E+00"),":",TEXT(Tolere_Mala,"0.00E+00"),"}") -> {1:NUMERICAL:=8.30E+01:4.15E+00}
A10: question format HTML_Mala | B10: =CONCATENATE(" ",B19,B20,B21,B22,Q2) -> <p>Un malade p&egrave;se 83kg. Pour se soigner, il doit absor-<br />ber chaque jour une dose de tonique cardiaque corres-<br />pondant &agrave; 5010mg par kilogramme de masse corporelle.<br />Ce toniqueest distribu&eacute; sous la forme de m&eacute;lange d&rsquo;eau<br />et de m&eacute;dicament, contenant 200300mg de m&eacute;dicament par<br />410ml de potion. Combien de millilitres de potion le ma-<br/>lade doit-il absorber quotidiennement ? R&eacute;ponse {1:NUMERICAL:=8.30E+01:4.15E+00}</p> On peut facilement vérifier sa réponse : {1:NUMERICAL:=8.30E+01:4.15E+00}mg par j et par kgX = 10 × 90 | C10: </question> | E10: R2._Mala | F10: =F9*V3._Mala/V4._Mala/V1._Mala -> 50 | G10: =tolerance_Mala*ValMini_Mala -> 2.5 | H10: 1 | I10: =CONCATENATE("{",PointsQuestion_Mala,":NUMERICAL:=",TEXT(Cible_Mala,"0.00E+00"),":",TEXT(Tolere_Mala,"0.00E+00"),"}") -> {1:NUMERICAL:=5.00E+01:2.50E+00}
A11: Repere Var Rep | B11: _Mala
A12: HTML File | B12: =CONCATENATE(categorie_Mala,"_HTML.txt") -> RDT_mala_HTML.txt
A13: https://html-online.com/editor/
C15: 7
A16: Var : | B16: # | C16: 5
A17: Res : | B17: $ | C17: 1
B19: =CONCATENATE("<p>Un malade p&egrave;se ",V1._Mala,"kg. Pour se soigner, il doit absor-<br />ber chaque jour une dose de tonique cardiaque corres-<br />pondant &agrave; ",V2._Mala,"10mg par kilogramme de masse corporelle.<br />Ce tonique") -> <p>Un malade p&egrave;se 83kg. Pour se soigner, il doit absor-<br />ber chaque jour une dose de tonique cardiaque corres-<br />pondant &agrave; 5010mg par kilogramme de masse corporelle.<br />Ce tonique | C19: <p>Un malade p&egrave;se #1#kg. Pour se soigner, il doit absor-<br />ber chaque jour une dose de tonique cardiaque corres-<br />pondant &agrave; #2#10mg par kilogramme de masse corporelle.<br />Ce tonique est distribu&eacute; sous la forme de m&eacute;lange d&rsquo;eau<br />et de m&eacute;dicament, contenant #3#300mg de m&eacute;dicament par<br />#4#10ml de potion. Combien de millilitres de potion le ma-<br />lade doit-il absorber quotidiennement ? R&eacute;ponse $1$</p>
B20: =CONCATENATE("est distribu&eacute; sous la forme de m&eacute;lange d&rsquo;eau<br />et de m&eacute;dicament, contenant ",V3._Mala,"300mg de m&eacute;dicament par<br />",V4._Mala,"10ml de potion. Combien de millilitres de potion le ma-<br") -> est distribu&eacute; sous la forme de m&eacute;lange d&rsquo;eau<br />et de m&eacute;dicament, contenant 200300mg de m&eacute;dicament par<br />410ml de potion. Combien de millilitres de potion le ma-<br
B21: =CONCATENATE("/>lade doit-il absorber quotidiennement ? R&eacute;ponse ",R1._Mala,"</p> On peut facilement vérifier sa réponse : ",R1._Mala, "mg par j et par kg") -> />lade doit-il absorber quotidiennement ? R&eacute;ponse {1:NUMERICAL:=8.30E+01:4.15E+00}</p> On peut facilement vérifier sa réponse : {1:NUMERICAL:=8.30E+01:4.15E+00}mg par j et par kg
B22: =CONCATENATE("") -> 

Sheet RDT_Jardin
A1: catégorie_Jard | B1: RDT_Jardin | C1: =CONCATENATE(" <!-- question XLQ ", titre_Jard, "-->") -> <!-- question XLQ Regle_de_3_jardin--> | F1: Valeur Mini_Jard | G1: Valeur Maxi_Jard | H1: Sig. Digit_Jard | I1: Val Choix_Jard | J1: t | K1: v
A2: titre_Jard | B2: Regle_de_3_jardin | C2: =CONCATENATE(" <question type=",CHAR(34),"category",CHAR(34),"><category><text>", categorie_Jard,"</text></category></question>)") -> <question type="category"><category><text>RDT_Jardin</text></category></question>) | E2: V1._Jard | F2: 1 | G2: 15 | H2: 0 | I2: =RANDBETWEEN(ValMini_Jard*10^-SigDig_Jard, ValMaxi_Jard*10^-SigDig_Jard)/10^-SigDig_Jard -> 6 | J2: =V1._Jard -> 6 | K2: =1/J2 -> 0.1666666667
A3: Tag_Jard | B3: Moyennes | C3: <question type="cloze"> | E3: V2._Jard | F3: 1 | G3: =V1._Jard+1 -> 7 | H3: 0 | I3: =V1._Jard+L3 -> 8 | J3: =V1._Jard+V2._Jard -> 14 | K3: =1/J3 -> 0.07142857143 | L3: =RANDBETWEEN(ValMini_Jard*10^-SigDig_Jard, ValMaxi_Jard*10^-SigDig_Jard)/10^-SigDig_Jard -> 2
A4: idnumber_Jard | B4: =TEXT(NOW(),"aammjj-hhmmss.00") -> 210710-210621.92 | C4: =CONCATENATE(" <name><text>", titre_Jard, "</text></name>") -> <name><text>Regle_de_3_jardin</text></name> | K4: =(K3+K2) -> 0.2380952381 | O4: A | P4: B | Q4: A+B | R4: A et B
A5: points_Jard | B5: 1 | C5: <questiontext format="html"> | F5: Cible_Jard | G5: Toler_Jard | H5: PointsQuestion_Jard | N5: t | O5: 1 | P5: 3 | Q5: 4 | R5: 2
A6: tolérance_Jard | B6: 0.05 | C6: =CONCATENATE(" <text><![CDATA[<p>", question_Jard, "</p>]]></text>") -> <text><![CDATA[<p> <p>Un jardinier met 6h pour b&ecirc;cher son potager. Son voisin lui met 8h pour la m&ecirc;me t&acirc;che. Combien de temps mettraient-il pour b&ecirc;cher les deux jardins s'il travailllent ensemble{1:NUMERICAL:=7.00E+00:3.50E-01} h.&nbsp;</p><p></p>]]></text> | E6: R1._Jard | F6: =AVERAGE(V1._Jard,V2._Jard) -> 7 | G6: =tolerance_Jard*ValMini_Jard -> 0.35 | H6: 1 | I6: =CONCATENATE("{",PointsQuestion_Jard,":NUMERICAL:=",TEXT(Cible_Jard,"0.00E+00"),":",TEXT(Tolere_Jard,"0.00E+00"),"}") -> {1:NUMERICAL:=7.00E+00:3.50E-01}
A7: penalité_Jard | B7: 0.1 | C7: </questiontext> | E7: R2._Jard | F7: =J3 -> 14 | G7: =tolerance_Jard*ValMini_Jard -> 0.7 | H7: 1 | I7: =CONCATENATE("{",PointsQuestion_Jard,":NUMERICAL:=",TEXT(Cible_Jard,"0.00E+00"),":",TEXT(Tolere_Jard,"0.00E+00"),"}") -> {1:NUMERICAL:=1.40E+01:7.00E-01}
A8: feedback_Jard | B8: Moyennes | C8: =CONCATENATE(" <defaultgrade>",points_Jard,"</defaultgrade><generalfeedback><text>",feedback_Jard,"</text></generalfeedback><penalty>",penalty_Jard,"</penalty><hidden>0</hidden>)") -> <defaultgrade>1</defaultgrade><generalfeedback><text>Moyennes</text></generalfeedback><penalty>0.1</penalty><hidden>0</hidden>)
A9: Cellule vides_Jard | B9: =COUNTBLANK(B1:B8) -> 0 | C9: =CONCATENATE(" <idnumber>",idnumber_Jard,"</idnumber><tags><tag><text>",Tag_Jard,"</text></tag></tags>") -> <idnumber>210710-210621.92</idnumber><tags><tag><text>Moyennes</text></tag></tags>
A10: question format HTML_Jard | B10: =CONCATENATE(" ",B19,B20,B21) -> <p>Un jardinier met 6h pour b&ecirc;cher son potager. Son voisin lui met 8h pour la m&ecirc;me t&acirc;che. Combien de temps mettraient-il pour b&ecirc;cher les deux jardins s'il travailllent ensemble{1:NUMERICAL:=7.00E+00:3.50E-01} h.&nbsp;</p><p> | C10: </question>
A11: Repere Var Rep | B11: _Jard
A12: HTML File | B12: =CONCATENATE(categorie_Jard,"_HTML.txt") -> RDT_Jardin_HTML.txt
A13: https://html-online.com/editor/ | I13: =AVERAGE(V1._Jard,V2._Jard) -> 7
C15: 4
A16: Var : | B16: # | C16: 2
A17: Res : | B17: $ | C17: 2
B19: =CONCATENATE("<p>Un jardinier met ",V1._Jard,"h pour b&ecirc;cher son potager. Son voisin lui met ",V2._Jard,"h pour la m&ecirc;me t&acirc;che. Combien de temps mettraient-il pour b&ecirc;cher les deux jardins s'il travailllent ensemble") -> <p>Un jardinier met 6h pour b&ecirc;cher son potager. Son voisin lui met 8h pour la m&ecirc;me t&acirc;che. Combien de temps mettraient-il pour b&ecirc;cher les deux jardins s'il travailllent ensemble | C19: <p>Un jardinier met $#1#h pour b&ecirc;cher son potager. Son voisin lui met #2#h pour la m&ecirc;me t&acirc;che. Combien de temps mettraient-il pour b&ecirc;cher les deux jardins s'il travailllent ensemble $1$, ou s&eacute;parement ? $2$h.&nbsp;</p>
B20: =CONCATENATE("",R1._Jard," h.&nbsp;</p><p>") -> {1:NUMERICAL:=7.00E+00:3.50E-01} h.&nbsp;</p><p>
B21: =CONCATENATE("") -> 
C41: ",R1._Jard,", ou s&eacute;parement ? ",R2._Jard,"h.&nbsp;</p><p>

Sheet RDT_Raisin
A1: catégorie_Raisin | B1: RDT_Raisin | C1: =CONCATENATE(" <!-- question XLQ ", titre_Raisin, "-->") -> <!-- question XLQ Raisin--> | F1: Valeur Mini_Raisin | G1: Valeur Maxi_Raisin | H1: Sig. Digit_Raisin | I1: Val Choix_Raisin
A2: titre_Raisin | B2: Raisin | C2: =CONCATENATE(" <question type=",CHAR(34),"category",CHAR(34),"><category><text>", categorie_Raisin,"</text></category></question>)") -> <question type="category"><category><text>RDT_Raisin</text></category></question>) | E2: V1._Raisin | F2: 1 | G2: 30 | H2: 0 | I2: =RANDBETWEEN(ValMini_Raisin*10^-SigDig_Raisin, ValMaxi_Raisin*10^-SigDig_Raisin)/10^-SigDig_Raisin -> 24 | J2: personnes dans l'équipe
A3: Tag_Raisin | B3: Vendange | C3: <question type="cloze"> | E3: V2._Raisin | F3: 70 | G3: 90 | H3: 1 | I3: =V1._Raisin*V3._Raisin*RANDBETWEEN(ValMini_Raisin*10^-SigDig_Raisin, ValMaxi_Raisin*10^-SigDig_Raisin)/10^-SigDig_Raisin/1000 -> 3.84 | J3: rammasse en tonnes | N3: ref | P3: Ici
A4: idnumber_Raisin | B4: =TEXT(NOW(),"aammjj-hhmmss.00") -> 210710-210621.92 | C4: =CONCATENATE(" <name><text>", titre_Raisin, "</text></name>") -> <name><text>Raisin</text></name> | E4: V3._Raisin | F4: 1 | G4: 10 | H4: 0 | I4: =RANDBETWEEN(ValMini_Raisin*10^-SigDig_Raisin, ValMaxi_Raisin*10^-SigDig_Raisin)/10^-SigDig_Raisin -> 2 | J4: h de cueillette | N4: 10 | O4: p | P4: =V2._Raisin*1000/(V1._Raisin*V3._Raisin) -> 80
A5: points_Raisin | B5: 1 | C5: <questiontext format="html"> | E5: V4._Raisin | F5: 1 | G5: 24 | H5: 0 | I5: =RANDBETWEEN(ValMini_Raisin*10^-SigDig_Raisin, ValMaxi_Raisin*10^-SigDig_Raisin)/10^-SigDig_Raisin -> 21 | J5: personne après | N5: 4 | O5: h
A6: tolérance_Raisin | B6: 0.05 | C6: =CONCATENATE(" <text><![CDATA[<p>", question_Raisin, "</p>]]></text>") -> <text><![CDATA[<p> <p>&nbsp;Une &eacute;quipe de 24 personnes a ramass&eacute;<br /> 3.84 tonnes de raisin en 2h. Si tout le monde ramasse de<br />la m&ecirc;me mani&egrave;re, quelle quantit&eacute; de raisin estr&eacute;colt&eacute;e<br />par 21 personnes en 29 jours de 8h ? R&eacute;ponse {1:NUMERICAL:=3.90E+02:1.95E+01}</p><p></p>]]></text> | E6: V5._Raisin | F6: 1 | G6: 30 | H6: 0 | I6: =RANDBETWEEN(ValMini_Raisin*10^-SigDig_Raisin, ValMaxi_Raisin*10^-SigDig_Raisin)/10^-SigDig_Raisin -> 29 | J6: jours | N6: 3.2 | O6: t
A7: penalité_Raisin | B7: 0.1 | C7: </questiontext> | E7: V6._Raisin | F7: 5 | G7: 9 | H7: 0 | I7: =RANDBETWEEN(ValMini_Raisin*10^-SigDig_Raisin, ValMaxi_Raisin*10^-SigDig_Raisin)/10^-SigDig_Raisin -> 8 | J7: heures
A8: feedback_Raisin | B8: _ | C8: =CONCATENATE(" <defaultgrade>",points_Raisin,"</defaultgrade><generalfeedback><text>",feedback_Raisin,"</text></generalfeedback><penalty>",penalty_Raisin,"</penalty><hidden>0</hidden>)") -> <defaultgrade>1</defaultgrade><generalfeedback><text>_</text></generalfeedback><penalty>0.1</penalty><hidden>0</hidden>) | N8: =1000*N6/N5/N4 -> 80 | O8: kg /pers. Heur
A9: Cellule vides_Raisin | B9: =COUNTBLANK(B1:B8) -> 0 | C9: =CONCATENATE(" <idnumber>",idnumber_Raisin,"</idnumber><tags><tag><text>",Tag_Raisin,"</text></tag></tags>") -> <idnumber>210710-210621.92</idnumber><tags><tag><text>Vendange</text></tag></tags> | F9: Cible_Raisin | G9: Toler_Raisin | H9: PointsQuestion_Raisin
A10: question format HTML_Raisin | B10: =CONCATENATE(" ",B19,B20,B21) -> <p>&nbsp;Une &eacute;quipe de 24 personnes a ramass&eacute;<br /> 3.84 tonnes de raisin en 2h. Si tout le monde ramasse de<br />la m&ecirc;me mani&egrave;re, quelle quantit&eacute; de raisin estr&eacute;colt&eacute;e<br />par 21 personnes en 29 jours de 8h ? R&eacute;ponse {1:NUMERICAL:=3.90E+02:1.95E+01}</p><p> | C10: </question> | E10: R1._Raisin | F10: =KgphpP*V4._Raisin*V5._Raisin*V6._Raisin/1000 -> 389.76 | G10: =tolerance_Raisin*ValMini_Raisin -> 19.488 | H10: 1 | I10: =CONCATENATE("{",PointsQuestion_Raisin,":NUMERICAL:=",TEXT(Cible_Raisin,"0.00E+00"),":",TEXT(Tolere_Raisin,"0.00E+00"),"}") -> {1:NUMERICAL:=3.90E+02:1.95E+01} | N10: avant | O10: après
A11: Repere Var Rep | B11: _Raisin | M11: Heure | N11: =V3._Raisin -> 2 | O11: =V5._Raisin*V6._Raisin -> 232
A12: HTML File | B12: =CONCATENATE(categorie_Raisin,"_HTML.txt") -> RDT_Raisin_HTML.txt | M12: personne | N12: =V1._Raisin -> 24 | O12: =V4._Raisin -> 21
A13: https://html-online.com/editor/ | M13: W | N13: =N12*N11 -> 48 | O13: =O12*O11 -> 4872
P14: =V2._Raisin*O13/N13 -> 389.76
C15: 8
A16: Var : | B16: # | C16: 6
A17: Res : | B17: $ | C17: 1
B19: =CONCATENATE("<p>&nbsp;Une &eacute;quipe de ",V1._Raisin," personnes a ramass&eacute;<br /> ",V2._Raisin," tonnes de raisin en ",V3._Raisin,"h. Si tout le monde ramasse de<br />la m&ecirc;me mani&egrave;re, quelle quantit&eacute; de raisin est") -> <p>&nbsp;Une &eacute;quipe de 24 personnes a ramass&eacute;<br /> 3.84 tonnes de raisin en 2h. Si tout le monde ramasse de<br />la m&ecirc;me mani&egrave;re, quelle quantit&eacute; de raisin est | C19: <p>&nbsp;Une &eacute;quipe de 10#1# personnes a ramass&eacute;<br />3,2 #2# tonnes de raisin en #3#4h. Si tout le monde ramasse de<br />la m&ecirc;me mani&egrave;re, quelle quantit&eacute; de raisin est r&eacute;colt&eacute;e<br />par #4# personnes en #5# jours de #6#h ? R&eacute;ponse $1$</p>
B20: =CONCATENATE("r&eacute;colt&eacute;e<br />par ",V4._Raisin," personnes en ",V5._Raisin," jours de ",V6._Raisin,"h ? R&eacute;ponse ",R1._Raisin,"</p><p>") -> r&eacute;colt&eacute;e<br />par 21 personnes en 29 jours de 8h ? R&eacute;ponse {1:NUMERICAL:=3.90E+02:1.95E+01}</p><p>
B21: =CONCATENATE("") -> 
C41: r&eacute;colt&eacute;e<br />par ",V4._Raisin," personnes en ",V5._Raisin," jours de ",V6._Raisin,"h ? R&eacute;ponse ",R1._Raisin,"</p><p>

Sheet RDT_Olives
A1: catégorie_Oliv | B1: RDT_Olives | C1: =CONCATENATE(" <!-- question XLQ ", titre_Oliv, "-->") -> <!-- question XLQ RDT_Olives_Oliv--> | F1: Valeur Mini_Oliv | G1: Valeur Maxi_Oliv | H1: Sig. Digit_Oliv | I1: Val Choix_Oliv
B2: RDT_Olives_Oliv | C2: =CONCATENATE(" <question type=",CHAR(34),"category",CHAR(34),"><category><text>", categorie_Oliv,"</text></category></question>)") -> <question type="category"><category><text>RDT_Olives</text></category></question>) | E2: V1._Oliv | F2: 150 | G2: 950 | H2: 1 | I2: =RANDBETWEEN(ValMini_Oliv*10^-SigDig_Oliv, ValMaxi_Oliv*10^-SigDig_Oliv)/10^-SigDig_Oliv -> 810
A3: Tag_Oliv | B3: RDT_Olives_Oliv | C3: <question type="cloze">
A4: idnumber_Oliv | B4: =TEXT(NOW(),"aammjj-hhmmss.00") -> 210710-210621.92 | C4: =CONCATENATE(" <name><text>", titre_Oliv, "</text></name>") -> <name><text>RDT_Olives_Oliv</text></name> | F4: Cible_Oliv | G4: Toler_Oliv | H4: PointsQuestion_Oliv
A5: points_Oliv | B5: 1 | C5: <questiontext format="html"> | E5: R1._Oliv | F5: =0.912*V1._Oliv*100/12/45 -> 136.8 | G5: =tolerance_Oliv*ValMini_Oliv -> 6.84 | H5: 1 | I5: =CONCATENATE("{",PointsQuestion_Oliv,":NUMERICAL:=",TEXT(Cible_Oliv,"0.00E+00"),":",TEXT(Tolere_Oliv,"0.00E+00"),"}") -> {1:NUMERICAL:=1.37E+02:6.84E+00}
A6: tolérance_Oliv | B6: 0.05 | C6: =CONCATENATE(" <text><![CDATA[<p>", question_Oliv, "</p>]]></text>") -> <text><![CDATA[<p> <p>Les olives donnent en moyenne 12% de leur poids d'huile. Un hectolitre d'olives<br />p&egrave;se 45 kg, et 1 litre d'huile p&egrave;se 912 grammes. Pour obtenir 810litres d'huile,<br />combien faut-ild'hectolitres d'olives ? R&eacute;ponse : {1:NUMERICAL:=1.37E+02:6.84E+00}</p><p></p>]]></text>
A7: penalité_Oliv | B7: 0.1 | C7: </questiontext>
A8: feedback_Oliv | B8: _ | C8: =CONCATENATE(" <defaultgrade>",points_Oliv,"</defaultgrade><generalfeedback><text>",feedback_Oliv,"</text></generalfeedback><penalty>",penalty_Oliv,"</penalty><hidden>0</hidden>)") -> <defaultgrade>1</defaultgrade><generalfeedback><text>_</text></generalfeedback><penalty>0.1</penalty><hidden>0</hidden>)
A9: Cellule vides_Oliv | B9: =COUNTBLANK(B1:B8) -> 0 | C9: =CONCATENATE(" <idnumber>",idnumber_Oliv,"</idnumber><tags><tag><text>",Tag_Oliv,"</text></tag></tags>") -> <idnumber>210710-210621.92</idnumber><tags><tag><text>RDT_Olives_Oliv</text></tag></tags>
A10: question format HTML_Oliv | B10: =CONCATENATE(" ",B19,B20,B21) -> <p>Les olives donnent en moyenne 12% de leur poids d'huile. Un hectolitre d'olives<br />p&egrave;se 45 kg, et 1 litre d'huile p&egrave;se 912 grammes. Pour obtenir 810litres d'huile,<br />combien faut-ild'hectolitres d'olives ? R&eacute;ponse : {1:NUMERICAL:=1.37E+02:6.84E+00}</p><p> | C10: </question>
A11: Repere Var Rep | B11: _Oliv
A12: HTML File | B12: =CONCATENATE(categorie_Oliv,"_HTML.txt") -> RDT_Olives_HTML.txt
A13: https://html-online.com/editor/
C15: 3
A16: Var : | B16: # | C16: 1
A17: Res : | B17: $ | C17: 1
B19: =CONCATENATE("<p>Les olives donnent en moyenne 12% de leur poids d'huile. Un hectolitre d'olives<br />p&egrave;se 45 kg, et 1 litre d'huile p&egrave;se 912 grammes. Pour obtenir ",V1._Oliv,"litres d'huile,<br />combien faut-il") -> <p>Les olives donnent en moyenne 12% de leur poids d'huile. Un hectolitre d'olives<br />p&egrave;se 45 kg, et 1 litre d'huile p&egrave;se 912 grammes. Pour obtenir 810litres d'huile,<br />combien faut-il | C19: <p>Les olives donnent en moyenne 12% de leur poids d'huile. Un hectolitre d'olives<br />p&egrave;se 45 kg, et 1 litre d'huile p&egrave;se 912 grammes. Pour obtenir #1#litres d'huile,<br />combien faut-il d'hectolitres d'olives ? R&eacute;ponse : $1$</p>
B20: =CONCATENATE("d'hectolitres d'olives ? R&eacute;ponse : ",R1._Oliv,"</p><p>") -> d'hectolitres d'olives ? R&eacute;ponse : {1:NUMERICAL:=1.37E+02:6.84E+00}</p><p>
B21: =CONCATENATE("") -> 
C41: d'hectolitres d'olives ? R&eacute;ponse : ",R1._Oliv,"</p><p>

Sheet RDT_Chevaux
A1: catégorie_Foin | B1: RDT_Chevaux | C1: =CONCATENATE(" <!-- question XLQ ", titre_Foin, "-->") -> <!-- question XLQ Chevaux_Foin--> | F1: Valeur Mini_Foin | G1: Valeur Maxi_Foin | H1: Sig. Digit_Foin | I1: Val Choix_Foin
B2: Chevaux_Foin | C2: =CONCATENATE(" <question type=",CHAR(34),"category",CHAR(34),"><category><text>", categorie_Foin,"</text></category></question>)") -> <question type="category"><category><text>RDT_Chevaux</text></category></question>) | E2: V0._Foin | F2: 5 | G2: 9 | H2: 0 | I2: =RANDBETWEEN(ValMini_Foin*10^-SigDig_Foin, ValMaxi_Foin*10^-SigDig_Foin)/10^-SigDig_Foin -> 8 | J2: kg/che/jour | K2: cachée
A3: Tag_Foin | B3: Chevaux_Foin | C3: <question type="cloze"> | E3: V1._Foin | F3: X | G3: X | H3: X | I3: =ROUND(V2._Foin*V3._Foin*I2/100,0) -> 67 | J3: Quintaux | K3: connu | L3: Calcul | M3: =100*V1._Foin/(V2._Foin*V3._Foin) -> 8.004778973 | N3: kg/che/jour
A4: idnumber_Foin | B4: =TEXT(NOW(),"aammjj-hhmmss.00") -> 210710-210621.92 | C4: =CONCATENATE(" <name><text>", titre_Foin, "</text></name>") -> <name><text>Chevaux_Foin</text></name> | E4: V2._Foin | F4: 4 | G4: 43 | H4: 0 | I4: =RANDBETWEEN(ValMini_Foin*10^-SigDig_Foin, ValMaxi_Foin*10^-SigDig_Foin)/10^-SigDig_Foin -> 27 | J4: Chevaux | K4: connu | L4: Ref | M4: =100*0.06493 -> 6.493
A5: points_Foin | B5: 1 | C5: <questiontext format="html"> | E5: V3._Foin | F5: 5 | G5: 35 | H5: 0 | I5: =RANDBETWEEN(ValMini_Foin*10^-SigDig_Foin, ValMaxi_Foin*10^-SigDig_Foin)/10^-SigDig_Foin -> 31 | J5: jours | K5: connu
A6: tolérance_Foin | B6: 0.05 | C6: =CONCATENATE(" <text><![CDATA[<p>", question_Foin, "</p>]]></text>") -> <text><![CDATA[<p> <p>Il faut 67 quintaux de foin pour nourrir 27 chevaux<br />pendant 31 jours ; combien la nourriture de 9 chevaux<br />pendant 6 jours exigera-t-elle de quintaux de foin ?&nbsp; {1:NUMERICAL:=4.32E+02:2.16E+01}&nbsp;</p><p><p>A</p><p>A quelle quantit&eacute; de foin par cheval et par jour cela correspond-il en kg ?{2:NUMERICAL:=8.00E+00:4.00E-01}</p><p>&nbsp;</p></p>]]></text> | E6: V4._Foin | F6: 1 | G6: 29 | H6: 0 | I6: =RANDBETWEEN(ValMini_Foin*10^-SigDig_Foin, ValMaxi_Foin*10^-SigDig_Foin)/10^-SigDig_Foin -> 9 | J6: Chevaux | K6: cherche
A7: penalité_Foin | B7: 0.1 | C7: </questiontext> | E7: V5._Foin | F7: 1 | G7: 52 | H7: 0 | I7: =RANDBETWEEN(ValMini_Foin*10^-SigDig_Foin, ValMaxi_Foin*10^-SigDig_Foin)/10^-SigDig_Foin -> 6 | J7: jours | K7: cherche
A8: feedback_Foin | B8: _Plus_il_y_a_de_chevaux_plus_il_faut_de_quintaux_;_plus_il_s_ecoule_de_jours_plus_il_faut_de_quintaux_:_la_question_est_donc_bien_une_regle_de_trois_composee._La_proportionnalite_est_veriﬁee. | C8: =CONCATENATE(" <defaultgrade>",points_Foin,"</defaultgrade><generalfeedback><text>",feedback_Foin,"</text></generalfeedback><penalty>",penalty_Foin,"</penalty><hidden>0</hidden>)") -> <defaultgrade>1</defaultgrade><generalfeedback><text>_Plus_il_y_a_de_chevaux_plus_il_faut_de_quintaux_;_plus_il_s_ecoule_de_jours_plus_il_faut_de_quintaux_:_la_question_est_donc_bien_une_regle_de_trois_composee._La_proportionnalite_est_veriﬁee.</text></generalfeedback><penalty>0.1</penalty><hidden>0</hidden>)
A9: Cellule vides_Foin | B9: =COUNTBLANK(B1:B8) -> 0 | C9: =CONCATENATE(" <idnumber>",idnumber_Foin,"</idnumber><tags><tag><text>",Tag_Foin,"</text></tag></tags>") -> <idnumber>210710-210621.92</idnumber><tags><tag><text>Chevaux_Foin</text></tag></tags> | F9: Cible_Foin | G9: Toler_Foin | H9: PointsQuestion_Foin
A10: question format HTML_Foin | B10: =CONCATENATE(" ",B19,B20,B21,B22) -> <p>Il faut 67 quintaux de foin pour nourrir 27 chevaux<br />pendant 31 jours ; combien la nourriture de 9 chevaux<br />pendant 6 jours exigera-t-elle de quintaux de foin ?&nbsp; {1:NUMERICAL:=4.32E+02:2.16E+01}&nbsp;</p><p><p>A</p><p>A quelle quantit&eacute; de foin par cheval et par jour cela correspond-il en kg ?{2:NUMERICAL:=8.00E+00:4.00E-01}</p><p>&nbsp;</p> | C10: </question> | E10: R1._Foin | F10: =M3*V4._Foin*V5._Foin -> 432.2580645 | G10: =tolerance_Foin*ValMini_Foin -> 21.61290323 | H10: 1 | I10: =CONCATENATE("{",PointsQuestion_Foin,":NUMERICAL:=",TEXT(Cible_Foin,"0.00E+00"),":",TEXT(Tolere_Foin,"0.00E+00"),"}") -> {1:NUMERICAL:=4.32E+02:2.16E+01}
A11: Repere Var Rep | B11: _Foin | E11: R2._Foin | F11: =M3 -> 8.004778973 | G11: =tolerance_Foin*ValMini_Foin -> 0.4002389486 | H11: 2 | I11: =CONCATENATE("{",PointsQuestion_Foin,":NUMERICAL:=",TEXT(Cible_Foin,"0.00E+00"),":",TEXT(Tolere_Foin,"0.00E+00"),"}") -> {2:NUMERICAL:=8.00E+00:4.00E-01}
A12: HTML File | B12: =CONCATENATE(categorie_Foin,"_HTML.txt") -> RDT_Chevaux_HTML.txt
A13: https://html-online.com/editor/
C15: 7
A16: Var : | B16: # | C16: 5
A17: Res : | B17: $ | C17: 2
B19: =CONCATENATE("<p>Il faut ",V1._Foin," quintaux de foin pour nourrir ",V2._Foin," chevaux<br />pendant ",V3._Foin," jours ; combien la nourriture de ",V4._Foin," chevaux<br />pendant ",V5._Foin," jours exigera-t-elle de quintaux de foin ?&nbsp; ",R1._Foin,"&nbsp;</p><p><p>A</p><p>A quelle quantit&eacute; de foin par cheval et par jour cela correspond-il en kg ?",R2._Foin,"</p><p>&nbsp;</p>") -> <p>Il faut 67 quintaux de foin pour nourrir 27 chevaux<br />pendant 31 jours ; combien la nourriture de 9 chevaux<br />pendant 6 jours exigera-t-elle de quintaux de foin ?&nbsp; {1:NUMERICAL:=4.32E+02:2.16E+01}&nbsp;</p><p><p>A</p><p>A quelle quantit&eacute; de foin par cheval et par jour cela correspond-il en kg ?{2:NUMERICAL:=8.00E+00:4.00E-01}</p><p>&nbsp;</p> | C19: <p>Il faut 15#1# quintaux de foin pour nourrir 11#2# chevaux<br />pendant #3#21 jours ; combien la nourriture de #4#17 chevaux<br />pendant #5#35 jours exigera-t-elle de quintaux de foin ?&nbsp; $1$&nbsp;</p>
C20: <p>A quelle quantit&eacute; de foin par cheval et par jours cela correspond-il en kg ? $2$</p>
B21: =CONCATENATE("") ->  | C21: <p>&nbsp;</p>
B22: =CONCATENATE("") -> 

Sheet RDT_Poules
A1: catégorie_Poule | B1: RDT_Poules | C1: =CONCATENATE(" <!-- question XLQ ", titre_Poule, "-->") -> <!-- question XLQ RDT_Poules_Poule--> | F1: Valeur Mini_Poule | G1: Valeur Maxi_Poule | H1: Sig. Digit_Poule | I1: Val Choix_Poule
B2: RDT_Poules_Poule | C2: =CONCATENATE(" <question type=",CHAR(34),"category",CHAR(34),"><category><text>", categorie_Poule,"</text></category></question>)") -> <question type="category"><category><text>RDT_Poules</text></category></question>) | E2: V1._Poule | F2: 2 | G2: 150 | H2: 0 | I2: =RANDBETWEEN(ValMini_Poule*10^-SigDig_Poule, ValMaxi_Poule*10^-SigDig_Poule)/10^-SigDig_Poule -> 6
A3: Tag_Poule | B3: RDT_Poules_Poule | C3: <question type="cloze"> | E3: V2._Poule | F3: 3 | G3: 39 | H3: 0 | I3: =RANDBETWEEN(ValMini_Poule*10^-SigDig_Poule, ValMaxi_Poule*10^-SigDig_Poule)/10^-SigDig_Poule -> 32
A4: idnumber_Poule | B4: =TEXT(NOW(),"aammjj-hhmmss.00") -> 210710-210621.92 | C4: =CONCATENATE(" <name><text>", titre_Poule, "</text></name>") -> <name><text>RDT_Poules_Poule</text></name>
A5: points_Poule | B5: 1 | C5: <questiontext format="html"> | F5: Cible_Poule | G5: Toler_Poule | H5: PointsQuestion_Poule
A6: tolérance_Poule | B6: 0.05 | C6: =CONCATENATE(" <text><![CDATA[<p>", question_Poule, "</p>]]></text>") -> <text><![CDATA[<p> <p>S'il faut une poule et demi pour pondre un oeuf et demi en un jour et demi, combien 6 poules pondront-elles d'oeufs en 32 jours ? {1:NUMERICAL:=1.28E+02:6.40E+00}</p><p><p>&nbsp;</p><p></p>]]></text> | E6: R1._Poule | F6: =V1._Poule*V2._Poule*2/3 -> 128 | G6: =tolerance_Poule*ValMini_Poule -> 6.4 | H6: 1 | I6: =CONCATENATE("{",PointsQuestion_Poule,":NUMERICAL:=",TEXT(Cible_Poule,"0.00E+00"),":",TEXT(Tolere_Poule,"0.00E+00"),"}") -> {1:NUMERICAL:=1.28E+02:6.40E+00}
A7: penalité_Poule | B7: 0.1 | C7: </questiontext>
A8: feedback_Poule | B8: _ | C8: =CONCATENATE(" <defaultgrade>",points_Poule,"</defaultgrade><generalfeedback><text>",feedback_Poule,"</text></generalfeedback><penalty>",penalty_Poule,"</penalty><hidden>0</hidden>)") -> <defaultgrade>1</defaultgrade><generalfeedback><text>_</text></generalfeedback><penalty>0.1</penalty><hidden>0</hidden>)
A9: Cellule vides_Poule | B9: =COUNTBLANK(B1:B8) -> 0 | C9: =CONCATENATE(" <idnumber>",idnumber_Poule,"</idnumber><tags><tag><text>",Tag_Poule,"</text></tag></tags>") -> <idnumber>210710-210621.92</idnumber><tags><tag><text>RDT_Poules_Poule</text></tag></tags>
A10: question format HTML_Poule | B10: =CONCATENATE(" ",B19,B20) -> <p>S'il faut une poule et demi pour pondre un oeuf et demi en un jour et demi, combien 6 poules pondront-elles d'oeufs en 32 jours ? {1:NUMERICAL:=1.28E+02:6.40E+00}</p><p><p>&nbsp;</p><p> | C10: </question>
A11: Repere Var Rep | B11: _Poule
A12: HTML File | B12: =CONCATENATE(categorie_Poule,"_HTML.txt") -> RDT_Poules_HTML.txt
A13: https://html-online.com/editor/
C15: 4
A16: Var : | B16: # | C16: 2
A17: Res : | B17: $ | C17: 1
B19: =CONCATENATE("<p>S'il faut une poule et demi pour pondre un oeuf et demi en un jour et demi, combien ",V1._Poule," poules pondront-elles d'oeufs en ",V2._Poule," jours ? ",R1._Poule,"</p><p><p>&nbsp;</p><p>") -> <p>S'il faut une poule et demi pour pondre un oeuf et demi en un jour et demi, combien 6 poules pondront-elles d'oeufs en 32 jours ? {1:NUMERICAL:=1.28E+02:6.40E+00}</p><p><p>&nbsp;</p><p> | C19: <p>S'il faut une poule et demi pour pondre un oeuf et demi en un jour et demi, combien #1# poules pondront-elles d'oeufs en #2# jours ? $1$</p>
B20: =CONCATENATE("") ->  | C20: <p>&nbsp;</p>
C41: <p>S'il faut une poule et demi pour pondre un oeuf et demi en un jour et demi, combien ",V1._Poule," poules pondront-elles d'oeufs en ",V2._Poule," jours ? ",R1._Poule,"</p><p><p>&nbsp;</p><p>

Sheet RDT_Desherbe
A1: catégorie_deshe | B1: RDT_Desherbe | C1: =CONCATENATE(" <!-- question XLQ ", titre_deshe, "-->") -> <!-- question XLQ RDT_Desherbe_deshe--> | F1: Valeur Mini_deshe | G1: Valeur Maxi_deshe | H1: Sig. Digit_deshe | I1: Val Choix_deshe
B2: RDT_Desherbe_deshe | C2: =CONCATENATE(" <question type=",CHAR(34),"category",CHAR(34),"><category><text>", categorie_deshe,"</text></category></question>)") -> <question type="category"><category><text>RDT_Desherbe</text></category></question>) | E2: V1._deshe | F2: 4 | G2: 15 | H2: 0 | I2: =RANDBETWEEN(ValMini_deshe*10^-SigDig_deshe, ValMaxi_deshe*10^-SigDig_deshe)/10^-SigDig_deshe -> 9 | J2: pers | Q2: V1._deshe | R2: 1 | S2: 15 | T2: 0 | U2: 4 | V2: pers
A3: Tag_deshe | B3: RDT_Desherbe_deshe | C3: <question type="cloze"> | E3: V2._deshe | F3: 2 | G3: 15 | H3: 0 | I3: =RANDBETWEEN(ValMini_deshe*10^-SigDig_deshe, ValMaxi_deshe*10^-SigDig_deshe)/10^-SigDig_deshe -> 3 | J3: j | K3: =V4._deshe*V5._deshe/(V1._deshe*V2._deshe*V3._deshe) -> 222.2238095 | L3: 1 | M3: m2/h/per | Q3: V2._deshe | R3: 2 | S3: 15 | T3: 0 | U3: 15 | V3: j
A4: idnumber_deshe | B4: =TEXT(NOW(),"aammjj-hhmmss.00") -> 210710-210621.92 | C4: =CONCATENATE(" <name><text>", titre_deshe, "</text></name>") -> <name><text>RDT_Desherbe_deshe</text></name> | E4: V3._deshe | F4: 6 | G4: 9 | H4: 0 | I4: =RANDBETWEEN(ValMini_deshe*10^-SigDig_deshe, ValMaxi_deshe*10^-SigDig_deshe)/10^-SigDig_deshe -> 7 | J4: h | Q4: V3._deshe | R4: 6 | S4: 9 | T4: 0 | U4: 9 | V4: h
A5: points_deshe | B5: 1 | C5: <questiontext format="html"> | E5: V4._deshe | F5: =20000/(V3._deshe*V2._deshe) -> 952.3809524 | G5: =4*F5 -> 3809.52381 | H5: 0 | I5: =RANDBETWEEN(ValMini_deshe*10^-SigDig_deshe, ValMaxi_deshe*10^-SigDig_deshe)/10^-SigDig_deshe -> 2029 | J5: long | K5: =1/K3 -> 0.004499967857 | L5: surface avant | M5: =V4._deshe*V5._deshe -> 42000.3 | N5: =M5/M6 -> 222.2238095 | Q5: V4._deshe | R5: 1.587301587 | S5: 6.349206349 | T5: 0 | U5: 3 | V5: long
A6: tolérance_deshe | B6: 0.05 | C6: =CONCATENATE(" <text><![CDATA[<p>", question_deshe, "</p>]]></text>") -> <text><![CDATA[<p> <p>9 jardiniers d&eacute;sherbent manuellement en&nbsp;3 jours de&nbsp;7 heures de travail un<br />champ de&nbsp;2029 m de long et&nbsp;20.7 m de large. Combien faudra-t-il, &agrave; ce rythme,<br/>de jours de&nbsp;20.7 heures &agrave;&nbsp;8 personnes pour faire&nbsp;8 &times;&nbsp;3317 m<sup>2</sup> de jardin ? {1:NUMERICAL:=4.90E+00:2.45E-01}</p><p></p>]]></text> | E6: V5._deshe | F6: 10 | G6: 30 | H6: 0 | I6: =ROUND(Vitesse_Desherbe*V4._deshe/(V3._deshe*V2._deshe*V1._deshe),1)+10 -> 20.7 | J6: large | L6: heure avant | M6: =V1._deshe*V2._deshe*V3._deshe -> 189 | Q6: V5._deshe | R6: 10 | S6: 30 | T6: 0 | U6: 0.006613756614 | V6: large
A7: penalité_deshe | B7: 0.1 | C7: </questiontext> | E7: V6._deshe | F7: =V3._deshe-2 -> 5 | G7: =V3._deshe+1 -> 8 | H7: 0 | I7: =RANDBETWEEN(ValMini_deshe*10^-SigDig_deshe, ValMaxi_deshe*10^-SigDig_deshe)/10^-SigDig_deshe -> 8 | J7: h | L7: surface après | M7: =V9._deshe*V8._deshe -> 69657 | N7: =M7/M8 -> 222.1205357 | Q7: V6._deshe | R7: 8 | S7: 8 | T7: 0 | U7: 8 | V7: h
A8: feedback_deshe | B8: _ | C8: =CONCATENATE(" <defaultgrade>",points_deshe,"</defaultgrade><generalfeedback><text>",feedback_deshe,"</text></generalfeedback><penalty>",penalty_deshe,"</penalty><hidden>0</hidden>)") -> <defaultgrade>1</defaultgrade><generalfeedback><text>_</text></generalfeedback><penalty>0.1</penalty><hidden>0</hidden>) | E8: V7._deshe | F8: =V1._deshe-3 -> 6 | G8: =V1._deshe+3 -> 12 | H8: 0 | I8: =RANDBETWEEN(ValMini_deshe*10^-SigDig_deshe, ValMaxi_deshe*10^-SigDig_deshe)/10^-SigDig_deshe -> 8 | J8: pers | L8: h après | M8: =V6._deshe*V7._deshe*F13 -> 313.6 | Q8: V7._deshe | R8: 10 | S8: 10 | T8: 0 | U8: 10 | V8: pers
A9: Cellule vides_deshe | B9: =COUNTBLANK(B1:B8) -> 0 | C9: =CONCATENATE(" <idnumber>",idnumber_deshe,"</idnumber><tags><tag><text>",Tag_deshe,"</text></tag></tags>") -> <idnumber>210710-210621.92</idnumber><tags><tag><text>RDT_Desherbe_deshe</text></tag></tags> | E9: V8._deshe | F9: =AVERAGE(F5,V4._deshe) -> 1490.690476 | G9: =G5 -> 3809.52381 | H9: 0 | I9: =RANDBETWEEN(ValMini_deshe*10^-SigDig_deshe, ValMaxi_deshe*10^-SigDig_deshe)/10^-SigDig_deshe -> 3317 | J9: long | Q9: V8._deshe | R9: 100 | S9: 300 | T9: 0 | U9: 179 | V9: long
A10: question format HTML_deshe | B10: =CONCATENATE(" ",B19,B20,B21,B22) -> <p>9 jardiniers d&eacute;sherbent manuellement en&nbsp;3 jours de&nbsp;7 heures de travail un<br />champ de&nbsp;2029 m de long et&nbsp;20.7 m de large. Combien faudra-t-il, &agrave; ce rythme,<br/>de jours de&nbsp;20.7 heures &agrave;&nbsp;8 personnes pour faire&nbsp;8 &times;&nbsp;3317 m<sup>2</sup> de jardin ? {1:NUMERICAL:=4.90E+00:2.45E-01}</p><p> | C10: </question> | E10: V9._deshe | F10: =V5._deshe-2 -> 18.7 | G10: =V5._deshe+2 -> 22.7 | H10: 0 | I10: =RANDBETWEEN(ValMini_deshe*10^-SigDig_deshe, ValMaxi_deshe*10^-SigDig_deshe)/10^-SigDig_deshe -> 21 | J10: large | Q10: V9._deshe | R10: 10 | S10: 30 | T10: 0 | U10: 21 | V10: large
A11: Repere Var Rep | B11: _deshe
A12: HTML File | B12: =CONCATENATE(categorie_deshe,"_HTML.txt") -> RDT_Desherbe_HTML.txt | F12: Cible_deshe | G12: Toler_deshe | H12: PointsQuestion_deshe
A13: https://html-online.com/editor/ | E13: R1._deshe | F13: =ROUND(V2._deshe*V1._deshe*V3._deshe/V6._deshe/V7._deshe*V8._deshe*V9._deshe/V4._deshe/V5._deshe,2) -> 4.9 | G13: =tolerance_deshe*ValMini_deshe -> 0.245 | H13: 1 | I13: =CONCATENATE("{",PointsQuestion_deshe,":NUMERICAL:=",TEXT(Cible_deshe,"0.00E+00"),":",TEXT(Tolere_deshe,"0.00E+00"),"}") -> {1:NUMERICAL:=4.90E+00:2.45E-01}
C15: 10 | M15: W real total ref | O15: =V1._deshe*V2._deshe*V3._deshe -> 189 | Q15: W real total 2 | R15: =V6._deshe*V7._deshe*F13 -> 313.6
A16: Var : | B16: # | C16: 8 | M16: W a faire ref | O16: =V5._deshe*V4._deshe -> 42000.3 | Q16: W a faire 2 | R16: =V9._deshe*V8._deshe -> 69657
A17: Res : | B17: $ | C17: 1 | O17: =O15/O16 -> 0.004499967857 | R17: =R15/R16 -> 0.004502060094 | T17: =IF(O17-R17<0.1,"OK !","Pb!!!!!!!!") -> OK !
B19: =CONCATENATE("<p>",V1._deshe," jardiniers d&eacute;sherbent manuellement en&nbsp;",V2._deshe," jours de&nbsp;",V3._deshe," heures de travail un<br />champ de&nbsp;",V4._deshe," m de long et&nbsp;",V5._deshe," m de large. Combien faudra-t-il, &agrave; ce rythme,<br") -> <p>9 jardiniers d&eacute;sherbent manuellement en&nbsp;3 jours de&nbsp;7 heures de travail un<br />champ de&nbsp;2029 m de long et&nbsp;20.7 m de large. Combien faudra-t-il, &agrave; ce rythme,<br | C19: <p>#1# jardiniers d&eacute;sherbent manuellement en&nbsp;#2# jours de&nbsp;#3# heures de travail un<br />champ de&nbsp;#4# m de long et&nbsp;#5# m de large. Combien faudra-t-il, &agrave; ce rythme,<br />de jours de&nbsp;#5# heures &agrave;&nbsp;#6# personnes pour faire&nbsp;#7# &times;&nbsp;#8# m<sup>2</sup> de jardin ? $1$</p>
B20: =CONCATENATE("/>de jours de&nbsp;",V5._deshe," heures &agrave;&nbsp;",V6._deshe," personnes pour faire&nbsp;",V7._deshe," &times;&nbsp;",V8._deshe," m<sup>2</sup> de jardin ? ",R1._deshe,"</p><p>") -> />de jours de&nbsp;20.7 heures &agrave;&nbsp;8 personnes pour faire&nbsp;8 &times;&nbsp;3317 m<sup>2</sup> de jardin ? {1:NUMERICAL:=4.90E+00:2.45E-01}</p><p>
B21: =CONCATENATE("") -> 
B22: =CONCATENATE("") ->  | K22: per | L22: j | M22: h | N22: L | O22: lar
K23: =V1._deshe -> 9 | L23: =V2._deshe -> 3 | M23: =V3._deshe -> 7 | N23: =V4._deshe -> 2029 | O23: =V5._deshe -> 20.7
K24: =V7._deshe -> 8 | L24: =ROUND(F13,2) -> 4.9 | M24: =V6._deshe -> 8 | N24: =V8._deshe -> 3317 | O24: =V9._deshe -> 21

Sheet RDT_Pont
A1: catégorie_pont | B1: RDT_Pont | C1: =CONCATENATE(" <!-- question XLQ ", titre_pont, "-->") -> <!-- question XLQ RDT_Pont_pont--> | F1: Valeur Mini_pont | G1: Valeur Maxi_pont | H1: Sig. Digit_pont | I1: Val Choix_pont
B2: RDT_Pont_pont | C2: =CONCATENATE(" <question type=",CHAR(34),"category",CHAR(34),"><category><text>", categorie_pont,"</text></category></question>)") -> <question type="category"><category><text>RDT_Pont</text></category></question>) | E2: V1._pont | F2: 0.1 | G2: 0.8 | H2: -1 | I2: =RANDBETWEEN(ValMini_pont*10^-SigDig_pont, ValMaxi_pont*10^-SigDig_pont)/10^-SigDig_pont -> 0.1 | J2: % du travail | L2: vitesse de travail | M2: =V1._pont/(V3._pont*V2._pont) -> 0.0003105590062 | N2: pont / #.h
A3: Tag_pont | B3: RDT_Pont_pont | C3: <question type="cloze"> | E3: V2._pont | F3: 7 | G3: 20 | H3: 0 | I3: =RANDBETWEEN(ValMini_pont*10^-SigDig_pont, ValMaxi_pont*10^-SigDig_pont)/10^-SigDig_pont -> 7 | J3: # hommes | L3: ressource | M3: =V3._pont*V2._pont/V1._pont -> 3220 | N3: #.H / pont
A4: idnumber_pont | B4: =TEXT(NOW(),"aammjj-hhmmss.00") -> 210710-210621.92 | C4: =CONCATENATE(" <name><text>", titre_pont, "</text></name>") -> <name><text>RDT_Pont_pont</text></name> | E4: V3._pont | F4: 5 | G4: 125 | I4: =RANDBETWEEN(ValMini_pont*10^-SigDig_pont, ValMaxi_pont*10^-SigDig_pont)/10^-SigDig_pont -> 46 | J4: temps
A5: points_pont | B5: 1 | C5: <questiontext format="html"> | E5: V4._pont | F5: 1 | G5: =V2._pont-3 -> 4 | I5: =RANDBETWEEN(ValMini_pont*10^-SigDig_pont, ValMaxi_pont*10^-SigDig_pont)/10^-SigDig_pont -> 2 | J5: congédiés | L5: rest
A6: tolérance_pont | B6: 0.05 | C6: =CONCATENATE(" <text><![CDATA[<p>", question_pont, "</p>]]></text>") -> <text><![CDATA[<p> <p>Pour paver 10% d&rsquo;un pont, 7 hommes ont pris 46 heures. Si 2 d&rsquo;entre eux sont cong&eacute;di&eacute;s, en combien de temps le pont&nbsp;sera-t-il termin&eacute; ?&nbsp; {1:NUMERICAL:=5.80E+02:2.90E+01}</p><p></p>]]></text> | E6: V5._pont | I6: =RANDBETWEEN(ValMini_pont*10^-SigDig_pont, ValMaxi_pont*10^-SigDig_pont)/10^-SigDig_pont -> 0
A7: penalité_pont | B7: 0.1 | C7: </questiontext>
A8: feedback_pont | B8: _ | C8: =CONCATENATE(" <defaultgrade>",points_pont,"</defaultgrade><generalfeedback><text>",feedback_pont,"</text></generalfeedback><penalty>",penalty_pont,"</penalty><hidden>0</hidden>)") -> <defaultgrade>1</defaultgrade><generalfeedback><text>_</text></generalfeedback><penalty>0.1</penalty><hidden>0</hidden>) | F8: Cible_pont | G8: Toler_pont | H8: PointsQuestion_pont
A9: Cellule vides_pont | B9: =COUNTBLANK(B1:B8) -> 0 | C9: =CONCATENATE(" <idnumber>",idnumber_pont,"</idnumber><tags><tag><text>",Tag_pont,"</text></tag></tags>") -> <idnumber>210710-210621.92</idnumber><tags><tag><text>RDT_Pont_pont</text></tag></tags> | E9: R1._pont | F9: =V3._pont*V2._pont/(V2._pont-V4._pont)*(1-V1._pont)/V1._pont -> 579.6 | G9: =tolerance_pont*ValMini_pont -> 28.98 | H9: 1 | I9: =CONCATENATE("{",PointsQuestion_pont,":NUMERICAL:=",TEXT(Cible_pont,"0.00E+00"),":",TEXT(Tolere_pont,"0.00E+00"),"}") -> {1:NUMERICAL:=5.80E+02:2.90E+01}
A10: question format HTML_pont | B10: =CONCATENATE(" ",B19,B20) -> <p>Pour paver 10% d&rsquo;un pont, 7 hommes ont pris 46 heures. Si 2 d&rsquo;entre eux sont cong&eacute;di&eacute;s, en combien de temps le pont&nbsp;sera-t-il termin&eacute; ?&nbsp; {1:NUMERICAL:=5.80E+02:2.90E+01}</p><p> | C10: </question>
A11: Repere Var Rep | B11: _pont
A12: HTML File | B12: =CONCATENATE(categorie_pont,"_HTML.txt") -> RDT_Pont_HTML.txt | K12: total à tous | L12: =V3._pont/V1._pont -> 460
A13: https://html-online.com/editor/ | K13: ratio bonhommes | L13: =L12*(1-V1._pont)*V2._pont/(V2._pont-V4._pont) -> 579.6
C15: 7
A16: Var : | B16: # | C16: 5
A17: Res : | B17: $ | C17: 1
B19: =CONCATENATE("<p>Pour paver ",100*V1._pont,"% d&rsquo;un pont, ",V2._pont," hommes ont pris ",V3._pont," heures. Si ",V4._pont," d&rsquo;entre eux sont cong&eacute;di&eacute;s, en combien de temps le pont&nbsp;sera-t-il termin&eacute; ?&nbsp; ",R1._pont,"</p><p>") -> <p>Pour paver 10% d&rsquo;un pont, 7 hommes ont pris 46 heures. Si 2 d&rsquo;entre eux sont cong&eacute;di&eacute;s, en combien de temps le pont&nbsp;sera-t-il termin&eacute; ?&nbsp; {1:NUMERICAL:=5.80E+02:2.90E+01}</p><p> | C19: <p>Pour paver #1# d&rsquo;un pont, #2# hommes ont pris #3# heures. Si #4# d&rsquo;entre eux sont cong&eacute;di&eacute;s, en combien de temps le pont&nbsp;sera-t-il termin&eacute; ?&nbsp; $1$</p>
B20: =CONCATENATE("") -> 
C41: <p>Pour paver ",V1._pont," d&rsquo;un pont, ",V2._pont," hommes ont pris ",V3._pont," heures. Si ",V4._pont," d&rsquo;entre eux sont cong&eacute;di&eacute;s, en combien de temps le pont&nbsp;sera-t-il termin&eacute; ?&nbsp; ",R1._pont,"</p><p>

Sheet RDT_Piscine
A1: catégorie_Pisc | B1: RDT_Piscine | C1: =CONCATENATE(" <!-- question XLQ ", titre_Pisc, "-->") -> <!-- question XLQ RDT_Piscine_Pisc--> | F1: Valeur Mini_Pisc | G1: Valeur Maxi_Pisc | H1: Sig. Digit_Pisc | I1: Val Choix_Pisc
B2: RDT_Piscine_Pisc | C2: =CONCATENATE(" <question type=",CHAR(34),"category",CHAR(34),"><category><text>", categorie_Pisc,"</text></category></question>)") -> <question type="category"><category><text>RDT_Piscine</text></category></question>) | E2: V1.Volume_Pisc | F2: 1234 | G2: 60000 | H2: -2 | I2: =RANDBETWEEN(ValMini_Pisc*10^-SigDig_Pisc, ValMaxi_Pisc*10^-SigDig_Pisc)/10^-SigDig_Pisc -> 7755.58 | J2: L | L2: débit rob
A3: Tag_Pisc | B3: RDT_Piscine_Pisc | C3: <question type="cloze"> | E3: V2.RobiAv_Pisc | F3: 1 | G3: 4 | H3: 0 | I3: =RANDBETWEEN(ValMini_Pisc*10^-SigDig_Pisc, ValMaxi_Pisc*10^-SigDig_Pisc)/10^-SigDig_Pisc -> 3 | J3: # robi
A4: idnumber_Pisc | B4: =TEXT(NOW(),"aammjj-hhmmss.00") -> 210710-210621.92 | C4: =CONCATENATE(" <name><text>", titre_Pisc, "</text></name>") -> <name><text>RDT_Piscine_Pisc</text></name> | E4: V3.TempsAv_Pisc | I4: =ROUND(V1.Volume_Pisc/K6,0) -> 9 | J4: H
A5: points_Pisc | B5: 1 | C5: <questiontext format="html"> | E5: V4.RobiAp_Pisc | F5: =V2.RobiAv_Pisc -> 3 | G5: =F5+4 -> 7 | H5: 1 | I5: =V2.RobiAv_Pisc+RANDBETWEEN(F5,G5) -> 7 | J5: #robi
A6: tolérance_Pisc | B6: 0.05 | C6: =CONCATENATE(" <text><![CDATA[<p>", question_Pisc, "</p>]]></text>") -> <text><![CDATA[<p> <p>Luc vient de s&rsquo;acheter une piscine qui contient 7755.58 litres d&rsquo;eau. Un ami lui a dit que s&rsquo;il pouvait se brancher sur 3 robinets, il remplirait sa piscine&nbsp;en 9 heures. Avec la collaboration de ses voisins, il pense pouvoir brancher 7 robinets. Combien de temps lui faudra-t-il pour remplir sa&nbsp;piscine ? {1:NUMERICAL:=3.86E+00:1.93E-01}</p><p></p>]]></text> | E6: V4.Debit_Pisc | F6: 3 | G6: 15 | H6: 0 | I6: =RANDBETWEEN(ValMini_Pisc*10^-SigDig_Pisc, ValMaxi_Pisc*10^-SigDig_Pisc)/10^-SigDig_Pisc -> 15 | J6: L/min | K6: =V4.Debit_Pisc*60 -> 900 | L6: L/h
A7: penalité_Pisc | B7: 0.1 | C7: </questiontext>
A8: feedback_Pisc | B8: _ | C8: =CONCATENATE(" <defaultgrade>",points_Pisc,"</defaultgrade><generalfeedback><text>",feedback_Pisc,"</text></generalfeedback><penalty>",penalty_Pisc,"</penalty><hidden>0</hidden>)") -> <defaultgrade>1</defaultgrade><generalfeedback><text>_</text></generalfeedback><penalty>0.1</penalty><hidden>0</hidden>) | F8: Cible_Pisc | G8: Toler_Pisc | H8: PointsQuestion_Pisc
A9: Cellule vides_Pisc | B9: =COUNTBLANK(B1:B8) -> 0 | C9: =CONCATENATE(" <idnumber>",idnumber_Pisc,"</idnumber><tags><tag><text>",Tag_Pisc,"</text></tag></tags>") -> <idnumber>210710-210621.92</idnumber><tags><tag><text>RDT_Piscine_Pisc</text></tag></tags> | E9: R1.TempsAp_Pisc | F9: =V3.TempsAv_Pisc*V2.RobiAv_Pisc/V4.RobiAp_Pisc -> 3.857142857 | G9: =tolerance_Pisc*ValMini_Pisc -> 0.1928571429 | H9: 1 | I9: =CONCATENATE("{",PointsQuestion_Pisc,":NUMERICAL:=",TEXT(Cible_Pisc,"0.00E+00"),":",TEXT(Tolere_Pisc,"0.00E+00"),"}") -> {1:NUMERICAL:=3.86E+00:1.93E-01}
A10: question format HTML_Pisc | B10: =CONCATENATE(" ",B19,B20,B21,B22) -> <p>Luc vient de s&rsquo;acheter une piscine qui contient 7755.58 litres d&rsquo;eau. Un ami lui a dit que s&rsquo;il pouvait se brancher sur 3 robinets, il remplirait sa piscine&nbsp;en 9 heures. Avec la collaboration de ses voisins, il pense pouvoir brancher 7 robinets. Combien de temps lui faudra-t-il pour remplir sa&nbsp;piscine ? {1:NUMERICAL:=3.86E+00:1.93E-01}</p><p> | C10: </question>
A11: Repere Var Rep | B11: _Pisc
A12: HTML File | B12: =CONCATENATE(categorie_Pisc,"_HTML.txt") -> RDT_Piscine_HTML.txt
A13: https://html-online.com/editor/
C15: 6
A16: Var : | B16: # | C16: 4
A17: Res : | B17: $ | C17: 1
B19: =CONCATENATE("<p>Luc vient de s&rsquo;acheter une piscine qui contient ",V1.Volume_Pisc," litres d&rsquo;eau. Un ami lui a dit que s&rsquo;il pouvait se brancher sur ",V2.RobiAv_Pisc," robinets, il remplirait sa piscine&nbsp;en ",V3.TempsAv_Pisc," heures. Avec ") -> <p>Luc vient de s&rsquo;acheter une piscine qui contient 7755.58 litres d&rsquo;eau. Un ami lui a dit que s&rsquo;il pouvait se brancher sur 3 robinets, il remplirait sa piscine&nbsp;en 9 heures. Avec | C19: <p>Luc vient de s&rsquo;acheter une piscine qui contient #1# litres d&rsquo;eau. Un ami lui a dit que s&rsquo;il pouvait se brancher sur #2# robinets, il remplirait sa piscine&nbsp;en #3# heures. Avec la collaboration de ses voisins, il pense pouvoir se brancher sur #4# robinets. Combien de temps lui faudra-t-il pour remplir sa&nbsp;piscine ? $1$</p>
B20: =CONCATENATE("la collaboration de ses voisins, il pense pouvoir brancher ",V4.RobiAp_Pisc," robinets. Combien de temps lui faudra-t-il pour remplir sa&nbsp;piscine ? ",R1.TempsAp_Pisc,"</p><p>") -> la collaboration de ses voisins, il pense pouvoir brancher 7 robinets. Combien de temps lui faudra-t-il pour remplir sa&nbsp;piscine ? {1:NUMERICAL:=3.86E+00:1.93E-01}</p><p>
B21: =CONCATENATE("") -> 
B22: =CONCATENATE("") -> 

Sheet RDT_Tempete
A1: catégorie_tempete | B1: RDT_Tempete | C1: =CONCATENATE(" <!-- question XLQ ", titre_tempete, "-->") -> <!-- question XLQ RDt_Tempete_tempete--> | F1: Valeur Mini_tempete | G1: Valeur Maxi_tempete | H1: Sig. Digit_tempete | I1: Val Choix_tempete
B2: RDt_Tempete_tempete | C2: =CONCATENATE(" <question type=",CHAR(34),"category",CHAR(34),"><category><text>", categorie_tempete,"</text></category></question>)") -> <question type="category"><category><text>RDT_Tempete</text></category></question>) | E2: V1._tempete | F2: 9 | G2: 30 | H2: 1 | I2: =RANDBETWEEN(ValMini_tempete*10^-SigDig_tempete, ValMaxi_tempete*10^-SigDig_tempete)/10^-SigDig_tempete -> 30 | J2: Vitesse neige
A3: Tag_tempete | B3: RDt_Tempete_tempete | C3: <question type="cloze"> | E3: V2._tempete | F3: 7 | G3: 12 | H3: 0 | I3: =RANDBETWEEN(ValMini_tempete*10^-SigDig_tempete, ValMaxi_tempete*10^-SigDig_tempete)/10^-SigDig_tempete -> 8 | J3: temps
A4: idnumber_tempete | B4: =TEXT(NOW(),"aammjj-hhmmss.00") -> 210710-210621.92 | C4: =CONCATENATE(" <name><text>", titre_tempete, "</text></name>") -> <name><text>RDt_Tempete_tempete</text></name> | E4: V3._tempete | I4: =ROUND(1/(1+V5._tempete/V2._tempete*V4._tempete/V1._tempete),2) -> 0.36 | J4: % livrai
A5: points_tempete | B5: 1 | C5: <questiontext format="html"> | E5: V4._tempete | F5: 55 | G5: 75 | H5: 0 | I5: =RANDBETWEEN(ValMini_tempete*10^-SigDig_tempete, ValMaxi_tempete*10^-SigDig_tempete)/10^-SigDig_tempete -> 55 | J5: vitesse normale
A6: tolérance_tempete | B6: 0.05 | C6: =CONCATENATE(" <text><![CDATA[<p>", question_tempete, "</p>]]></text>") -> <text><![CDATA[<p> <p>Lors d&rsquo;une temp&ecirc;te de neige, un camionneur a roul&eacute; &agrave; 30km/h de moyenne pendant 8 heures et n'a fait que 36% de sa livraison. En conditions normales il roule &agrave; 55km/h. En combien de temps fait-il le&nbsp;trajet ?&nbsp; normalement ? {1:NUMERICAL:=1.21E+01:6.06E-01}</p><p></p>]]></text> | E6: V5._tempete | F6: 4 | G6: 8 | H6: -1 | I6: =RANDBETWEEN(ValMini_tempete*10^-SigDig_tempete, ValMaxi_tempete*10^-SigDig_tempete)/10^-SigDig_tempete -> 7.9 | J6: réponse cachée
A7: penalité_tempete | B7: 0.1 | C7: </questiontext>
A8: feedback_tempete | B8: _ | C8: =CONCATENATE(" <defaultgrade>",points_tempete,"</defaultgrade><generalfeedback><text>",feedback_tempete,"</text></generalfeedback><penalty>",penalty_tempete,"</penalty><hidden>0</hidden>)") -> <defaultgrade>1</defaultgrade><generalfeedback><text>_</text></generalfeedback><penalty>0.1</penalty><hidden>0</hidden>) | F8: Cible_tempete | G8: Toler_tempete | H8: PointsQuestion_tempete
A9: Cellule vides_tempete | B9: =COUNTBLANK(B1:B8) -> 0 | C9: =CONCATENATE(" <idnumber>",idnumber_tempete,"</idnumber><tags><tag><text>",Tag_tempete,"</text></tag></tags>") -> <idnumber>210710-210621.92</idnumber><tags><tag><text>RDt_Tempete_tempete</text></tag></tags> | E9: R1._tempete | F9: =V2._tempete*V1._tempete/(V4._tempete*V3._tempete) -> 12.12121212 | G9: =tolerance_tempete*ValMini_tempete -> 0.6060606061 | H9: 1 | I9: =CONCATENATE("{",PointsQuestion_tempete,":NUMERICAL:=",TEXT(Cible_tempete,"0.00E+00"),":",TEXT(Tolere_tempete,"0.00E+00"),"}") -> {1:NUMERICAL:=1.21E+01:6.06E-01}
A10: question format HTML_tempete | B10: =CONCATENATE(" ",B19,B20,B21) -> <p>Lors d&rsquo;une temp&ecirc;te de neige, un camionneur a roul&eacute; &agrave; 30km/h de moyenne pendant 8 heures et n'a fait que 36% de sa livraison. En conditions normales il roule &agrave; 55km/h. En combien de temps fait-il le&nbsp;trajet ?&nbsp; normalement ? {1:NUMERICAL:=1.21E+01:6.06E-01}</p><p> | C10: </question>
A11: Repere Var Rep | B11: _tempete
A12: HTML File | B12: =CONCATENATE(categorie_tempete,"_HTML.txt") -> RDT_Tempete_HTML.txt | F12: =V2._tempete*V1._tempete/V4._tempete*(1-V3._tempete)/V3._tempete -> 7.757575758
A13: https://html-online.com/editor/ | N13: temps / tempête | P13: =V2._tempete/V3._tempete -> 22.22222222 | Q13: h tempète
N14: temps / normal | P14: =P13*V1._tempete/V4._tempete -> 12.12121212 | Q14: h normales
C15: 6
A16: Var : | B16: # | C16: 4
A17: Res : | B17: $ | C17: 1
B19: =CONCATENATE("<p>Lors d&rsquo;une temp&ecirc;te de neige, un camionneur a roul&eacute; &agrave; ",V1._tempete,"km/h de moyenne pendant ",V2._tempete," heures et n'a fait que ",100*V3._tempete,"% de sa livraison. En conditions normales il roule &agrave; ",V4._tempete,"") -> <p>Lors d&rsquo;une temp&ecirc;te de neige, un camionneur a roul&eacute; &agrave; 30km/h de moyenne pendant 8 heures et n'a fait que 36% de sa livraison. En conditions normales il roule &agrave; 55 | C19: <p>Lors d&rsquo;une temp&ecirc;te de neige, un camionneur a roul&eacute; &agrave; #1#km/h de moyenne pendant #2# heures et n'a fait que #3#% de sa livraison. En conditions normales il roule &agrave; #4# km/h. En combien de temps fait-il faire le&nbsp;trajet ?&nbsp; $1$</p>
B20: =CONCATENATE("km/h. En combien de temps fait-il le&nbsp;trajet ?&nbsp; normalement ? ",R1._tempete,"</p><p>") -> km/h. En combien de temps fait-il le&nbsp;trajet ?&nbsp; normalement ? {1:NUMERICAL:=1.21E+01:6.06E-01}</p><p>
B21: =CONCATENATE("") -> 
C41: km/h. En combien de temps fait-il faire le&nbsp;trajet ?&nbsp; ",R1._tempete,"</p><p>

Sheet RDT_Lampes
A1: catégorie_Lam | B1: RDT_Lampes | C1: =CONCATENATE(" <!-- question XLQ ", titre_Lam, "-->") -> <!-- question XLQ Lampes_Lam--> | F1: Valeur Mini_Lam | G1: Valeur Maxi_Lam | H1: Sig. Digit_Lam | I1: Val Choix_Lam
B2: Lampes_Lam | C2: =CONCATENATE(" <question type=",CHAR(34),"category",CHAR(34),"><category><text>", categorie_Lam,"</text></category></question>)") -> <question type="category"><category><text>RDT_Lampes</text></category></question>) | E2: V1.LampAv_Lam | F2: 7 | G2: 15 | H2: 0 | I2: =RANDBETWEEN(ValMini_Lam*10^-SigDig_Lam, ValMaxi_Lam*10^-SigDig_Lam)/10^-SigDig_Lam -> 7 | K2: ref | L2: =75/20/4 -> 0.9375 | M2: €/l/h
A3: Tag_Lam | B3: Lampes_Lam | C3: <question type="cloze"> | E3: V2.HeureAv_Lam | F3: 3 | G3: 7 | H3: 0 | I3: =RANDBETWEEN(ValMini_Lam*10^-SigDig_Lam, ValMaxi_Lam*10^-SigDig_Lam)/10^-SigDig_Lam -> 7
A4: idnumber_Lam | B4: =TEXT(NOW(),"aammjj-hhmmss.00") -> 210710-210621.92 | C4: =CONCATENATE(" <name><text>", titre_Lam, "</text></name>") -> <name><text>Lampes_Lam</text></name> | E4: V3.EurAv_Lam | I4: =ROUND(V1.LampAv_Lam*V2.HeureAv_Lam*L2,0) -> 46
A5: points_Lam | B5: 1 | C5: <questiontext format="html"> | E5: V4.LampAp_Lam | F5: 1 | G5: =V1.LampAv_Lam-3 -> 4 | H5: 0 | I5: =V1.LampAv_Lam-J5 -> 5 | J5: =RANDBETWEEN(ValMini_Lam*10^-SigDig_Lam, ValMaxi_Lam*10^-SigDig_Lam)/10^-SigDig_Lam -> 2 | K5: variation
A6: tolérance_Lam | B6: 0.05 | C6: =CONCATENATE(" <text><![CDATA[<p>", question_Lam, "</p>]]></text>") -> <text><![CDATA[<p> <p>&nbsp;Pour 7 lampes &eacute;lectriques fonctionnant 7 h par jour, on d&eacute;pense 46 &euro; par mois. Quelle serait la d&eacute;pense annuelle pour 46 lampes fonctionnant 5 h par jour. {1:NUMERICAL:=4.92E+02:2.46E+01}</p><p></p>]]></text> | E6: V5.HeurAp_Lam | F6: 3 | G6: =V2.HeureAv_Lam+2 -> 9 | I6: =V2.HeureAv_Lam+J6 -> 11 | J6: =RANDBETWEEN(ValMini_Lam*10^-SigDig_Lam, ValMaxi_Lam*10^-SigDig_Lam)/10^-SigDig_Lam -> 4 | K6: variation
A7: penalité_Lam | B7: 0.1 | C7: </questiontext>
A8: feedback_Lam | B8: _ | C8: =CONCATENATE(" <defaultgrade>",points_Lam,"</defaultgrade><generalfeedback><text>",feedback_Lam,"</text></generalfeedback><penalty>",penalty_Lam,"</penalty><hidden>0</hidden>)") -> <defaultgrade>1</defaultgrade><generalfeedback><text>_</text></generalfeedback><penalty>0.1</penalty><hidden>0</hidden>) | F8: Cible_Lam | G8: Toler_Lam | H8: PointsQuestion_Lam
A9: Cellule vides_Lam | B9: =COUNTBLANK(B1:B8) -> 0 | C9: =CONCATENATE(" <idnumber>",idnumber_Lam,"</idnumber><tags><tag><text>",Tag_Lam,"</text></tag></tags>") -> <idnumber>210710-210621.92</idnumber><tags><tag><text>Lampes_Lam</text></tag></tags> | E9: R1.EurAp_Lam | F9: =12*V3.EurAv_Lam*V1.LampAv_Lam/V4.LampAp_Lam*V2.HeureAv_Lam/V5.HeurAp_Lam -> 491.7818182 | G9: =tolerance_Lam*ValMini_Lam -> 24.58909091 | H9: 1 | I9: =CONCATENATE("{",PointsQuestion_Lam,":NUMERICAL:=",TEXT(Cible_Lam,"0.00E+00"),":",TEXT(Tolere_Lam,"0.00E+00"),"}") -> {1:NUMERICAL:=4.92E+02:2.46E+01}
A10: question format HTML_Lam | B10: =CONCATENATE(" ",B19,B20,B21) -> <p>&nbsp;Pour 7 lampes &eacute;lectriques fonctionnant 7 h par jour, on d&eacute;pense 46 &euro; par mois. Quelle serait la d&eacute;pense annuelle pour 46 lampes fonctionnant 5 h par jour. {1:NUMERICAL:=4.92E+02:2.46E+01}</p><p> | C10: </question>
A11: Repere Var Rep | B11: _Lam
A12: HTML File | B12: =CONCATENATE(categorie_Lam,"_HTML.txt") -> RDT_Lampes_HTML.txt
A13: https://html-online.com/editor/
C15: 7 | F15: Pour 20 lampes électriques fonctionnant 4 h par jour , on dépense
A16: Var : | B16: # | C16: 5 | F16: 75 epar mois. Quelle serait la dépense annuelle pour 17 lampes
A17: Res : | B17: $ | C17: 1 | F17: fonctionnant 6 h par jour.
B19: =CONCATENATE("<p>&nbsp;Pour ",V1.LampAv_Lam," lampes &eacute;lectriques fonctionnant ",V2.HeureAv_Lam," h par jour, on d&eacute;pense ",V3.EurAv_Lam," &euro; par mois. Quelle serait la d&eacute;pense annuelle pour ",V3.EurAv_Lam," lampes fonctionnant ",V4.LampAp_Lam," h par jour. ",R1.EurAp_Lam,"</p><p>") -> <p>&nbsp;Pour 7 lampes &eacute;lectriques fonctionnant 7 h par jour, on d&eacute;pense 46 &euro; par mois. Quelle serait la d&eacute;pense annuelle pour 46 lampes fonctionnant 5 h par jour. {1:NUMERICAL:=4.92E+02:2.46E+01}</p><p> | C19: <p>&nbsp;Pour #1# lampes &eacute;lectriques fonctionnant #2# h par jour, on d&eacute;pense #3# &euro; par mois. Quelle serait la d&eacute;pense annuelle pour #3# lampes fonctionnant #4# h par jour. $1$</p>
B20: =CONCATENATE("") -> 
B21: =CONCATENATE("") -> 

Sheet RDT_Salaire
A1: catégorie_Salai | B1: RDT_Salaire | C1: =CONCATENATE(" <!-- question XLQ ", titre_Salai, "-->") -> <!-- question XLQ Salaire_Salai--> | F1: Valeur Mini_Salai | G1: Valeur Maxi_Salai | H1: Sig. Digit_Salai | I1: Val Choix_Salai
B2: Salaire_Salai | C2: =CONCATENATE(" <question type=",CHAR(34),"category",CHAR(34),"><category><text>", categorie_Salai,"</text></category></question>)") -> <question type="category"><category><text>RDT_Salaire</text></category></question>) | E2: V1._Salai | F2: 12 | G2: 47 | H2: 0 | I2: =RANDBETWEEN(ValMini_Salai*10^-SigDig_Salai, ValMaxi_Salai*10^-SigDig_Salai)/10^-SigDig_Salai -> 38 | J2: jourAv | L2: salaire | M2: 10 | N2: € /h
A3: Tag_Salai | B3: Salaire_Salai | C3: <question type="cloze"> | E3: V2._Salai | F3: 4 | G3: 7 | H3: 0 | I3: =RANDBETWEEN(ValMini_Salai*10^-SigDig_Salai, ValMaxi_Salai*10^-SigDig_Salai)/10^-SigDig_Salai -> 4 | J3: H avant
A4: idnumber_Salai | B4: =TEXT(NOW(),"aammjj-hhmmss.00") -> 210710-210621.92 | C4: =CONCATENATE(" <name><text>", titre_Salai, "</text></name>") -> <name><text>Salaire_Salai</text></name> | E4: V3._Salai | I4: =9.9*V2._Salai*V1._Salai -> 1504.8 | J4: salaire avant
A5: points_Salai | B5: 1 | C5: <questiontext format="html"> | E5: V4._Salai | F5: 1 | G5: 8 | H5: 0 | I5: =V1._Salai-K5 -> 33 | J5: jour après | K5: =RANDBETWEEN(ValMini_Salai*10^-SigDig_Salai, ValMaxi_Salai*10^-SigDig_Salai)/10^-SigDig_Salai -> 5
A6: tolérance_Salai | B6: 0.05 | C6: =CONCATENATE(" <text><![CDATA[<p>", question_Salai, "</p>]]></text>") -> <text><![CDATA[<p> <p>Un salari&eacute; qui a travaill&eacute; 38j et 4h par jour , a re&ccedil;u 1504.8 &euro;. Que recevrait-il pour 33 journ&eacute;es de 7 heures ? {1:NUMERICAL:=2.29E+03:1.14E+02}</p><p></p>]]></text> | E6: V5._Salai | F6: 1 | G6: 3 | H6: 0 | I6: =V2._Salai+K6 -> 7 | J6: heures après | K6: =RANDBETWEEN(ValMini_Salai*10^-SigDig_Salai, ValMaxi_Salai*10^-SigDig_Salai)/10^-SigDig_Salai -> 3
A7: penalité_Salai | B7: 0.1 | C7: </questiontext>
A8: feedback_Salai | B8: _ | C8: =CONCATENATE(" <defaultgrade>",points_Salai,"</defaultgrade><generalfeedback><text>",feedback_Salai,"</text></generalfeedback><penalty>",penalty_Salai,"</penalty><hidden>0</hidden>)") -> <defaultgrade>1</defaultgrade><generalfeedback><text>_</text></generalfeedback><penalty>0.1</penalty><hidden>0</hidden>) | F8: Cible_Salai | G8: Toler_Salai | H8: PointsQuestion_Salai
A9: Cellule vides_Salai | B9: =COUNTBLANK(B1:B8) -> 0 | C9: =CONCATENATE(" <idnumber>",idnumber_Salai,"</idnumber><tags><tag><text>",Tag_Salai,"</text></tag></tags>") -> <idnumber>210710-210621.92</idnumber><tags><tag><text>Salaire_Salai</text></tag></tags> | E9: R1._Salai | F9: =V3._Salai*V4._Salai*V5._Salai/(V1._Salai*V2._Salai) -> 2286.9 | G9: =tolerance_Salai*ValMini_Salai -> 114.345 | H9: 1 | I9: =CONCATENATE("{",PointsQuestion_Salai,":NUMERICAL:=",TEXT(Cible_Salai,"0.00E+00"),":",TEXT(Tolere_Salai,"0.00E+00"),"}") -> {1:NUMERICAL:=2.29E+03:1.14E+02}
A10: question format HTML_Salai | B10: =CONCATENATE(" ",B19,B20) -> <p>Un salari&eacute; qui a travaill&eacute; 38j et 4h par jour , a re&ccedil;u 1504.8 &euro;. Que recevrait-il pour 33 journ&eacute;es de 7 heures ? {1:NUMERICAL:=2.29E+03:1.14E+02}</p><p> | C10: </question>
A11: Repere Var Rep | B11: _Salai
A12: HTML File | B12: =CONCATENATE(categorie_Salai,"_HTML.txt") -> RDT_Salaire_HTML.txt
A13: https://html-online.com/editor/
C15: 7
A16: Var : | B16: # | C16: 5
A17: Res : | B17: $ | C17: 1
B19: =CONCATENATE("<p>Un salari&eacute; qui a travaill&eacute; ",V1._Salai,"j et ",V2._Salai,"h par jour , a re&ccedil;u ",V3._Salai," &euro;. Que recevrait-il pour ",V4._Salai," journ&eacute;es de ",V5._Salai," heures ? ",R1._Salai,"</p><p>") -> <p>Un salari&eacute; qui a travaill&eacute; 38j et 4h par jour , a re&ccedil;u 1504.8 &euro;. Que recevrait-il pour 33 journ&eacute;es de 7 heures ? {1:NUMERICAL:=2.29E+03:1.14E+02}</p><p> | C19: <p>Un salari&eacute; qui a travaill&eacute; #1#j et #2#h par jour , a re&ccedil;u #3# &euro;. Que recevrait-il pour #4# journ&eacute;es de #5# heures ? $1$</p>
B20: =CONCATENATE("") -> 
C41: <p>Un salari&eacute; qui a travaill&eacute; ",V1._Salai,"j et ",V2._Salai,"h par jour , a re&ccedil;u ",V3._Salai," &euro;. Que recevrait-il pour ",V4._Salai," journ&eacute;es de ",V5._Salai," heures ? ",R1._Salai,"</p><p>

Sheet RDT_Forest
A1: catégorie_Roul | B1: RDT_Forest | C1: =CONCATENATE(" <!-- question XLQ ", titre_Roul, "-->") -> <!-- question XLQ Forest_Roul--> | F1: Valeur Mini_Roul | G1: Valeur Maxi_Roul | H1: Sig. Digit_Roul | I1: Val Choix_Roul
B2: Forest_Roul | C2: =CONCATENATE(" <question type=",CHAR(34),"category",CHAR(34),"><category><text>", categorie_Roul,"</text></category></question>)") -> <question type="category"><category><text>RDT_Forest</text></category></question>) | E2: V1._Roul | F2: 20 | G2: 65 | H2: 0 | I2: =RANDBETWEEN(ValMini_Roul*10^-SigDig_Roul, ValMaxi_Roul*10^-SigDig_Roul)/10^-SigDig_Roul -> 49
A3: Tag_Roul | B3: Forest_Roul | C3: <question type="cloze"> | E3: V2._Roul | F3: 10 | G3: 50 | H3: 0 | I3: =RANDBETWEEN(ValMini_Roul*10^-SigDig_Roul, ValMaxi_Roul*10^-SigDig_Roul)/10^-SigDig_Roul -> 49 | CA3: <p>En for&ecirc;t, Vincent roule &agrave; une vitesse de #1# km/h. Combien de secondes lui faudra-t-il pour parcourir une distance de #2# m&egrave;tres ? t=$1$ seconde(s)</p><p><p>En for&ecirc;t, Vincent roule &agrave; une vitesse de "",V1._Roul,"" km/h. Combien de secondes lui faudra-t-il pour parcourir une distance de "",V2._Roul,"" m&egrave;tres ? $1</p><p><p>
A4: idnumber_Roul | B4: =TEXT(NOW(),"aammjj-hhmmss.00") -> 210710-210621.92 | C4: =CONCATENATE(" <name><text>", titre_Roul, "</text></name>") -> <name><text>Forest_Roul</text></name> | E4: V3._Roul | I4: =RANDBETWEEN(ValMini_Roul*10^-SigDig_Roul, ValMaxi_Roul*10^-SigDig_Roul)/10^-SigDig_Roul -> 0
A5: points_Roul | B5: 1 | C5: <questiontext format="html">
A6: tolérance_Roul | B6: 0.05 | C6: =CONCATENATE(" <text><![CDATA[<p>", question_Roul, "</p>]]></text>") -> <text><![CDATA[<p> <p>En for&ecirc;t, Vincent roule &agrave; une vitesse de 49 km/h. Combien de secondes lui faudra-t-il pour parcourir une distance de 49 m&egrave;tres ? t={1:NUMERICAL:=3.60E+00:1.80E-01} seconde(s)</p><p><p></p>]]></text> | F6: Cible_Roul | G6: Toler_Roul | H6: PointsQuestion_Roul
A7: penalité_Roul | B7: 0.1 | C7: </questiontext> | E7: R1._Roul | F7: =V2._Roul*3.6/V1._Roul -> 3.6 | G7: =tolerance_Roul*ValMini_Roul -> 0.18 | H7: 1 | I7: =CONCATENATE("{",PointsQuestion_Roul,":NUMERICAL:=",TEXT(Cible_Roul,"0.00E+00"),":",TEXT(Tolere_Roul,"0.00E+00"),"}") -> {1:NUMERICAL:=3.60E+00:1.80E-01}
A8: feedback_Roul | B8: _ | C8: =CONCATENATE(" <defaultgrade>",points_Roul,"</defaultgrade><generalfeedback><text>",feedback_Roul,"</text></generalfeedback><penalty>",penalty_Roul,"</penalty><hidden>0</hidden>)") -> <defaultgrade>1</defaultgrade><generalfeedback><text>_</text></generalfeedback><penalty>0.1</penalty><hidden>0</hidden>)
A9: Cellule vides_Roul | B9: =COUNTBLANK(B1:B8) -> 0 | C9: =CONCATENATE(" <idnumber>",idnumber_Roul,"</idnumber><tags><tag><text>",Tag_Roul,"</text></tag></tags>") -> <idnumber>210710-210621.92</idnumber><tags><tag><text>Forest_Roul</text></tag></tags>
A10: question format HTML_Roul | B10: =CONCATENATE(" ",B19,B20,B21,B22) -> <p>En for&ecirc;t, Vincent roule &agrave; une vitesse de 49 km/h. Combien de secondes lui faudra-t-il pour parcourir une distance de 49 m&egrave;tres ? t={1:NUMERICAL:=3.60E+00:1.80E-01} seconde(s)</p><p><p> | C10: </question>
A11: Repere Var Rep | B11: _Roul
A12: HTML File | B12: =CONCATENATE(categorie_Roul,"_HTML.txt") -> RDT_Forest_HTML.txt
A13: https://html-online.com/editor/
C15: 5
A16: Var : | B16: # | C16: 3
A17: Res : | B17: $ | C17: 1
B19: =CONCATENATE("<p>En for&ecirc;t, Vincent roule &agrave; une vitesse de ",V1._Roul," km/h. Combien de secondes lui faudra-t-il pour parcourir une distance de ",V2._Roul," m&egrave;tres ? t=",R1._Roul," seconde(s)</p><p><p>") -> <p>En for&ecirc;t, Vincent roule &agrave; une vitesse de 49 km/h. Combien de secondes lui faudra-t-il pour parcourir une distance de 49 m&egrave;tres ? t={1:NUMERICAL:=3.60E+00:1.80E-01} seconde(s)</p><p><p> | C19: <p>En for&ecirc;t, Vincent roule &agrave; une vitesse de #1# km/h. Combien de secondes lui faudra-t-il pour parcourir une distance de #2# m&egrave;tres ? t=$1$ seconde(s)</p>
B21: =CONCATENATE("") -> 
B22: =CONCATENATE("") -> 

Sheet RDT_Toile
A1: catégorie_fil | B1: RDT_Toile | C1: =CONCATENATE(" <!-- question XLQ ", titre_fil, "-->") -> <!-- question XLQ Toile_fil--> | F1: Valeur Mini_fil | G1: Valeur Maxi_fil | H1: Sig. Digit_fil | I1: Val Choix_fil
B2: Toile_fil | C2: =CONCATENATE(" <question type=",CHAR(34),"category",CHAR(34),"><category><text>", categorie_fil,"</text></category></question>)") -> <question type="category"><category><text>RDT_Toile</text></category></question>) | E2: V1._fil | F2: 250 | G2: 350 | H2: 0 | I2: =RANDBETWEEN(ValMini_fil*10^-SigDig_fil, ValMaxi_fil*10^-SigDig_fil)/10^-SigDig_fil -> 340 | J2: kg avant
A3: Tag_fil | B3: Toile_fil | C3: <question type="cloze"> | E3: V2._fil | F3: 750 | G3: 1380 | H3: 1 | I3: 1360 | J3: long avant
A4: idnumber_fil | B4: =TEXT(NOW(),"aammjj-hhmmss.00") -> 210710-210621.92 | C4: =CONCATENATE(" <name><text>", titre_fil, "</text></name>") -> <name><text>Toile_fil</text></name> | E4: V3._fil | F4: 2 | G4: 5 | H4: -1 | I4: 2.3 | J4: large avant
A5: points_fil | B5: 1 | C5: <questiontext format="html"> | E5: V4._fil | F5: 3 | G5: 9 | I5: 8 | J5: large après
A6: tolérance_fil | B6: 0.05 | C6: =CONCATENATE(" <text><![CDATA[<p>", question_fil, "</p>]]></text>") -> <text><![CDATA[<p> <p>Avec 340 kg de fil, on a fabriqu&eacute; une toile de 1360 m&egrave;tres de longueur sur 2.3m de largeur. Quelle sera la longueur d'une toile de 2.3 m&egrave;tres de largeur fabriqu&eacute;e avec 8kilogrammes de fil ? {1:NUMERICAL:=1.91E+03:9.55E+01}</p><p></p>]]></text> | E6: V5._fil | F6: 1500 | G6: 1950 | H6: 1 | I6: 1660 | J6: kg après
A7: penalité_fil | B7: 0.1 | C7: </questiontext> | I7: =V2._fil*V5._fil*V3._fil/(V1._fil*V4._fil) -> 1909 | J7: long après
A8: feedback_fil | B8: _ | C8: =CONCATENATE(" <defaultgrade>",points_fil,"</defaultgrade><generalfeedback><text>",feedback_fil,"</text></generalfeedback><penalty>",penalty_fil,"</penalty><hidden>0</hidden>)") -> <defaultgrade>1</defaultgrade><generalfeedback><text>_</text></generalfeedback><penalty>0.1</penalty><hidden>0</hidden>) | F8: Cible_fil | G8: Toler_fil | H8: PointsQuestion_fil
A9: Cellule vides_fil | B9: =COUNTBLANK(B1:B8) -> 0 | C9: =CONCATENATE(" <idnumber>",idnumber_fil,"</idnumber><tags><tag><text>",Tag_fil,"</text></tag></tags>") -> <idnumber>210710-210621.92</idnumber><tags><tag><text>Toile_fil</text></tag></tags> | E9: R1._fil | F9: =V2._fil*V5._fil/V1._fil*V3._fil/V4._fil -> 1909 | G9: =tolerance_fil*ValMini_fil -> 95.45 | H9: 1 | I9: =CONCATENATE("{",PointsQuestion_fil,":NUMERICAL:=",TEXT(Cible_fil,"0.00E+00"),":",TEXT(Tolere_fil,"0.00E+00"),"}") -> {1:NUMERICAL:=1.91E+03:9.55E+01}
A10: question format HTML_fil | B10: =CONCATENATE(" ",B19,B20,B21) -> <p>Avec 340 kg de fil, on a fabriqu&eacute; une toile de 1360 m&egrave;tres de longueur sur 2.3m de largeur. Quelle sera la longueur d'une toile de 2.3 m&egrave;tres de largeur fabriqu&eacute;e avec 8kilogrammes de fil ? {1:NUMERICAL:=1.91E+03:9.55E+01}</p><p> | C10: </question>
A11: Repere Var Rep | B11: _fil
A12: HTML File | B12: =CONCATENATE(categorie_fil,"_HTML.txt") -> RDT_Toile_HTML.txt
A13: https://html-online.com/editor/
G14: Avec 312,5 kg de fil, on a fabriqué une toile de 1219 mètres de longueur sur 3,85m de largeur. Quelle sera la longueur d'une toile de 2 mètres de largeur fabriquée avec 182 kilogrammes de fil ?
C15: 6
A16: Var : | B16: # | C16: 4 | N16: kg av/ap | O16: larg av/ap | P16: long av | Q16: long ap
A17: Res : | B17: $ | C17: 1 | N17: =V1._fil/V5._fil -> 0.2048192771 | O17: =V3._fil/V4._fil -> 0.2875 | P17: =V2._fil -> 1360 | Q17: =P17*O17/N17 -> 1909
B19: =CONCATENATE("<p>Avec ",V1._fil," kg de fil, on a fabriqu&eacute; une toile de ",V2._fil," m&egrave;tres de longueur sur ",V3._fil,"m de largeur. Quelle sera la longueur d'une toile de ",V3._fil," m&egrave;tres de largeur fabriqu&eacute;e avec ",V4._fil,"") -> <p>Avec 340 kg de fil, on a fabriqu&eacute; une toile de 1360 m&egrave;tres de longueur sur 2.3m de largeur. Quelle sera la longueur d'une toile de 2.3 m&egrave;tres de largeur fabriqu&eacute;e avec 8 | C19: <p>Avec #1# kg de fil, on a fabriqu&eacute; une toile de #2# m&egrave;tres de longueur sur #3#m de largeur. Quelle sera la longueur d'une toile de #3# m&egrave;tres de largeur fabriqu&eacute;e avec #4# kilogrammes de fil ? $1$</p>
B20: =CONCATENATE("kilogrammes de fil ? ",R1._fil,"</p><p>") -> kilogrammes de fil ? {1:NUMERICAL:=1.91E+03:9.55E+01}</p><p>
B21: =CONCATENATE("") -> 
C41: kilogrammes de fil ? ",R1._fil,"</p><p>

Sheet Prod_Vect
A1: catégorie_PV | B1: ProdVect | C1: =CONCATENATE(" <!-- question XLQ ", titre_PV, "-->") -> <!-- question XLQ ProdVect_PV--> | F1: Valeur Mini_PV | G1: Valeur Maxi_PV | H1: Sig. Digit_PV | I1: Val Choix_PV
B2: ProdVect_PV | C2: =CONCATENATE(" <question type=",CHAR(34),"category",CHAR(34),"><category><text>", categorie_PV,"</text></category></question>)") -> <question type="category"><category><text>ProdVect</text></category></question>) | E2: V1._PV | F2: -5 | G2: 6 | H2: 0 | I2: =RANDBETWEEN(ValMini_PV*10^-SigDig_PV, ValMaxi_PV*10^-SigDig_PV)/10^-SigDig_PV -> 1 | J2: X1
A3: Tag_PV | B3: ProdVect_PV | C3: <question type="cloze"> | E3: V2._PV | F3: -5 | G3: 6 | H3: 0 | I3: -2 | J3: y1
A4: idnumber_PV | B4: =TEXT(NOW(),"aammjj-hhmmss.00") -> 210710-210621.92 | C4: =CONCATENATE(" <name><text>", titre_PV, "</text></name>") -> <name><text>ProdVect_PV</text></name> | E4: V3._PV | F4: -5 | G4: 6 | H4: 0 | I4: 3 | J4: z1
A5: points_PV | B5: 1 | C5: <questiontext format="html"> | E5: V4._PV | F5: -5 | G5: 6 | H5: 0 | I5: -3 | J5: x2 | L5: =V1._PV -> 1 | M5: =V4._PV -> -3 | O5: =L6*M7-L7*M6 -> 7
A6: tolérance_PV | B6: 0.05 | C6: =CONCATENATE(" <text><![CDATA[<p>", question_PV, "</p>]]></text>") -> <text><![CDATA[<p> <p>Soit deux vecteurs \( \vec{V_1} \) (1,-2,3) et \( \vec{V_2} \)&nbsp;(-3,-5,4,). Calculer :</p><p><p>Le produit scalcaire : PS = {1:NUMERICAL:=1.90E+01:9.50E-01}</p><p><p>Le produit vectoriel : \( \vec{PV} \)&nbsp; {1:NUMERICAL:=7.00E+00:3.50E-01}, {1:NUMERICAL:=-1.30E+01:6.50E-01}, {2:NUMERICAL:=-1.10E+01:5.50E-01}</p><p><p>&nbsp;</p><p></p>]]></text> | E6: V5._PV | F6: -5 | G6: 6 | H6: 0 | I6: -5 | J6: y2 | L6: =V2._PV -> -2 | M6: =V5._PV -> -5 | O6: =-L5*M7+L7*M5 -> -13
A7: penalité_PV | B7: 0.1 | C7: </questiontext> | E7: V6._PV | F7: -5 | G7: 6 | H7: 0 | I7: 4 | J7: z2 | L7: =V3._PV -> 3 | M7: =V6._PV -> 4 | O7: =L5*M6-L6*M5 -> -11
A8: feedback_PV | B8: _ | C8: =CONCATENATE(" <defaultgrade>",points_PV,"</defaultgrade><generalfeedback><text>",feedback_PV,"</text></generalfeedback><penalty>",penalty_PV,"</penalty><hidden>0</hidden>)") -> <defaultgrade>1</defaultgrade><generalfeedback><text>_</text></generalfeedback><penalty>0.1</penalty><hidden>0</hidden>)
A9: Cellule vides_PV | B9: =COUNTBLANK(B1:B8) -> 0 | C9: =CONCATENATE(" <idnumber>",idnumber_PV,"</idnumber><tags><tag><text>",Tag_PV,"</text></tag></tags>") -> <idnumber>210710-210621.92</idnumber><tags><tag><text>ProdVect_PV</text></tag></tags>
A10: question format HTML_PV | B10: =CONCATENATE(" ",B19,B20) -> <p>Soit deux vecteurs \( \vec{V_1} \) (1,-2,3) et \( \vec{V_2} \)&nbsp;(-3,-5,4,). Calculer :</p><p><p>Le produit scalcaire : PS = {1:NUMERICAL:=1.90E+01:9.50E-01}</p><p><p>Le produit vectoriel : \( \vec{PV} \)&nbsp; {1:NUMERICAL:=7.00E+00:3.50E-01}, {1:NUMERICAL:=-1.30E+01:6.50E-01}, {2:NUMERICAL:=-1.10E+01:5.50E-01}</p><p><p>&nbsp;</p><p> | C10: </question>
A11: Repere Var Rep | B11: _PV | F11: Cible_PV | G11: Toler_PV | H11: PointsQuestion_PV | M11: Vecteur | N11: indice | O11: formule
A12: HTML File | B12: =CONCATENATE(categorie_PV,"_HTML.txt") -> ProdVect_HTML.txt | E12: R1._PV | F12: =V1._PV*V4._PV+V2._PV*V5._PV+V3._PV*V6._PV -> 19 | G12: =tolerance_PV*ValMini_PV -> 0.95 | H12: 1 | I12: =CONCATENATE("{",PointsQuestion_PV,":NUMERICAL:=",TEXT(Cible_PV,"0.00E+00"),":",TEXT(ABS(Tolere_PV),"0.00E+00"),"}") -> {1:NUMERICAL:=1.90E+01:9.50E-01} | J12: P Scal | M12: V | N12: 1 | O12: =CONCATENATE("\( \vec{",M12,"_",N12,"} \)") -> \( \vec{V_1} \)
A13: https://html-online.com/editor/ | E13: R2._PV | F13: =O5 -> 7 | G13: =tolerance_PV*ValMini_PV -> 0.35 | H13: 1 | I13: =CONCATENATE("{",PointsQuestion_PV,":NUMERICAL:=",TEXT(Cible_PV,"0.00E+00"),":",TEXT(ABS(Tolere_PV),"0.00E+00"),"}") -> {1:NUMERICAL:=7.00E+00:3.50E-01} | J13: xpv | M13: V | N13: 2 | O13: =CONCATENATE("\( \vec{",M13,"_",N13,"} \)") -> \( \vec{V_2} \)
E14: R3._PV | F14: =O6 -> -13 | G14: =tolerance_PV*ValMini_PV -> -0.65 | H14: 1 | I14: =CONCATENATE("{",PointsQuestion_PV,":NUMERICAL:=",TEXT(Cible_PV,"0.00E+00"),":",TEXT(ABS(Tolere_PV),"0.00E+00"),"}") -> {1:NUMERICAL:=-1.30E+01:6.50E-01} | J14: ypv | M14: PV | O14: =CONCATENATE("\( \vec{",M14,"} \)") -> \( \vec{PV} \)
C15: 5 | E15: R4._PV | F15: -11 | G15: =tolerance_PV*ValMini_PV -> -0.55 | H15: 2 | I15: =CONCATENATE("{",PointsQuestion_PV,":NUMERICAL:=",TEXT(Cible_PV,"0.00E+00"),":",TEXT(ABS(Tolere_PV),"0.00E+00"),"}") -> {2:NUMERICAL:=-1.10E+01:5.50E-01} | J15: zpv
A16: Var : | B16: # | C16: 3
A17: Res : | B17: $ | C17: 3 | I17: =RANDBETWEEN(ValMini_PV*10^-SigDig_PV, ValMaxi_PV*10^-SigDig_PV)/10^-SigDig_PV -> 0
B19: =CONCATENATE("<p>Soit deux vecteurs ",O12," (",V1._PV,",",V2._PV,",",V3._PV,") et ",O13,"&nbsp;(",V4._PV,",",V5._PV,",",V6._PV,",). Calculer :</p><p><p>Le produit scalcaire : PS = ",R1._PV,"</p><p><p>Le produit vectoriel : ",O14,"&nbsp; ",R2._PV,", ",R3._PV,", ",R4._PV,"</p><p><p>&nbsp;</p><p>") -> <p>Soit deux vecteurs \( \vec{V_1} \) (1,-2,3) et \( \vec{V_2} \)&nbsp;(-3,-5,4,). Calculer :</p><p><p>Le produit scalcaire : PS = {1:NUMERICAL:=1.90E+01:9.50E-01}</p><p><p>Le produit vectoriel : \( \vec{PV} \)&nbsp; {1:NUMERICAL:=7.00E+00:3.50E-01}, {1:NUMERICAL:=-1.30E+01:6.50E-01}, {2:NUMERICAL:=-1.10E+01:5.50E-01}</p><p><p>&nbsp;</p><p> | C19: <p>Soit deux vecteurs V1 (#1#,#2#,#3#,) et V2&nbsp;(#4#,#5#,#6#,). Calculer :</p>
B20: =CONCATENATE("") ->  | C20: <p>Le produit scalcaire : PS = $1$</p>
C21: <p>Le produit vectoriel : PV&nbsp; $2$, $3$, $4$</p>
C22: <p>&nbsp;</p>
O23: =IF(NOT(P17),IF(P16,TRUE,FALSE),FALSE) -> FALSE
D26: <p>Soit deux vecteurs \( \vec{V_1} \) (1,4,1) et \( \vec{V_2} \)&nbsp;(4,1,0,). Calculer :</p><p><p>Le produit scalcaire : PS = {1:NUMERICAL:=8.00E+00:4.00E-01}</p><p><p>Le produit vectoriel : \( \vec{PV} \)&nbsp; {1:NUMERICAL:=-1.00E+00:5.00E-02}, {1:NUMERICAL:=4.00E+00:2.00E-01}, {1:NUMERICAL:=4.00E+00:2.00E-01}</p><p><p>&nbsp;</p><p>
C41: <p>Soit x=",V1._aib,"+",V2._aib," <strong>i</strong> et&nbsp;y=",V2._aib,"+",V3._aib,"<strong>i</strong> deux nombres complexes. Calculer la somme x+y=",R1._aib,"+",R2._aib," <strong>i</strong> et le produit :&nbsp;x*y=",R3._aib,"+",R4._aib," <strong>i</strong></p><p>

Sheet Vect_ProdMix
A1: catégorie_Pmix | B1: ProdMixte | C1: =CONCATENATE(" <!-- question XLQ ", titre_Pmix, "-->") -> <!-- question XLQ ProdMixte_Pmix--> | F1: Valeur Mini_Pmix | G1: Valeur Maxi_Pmix | H1: Sig. Digit_Pmix | I1: Val Choix_Pmix | L1: {1:MULTICHOICE:%100%answer1#feedback1~%0%answer2#feedback2}
B2: ProdMixte_Pmix | C2: =CONCATENATE(" <question type=",CHAR(34),"category",CHAR(34),"><category><text>", categorie_Pmix,"</text></category></question>)") -> <question type="category"><category><text>ProdMixte</text></category></question>) | E2: V1._Pmix | F2: -5 | G2: 6 | H2: 0 | I2: =TEXT(RANDBETWEEN(ValMini_Pmix*10^-SigDig_Pmix, ValMaxi_Pmix*10^-SigDig_Pmix)/10^-SigDig_Pmix,"+##;-##;0") -> +6 | J2: V1
A3: Tag_Pmix | B3: ProdMixte_Pmix | C3: <question type="cloze"> | E3: V2._Pmix | F3: -5 | G3: 6 | H3: 0 | I3: =TEXT(RANDBETWEEN(ValMini_Pmix*10^-SigDig_Pmix, ValMaxi_Pmix*10^-SigDig_Pmix)/10^-SigDig_Pmix,"+##;-##;0") -> +3
A4: idnumber_Pmix | B4: =TEXT(NOW(),"aammjj-hhmmss.00") -> 210710-210621.92 | C4: =CONCATENATE(" <name><text>", titre_Pmix, "</text></name>") -> <name><text>ProdMixte_Pmix</text></name> | E4: V3._Pmix | F4: -5 | G4: 6 | H4: 0 | I4: -3 | L4: =V1._Pmix -> +6 | M4: =V4._Pmix -> -3 | O4: =L5*M6-L6*M5 -> 0
A5: points_Pmix | B5: 1 | C5: <questiontext format="html"> | E5: V4._Pmix | F5: -5 | G5: 6 | H5: 0 | I5: -3 | J5: V2 | L5: =V2._Pmix -> +3 | M5: =V5._Pmix -> +1 | O5: =-L4*M6+L6*M4 -> 15
A6: tolérance_Pmix | B6: 0.05 | C6: =CONCATENATE(" <text><![CDATA[<p>", question_Pmix, "</p>]]></text>") -> <text><![CDATA[<p> <p>Soit deux vecteurs \( \vec{V_1} \) (+6,+3,-3,) et \( \vec{V_2} \)&nbsp;(-3,+1,-1,). Calculer leur produit vectoriel : \( \vec{PV} \)&nbsp; {1:NUMERICAL:=0.00E+00:0.00E+00}, {1:NUMERICAL:=1.50E+01:7.50E-01}, {1:NUMERICAL:=1.50E+01:7.50E-01} et leur produit mixte avec vecteur \( \vec{V_3} \) (+4,-1,+5) = {1:NUMERICAL:=6.00E+01:3.00E+00}</p>. Ces trois vecteurs forment donc une base : {1:MULTICHOICE:%100%Vrai~%0%Faux}<p><p>&nbsp;</p><p></p>]]></text> | E6: V5._Pmix | F6: -5 | G6: 6 | H6: 0 | I6: +1 | L6: =V3._Pmix -> -3 | M6: =V6._Pmix -> -1 | O6: =L4*M5-L5*M4 -> 15
A7: penalité_Pmix | B7: 0.1 | C7: </questiontext> | E7: V6._Pmix | F7: -5 | G7: 6 | H7: 0 | I7: -1
A8: feedback_Pmix | B8: _ | C8: =CONCATENATE(" <defaultgrade>",points_Pmix,"</defaultgrade><generalfeedback><text>",feedback_Pmix,"</text></generalfeedback><penalty>",penalty_Pmix,"</penalty><hidden>0</hidden>)") -> <defaultgrade>1</defaultgrade><generalfeedback><text>_</text></generalfeedback><penalty>0.1</penalty><hidden>0</hidden>) | E8: V7._Pmix | F8: -5 | G8: 6 | H8: 0 | I8: +4 | J8: V3
A9: Cellule vides_Pmix | B9: =COUNTBLANK(B1:B8) -> 0 | C9: =CONCATENATE(" <idnumber>",idnumber_Pmix,"</idnumber><tags><tag><text>",Tag_Pmix,"</text></tag></tags>") -> <idnumber>210710-210621.92</idnumber><tags><tag><text>ProdMixte_Pmix</text></tag></tags> | E9: V8._Pmix | F9: -5 | G9: 6 | H9: 0 | I9: -1
A10: question format HTML_Pmix | B10: =CONCATENATE(" ",B19,B20) -> <p>Soit deux vecteurs \( \vec{V_1} \) (+6,+3,-3,) et \( \vec{V_2} \)&nbsp;(-3,+1,-1,). Calculer leur produit vectoriel : \( \vec{PV} \)&nbsp; {1:NUMERICAL:=0.00E+00:0.00E+00}, {1:NUMERICAL:=1.50E+01:7.50E-01}, {1:NUMERICAL:=1.50E+01:7.50E-01} et leur produit mixte avec vecteur \( \vec{V_3} \) (+4,-1,+5) = {1:NUMERICAL:=6.00E+01:3.00E+00}</p>. Ces trois vecteurs forment donc une base : {1:MULTICHOICE:%100%Vrai~%0%Faux}<p><p>&nbsp;</p><p> | C10: </question> | E10: V9._Pmix | F10: -5 | G10: 6 | H10: 0 | I10: +5
A11: Repere Var Rep | B11: _Pmix | M11: Vecteur | N11: indice | O11: formule
A12: HTML File | B12: =CONCATENATE(categorie_Pmix,"_HTML.txt") -> ProdMixte_HTML.txt | F12: Cible_Pmix | G12: Toler_Pmix | H12: PointsQuestion_Pmix | M12: V | N12: 1 | O12: =CONCATENATE("\( \vec{",M12,"_",N12,"} \)") -> \( \vec{V_1} \)
A13: https://html-online.com/editor/ | E13: R1._Pmix | F13: =O4 -> 0 | G13: =tolerance_Pmix*ValMini_Pmix -> 0 | H13: 1 | I13: =CONCATENATE("{",PointsQuestion_Pmix,":NUMERICAL:=",TEXT(Cible_Pmix,"0.00E+00"),":",TEXT(ABS(Tolere_Pmix),"0.00E+00"),"}") -> {1:NUMERICAL:=0.00E+00:0.00E+00} | M13: V | N13: 2 | O13: =CONCATENATE("\( \vec{",M13,"_",N13,"} \)") -> \( \vec{V_2} \)
E14: R2._Pmix | F14: =O5 -> 15 | G14: =tolerance_Pmix*ValMini_Pmix -> 0.75 | H14: 1 | I14: =CONCATENATE("{",PointsQuestion_Pmix,":NUMERICAL:=",TEXT(Cible_Pmix,"0.00E+00"),":",TEXT(ABS(Tolere_Pmix),"0.00E+00"),"}") -> {1:NUMERICAL:=1.50E+01:7.50E-01} | M14: V | N14: 3 | O14: =CONCATENATE("\( \vec{",M14,"_",N14,"} \)") -> \( \vec{V_3} \)
C15: 11 | E15: R3._Pmix | F15: 15 | G15: =tolerance_Pmix*ValMini_Pmix -> 0.75 | H15: 1 | I15: =CONCATENATE("{",PointsQuestion_Pmix,":NUMERICAL:=",TEXT(Cible_Pmix,"0.00E+00"),":",TEXT(ABS(Tolere_Pmix),"0.00E+00"),"}") -> {1:NUMERICAL:=1.50E+01:7.50E-01} | M15: PV | O15: =CONCATENATE("\( \vec{",M15,"} \)") -> \( \vec{PV} \)
A16: Var : | B16: # | C16: 9 | E16: R4._Pmix | F16: =O4*V7._Pmix+O5*V8._Pmix+O6*V9._Pmix -> 60 | G16: =tolerance_Pmix*ValMini_Pmix -> 3 | H16: 1 | I16: =CONCATENATE("{",PointsQuestion_Pmix,":NUMERICAL:=",TEXT(Cible_Pmix,"0.00E+00"),":",TEXT(ABS(Tolere_Pmix),"0.00E+00"),"}") -> {1:NUMERICAL:=6.00E+01:3.00E+00}
A17: Res : | B17: $ | C17: 4 | E17: R5._Pmix | F17: =IF(F16=0,"Faux","Vrai") -> Vrai | G17: =IF(F17="Vrai","Faux","Vrai") -> Faux | H17: 1 | I17: =CONCATENATE("{1:MULTICHOICE:%100%",F17,"~%0%",G17,"}") -> {1:MULTICHOICE:%100%Vrai~%0%Faux}
B19: =CONCATENATE("<p>Soit deux vecteurs ",O12," (",V1._Pmix,",",V2._Pmix,",",V3._Pmix,",) et ",O13,"&nbsp;(",V4._Pmix,",",V5._Pmix,",",V6._Pmix,",). Calculer leur produit vectoriel : ",O15,"&nbsp; ",R1._Pmix,", ",R2._Pmix,", ",R3._Pmix," et leur produit mixte avec vecteur ",O14," (",V7._Pmix,",",V8._Pmix,",",V9._Pmix,") = ",R4._Pmix,"</p>. Ces trois vecteurs forment donc une base : ",I17,"<p><p>&nbsp;</p>",I18,"<p>") -> <p>Soit deux vecteurs \( \vec{V_1} \) (+6,+3,-3,) et \( \vec{V_2} \)&nbsp;(-3,+1,-1,). Calculer leur produit vectoriel : \( \vec{PV} \)&nbsp; {1:NUMERICAL:=0.00E+00:0.00E+00}, {1:NUMERICAL:=1.50E+01:7.50E-01}, {1:NUMERICAL:=1.50E+01:7.50E-01} et leur produit mixte avec vecteur \( \vec{V_3} \) (+4,-1,+5) = {1:NUMERICAL:=6.00E+01:3.00E+00}</p>. Ces trois vecteurs forment donc une base : {1:MULTICHOICE:%100%Vrai~%0%Faux}<p><p>&nbsp;</p><p>
O23: =IF(NOT(P17),IF(P16,TRUE,FALSE),FALSE) -> FALSE
C41: <p>Soit x=",V1._aib,"+",V2._aib," <strong>i</strong> et&nbsp;y=",V2._aib,"+",V3._aib,"<strong>i</strong> deux nombres complexes. Calculer la somme x+y=",R1._aib,"+",R2._aib," <strong>i</strong> et le produit :&nbsp;x*y=",R3._aib,"+",R4._aib," <strong>i</strong></p><p>

Sheet Vect_Normalized
A1: catégorie_VNo | B1: Vect_Normalized | C1: =CONCATENATE(" <!-- question XLQ ", titre_VNo, "-->") -> <!-- question XLQ Vect_Normalized_VNo--> | F1: Valeur Mini_VNo | G1: Valeur Maxi_VNo | H1: Sig. Digit_VNo | I1: Val Choix_VNo
B2: Vect_Normalized_VNo | C2: =CONCATENATE(" <question type=",CHAR(34),"category",CHAR(34),"><category><text>", categorie_VNo,"</text></category></question>)") -> <question type="category"><category><text>Vect_Normalized</text></category></question>) | E2: V1.X_VNo | F2: -10 | G2: 10 | I2: =RANDBETWEEN(ValMini_VNo*10^-SigDig_VNo, ValMaxi_VNo*10^-SigDig_VNo)/10^-SigDig_VNo -> 7
A3: Tag_VNo | B3: Vect_Normalized_VNo | C3: <question type="cloze"> | E3: V2.Y_VNo | F3: -10 | G3: 10 | I3: =RANDBETWEEN(ValMini_VNo*10^-SigDig_VNo, ValMaxi_VNo*10^-SigDig_VNo)/10^-SigDig_VNo -> -1 | CA3: <p>Donner les composantes du vecteur unitaire \vec{V} de m&ecirc;me direction et m&ecirc;me sens que \vec{OM} = (#1#; #2#; #3#), mais de norme 1. On d&eacute;terminera tout d'abord la norme de&nbsp;\vec{V}, ||\vec{OM}||=$1$, puis&nbsp;\vec{V} = ($2$; $3$; $4$)</p><p>
A4: idnumber_VNo | B4: =TEXT(NOW(),"aammjj-hhmmss.00") -> 210710-210621.92 | C4: =CONCATENATE(" <name><text>", titre_VNo, "</text></name>") -> <name><text>Vect_Normalized_VNo</text></name> | E4: V3.Z_VNo | F4: -10 | G4: 10 | I4: =RANDBETWEEN(ValMini_VNo*10^-SigDig_VNo, ValMaxi_VNo*10^-SigDig_VNo)/10^-SigDig_VNo -> 2
A5: points_VNo | B5: 1 | C5: <questiontext format="html">
A6: tolérance_VNo | B6: 0.05 | C6: =CONCATENATE(" <text><![CDATA[<p>", question_VNo, "</p>]]></text>") -> <text><![CDATA[<p> <p>Donner les composantes du vecteur unitaire \( \vec{V} \) de m&ecirc;me direction et m&ecirc;me sens que \( \vec{OM} \) = (7; -1; 2), mais de norme 1. On d&eacute;terminera tout d'abord la norme ||\( \vec{OM} \) ||={1:NUMERICAL:=7.35E+00:3.67E-01}, puis&nbsp;\( \vec{V} \) = ({1:NUMERICAL:=9.53E-01:4.76E-02}; {1:NUMERICAL:=-1.36E-01:6.80E-03}; {1:NUMERICAL:=2.72E-01:1.36E-02})</p><p></p>]]></text> | F6: Cible_VNo | G6: Toler_VNo | H6: PointsQuestion_VNo
A7: penalité_VNo | B7: 0.1 | C7: </questiontext> | E7: R1.Norme_VNo | F7: =SQRT(V1.X_VNo^2+V2.Y_VNo^2+V3.Z_VNo^2) -> 7.348469228 | G7: =tolerance_VNo*ValMini_VNo -> 0.3674234614 | H7: 1 | I7: =CONCATENATE("{",PointsQuestion_VNo,":NUMERICAL:=",TEXT(Cible_VNo,"0.00E+00"),":",TEXT(ABS(Tolere_VNo),"0.00E+00"),"}") -> {1:NUMERICAL:=7.35E+00:3.67E-01}
A8: feedback_VNo | B8: _ | C8: =CONCATENATE(" <defaultgrade>",points_VNo,"</defaultgrade><generalfeedback><text>",feedback_VNo,"</text></generalfeedback><penalty>",penalty_VNo,"</penalty><hidden>0</hidden>)") -> <defaultgrade>1</defaultgrade><generalfeedback><text>_</text></generalfeedback><penalty>0.1</penalty><hidden>0</hidden>) | E8: R2.Xnorm_VNo | F8: =V1.X_VNo/$F$7 -> 0.9525793444 | G8: =tolerance_VNo*ValMini_VNo -> 0.04762896722 | H8: 1 | I8: =CONCATENATE("{",PointsQuestion_VNo,":NUMERICAL:=",TEXT(Cible_VNo,"0.00E+00"),":",TEXT(ABS(Tolere_VNo),"0.00E+00"),"}") -> {1:NUMERICAL:=9.53E-01:4.76E-02}
A9: Cellule vides_VNo | B9: =COUNTBLANK(B1:B8) -> 0 | C9: =CONCATENATE(" <idnumber>",idnumber_VNo,"</idnumber><tags><tag><text>",Tag_VNo,"</text></tag></tags>") -> <idnumber>210710-210621.92</idnumber><tags><tag><text>Vect_Normalized_VNo</text></tag></tags> | E9: R3.YNorm_VNo | F9: =V2.Y_VNo/$F$7 -> -0.1360827635 | G9: =tolerance_VNo*ValMini_VNo -> -0.006804138174 | H9: 1 | I9: =CONCATENATE("{",PointsQuestion_VNo,":NUMERICAL:=",TEXT(Cible_VNo,"0.00E+00"),":",TEXT(ABS(Tolere_VNo),"0.00E+00"),"}") -> {1:NUMERICAL:=-1.36E-01:6.80E-03}
A10: question format HTML_VNo | B10: =CONCATENATE(" ",B19,B20,B21) -> <p>Donner les composantes du vecteur unitaire \( \vec{V} \) de m&ecirc;me direction et m&ecirc;me sens que \( \vec{OM} \) = (7; -1; 2), mais de norme 1. On d&eacute;terminera tout d'abord la norme ||\( \vec{OM} \) ||={1:NUMERICAL:=7.35E+00:3.67E-01}, puis&nbsp;\( \vec{V} \) = ({1:NUMERICAL:=9.53E-01:4.76E-02}; {1:NUMERICAL:=-1.36E-01:6.80E-03}; {1:NUMERICAL:=2.72E-01:1.36E-02})</p><p> | C10: </question> | E10: R4.Znorm_VNo | F10: =V3.Z_VNo/$F$7 -> 0.272165527 | G10: =tolerance_VNo*ValMini_VNo -> 0.01360827635 | H10: 1 | I10: =CONCATENATE("{",PointsQuestion_VNo,":NUMERICAL:=",TEXT(Cible_VNo,"0.00E+00"),":",TEXT(ABS(Tolere_VNo),"0.00E+00"),"}") -> {1:NUMERICAL:=2.72E-01:1.36E-02}
A11: Repere Var Rep | B11: _VNo
A12: HTML File | B12: =CONCATENATE(categorie_VNo,"_HTML.txt") -> Vect_Normalized_HTML.txt
A13: Valide ? | B13: =IF(V1.X_VNo*V2.Y_VNo*V3.Z_VNo<>0,TRUE,FALSE) -> TRUE
A14: https://html-online.com/editor/
C15: 5
A16: Var : | B16: # | C16: 3
A17: Res : | B17: $ | C17: 4
B19: =CONCATENATE("<p>Donner les composantes du vecteur unitaire \( \vec{V} \) de m&ecirc;me direction et m&ecirc;me sens que \( \vec{OM} \) = (",V1.X_VNo,"; ",V2.Y_VNo,"; ",V3.Z_VNo,"), mais de norme 1. On d&eacute;terminera tout d'abord la norme ") -> <p>Donner les composantes du vecteur unitaire \( \vec{V} \) de m&ecirc;me direction et m&ecirc;me sens que \( \vec{OM} \) = (7; -1; 2), mais de norme 1. On d&eacute;terminera tout d'abord la norme | C19: <p>Donner les composantes du vecteur unitaire \vec{V} de m&ecirc;me direction et m&ecirc;me sens que \vec{OM} = (#1#; #2#; #3#), mais de norme 1. On d&eacute;terminera tout d'abord la norme de&nbsp;\vec{V}, ||\vec{OM}||=$1$, puis&nbsp;\vec{V} = ($2$; $3$; $4$)</p>
B20: =CONCATENATE("||\( \vec{OM} \) ||=",R1.Norme_VNo,", puis&nbsp;\( \vec{V} \) = (",R2.Xnorm_VNo,"; ",R3.YNorm_VNo,"; ",R4.Znorm_VNo,")</p><p>") -> ||\( \vec{OM} \) ||={1:NUMERICAL:=7.35E+00:3.67E-01}, puis&nbsp;\( \vec{V} \) = ({1:NUMERICAL:=9.53E-01:4.76E-02}; {1:NUMERICAL:=-1.36E-01:6.80E-03}; {1:NUMERICAL:=2.72E-01:1.36E-02})</p><p>
B21: =CONCATENATE("") -> 
C41: ||\vec{OM}||=",R1.Norme_VNo,", puis&nbsp;\vec{V} = (",R2.Xnorm_VNo,"; ",R3.YNorm_VNo,"; ",R4.Znorm_VNo,")</p><p>

Sheet Comp_SP
A1: catégorie_aib | B1: Complexe | C1: =CONCATENATE(" <!-- question XLQ ", titre_aib, "-->") -> <!-- question XLQ Complexe_aib--> | F1: Valeur Mini_aib | G1: Valeur Maxi_aib | H1: Sig. Digit_aib | I1: Val Choix_aib
B2: Complexe_aib | C2: =CONCATENATE(" <question type=",CHAR(34),"category",CHAR(34),"><category><text>", categorie_aib,"</text></category></question>)") -> <question type="category"><category><text>Complexe</text></category></question>) | E2: V1._aib | F2: -5 | G2: 6 | H2: 0 | I2: =TEXT(RANDBETWEEN(ValMini_aib*10^-SigDig_aib, ValMaxi_aib*10^-SigDig_aib)/10^-SigDig_aib,"+##;-##;0") -> +6 | J2: R1
A3: Tag_aib | B3: Complexe_aib | C3: <question type="cloze"> | E3: V2._aib | F3: 1 | G3: 6 | H3: 0 | I3: =TEXT(RANDBETWEEN(ValMini_aib*10^-SigDig_aib, ValMaxi_aib*10^-SigDig_aib)/10^-SigDig_aib,"+##;-##;0") -> +1 | J3: I1 | K3: C1 | L3: =COMPLEX(V1._aib,V2._aib) -> 6+i | M3: somme | N3: =IMSUM(L3,L4) -> 9-i
A4: idnumber_aib | B4: =TEXT(NOW(),"aammjj-hhmmss.00") -> 210710-210621.92 | C4: =CONCATENATE(" <name><text>", titre_aib, "</text></name>") -> <name><text>Complexe_aib</text></name> | E4: V3._aib | F4: -5 | G4: 6 | H4: 0 | I4: =TEXT(RANDBETWEEN(ValMini_aib*10^-SigDig_aib, ValMaxi_aib*10^-SigDig_aib)/10^-SigDig_aib,"+##;-##;0") -> +3 | J4: R2 | K4: C2 | L4: =COMPLEX(V3._aib,V4._aib) -> 3-2i | M4: produit | N4: =IMPRODUCT(L3,L4) -> 20-9i
A5: points_aib | B5: 1 | C5: <questiontext format="html"> | E5: V4._aib | F5: -5 | G5: -1 | H5: 0 | I5: =TEXT(RANDBETWEEN(ValMini_aib*10^-SigDig_aib, ValMaxi_aib*10^-SigDig_aib)/10^-SigDig_aib,"+##;-##;0") -> -2 | J5: I2
A6: tolérance_aib | B6: 0.02 | C6: =CONCATENATE(" <text><![CDATA[<p>", question_aib, "</p>]]></text>") -> <text><![CDATA[<p> <p>Soit x=+6+1<strong> i </strong>et&nbsp;y=+3-2<strong> i </strong>deux nombres complexes. Calculer la somme x+y={1:NUMERICAL:=9.00E+00:1.80E-01}+{1:NUMERICAL:=-1.00E+00:2.00E-02}<strong>i</strong>et le produit :&nbsp;x*y={1:NUMERICAL:=2.00E+01:4.00E-01}+{1:NUMERICAL:=-9.00E+00:1.80E-01}<strong> i </strong></p><p></p>]]></text>
A7: penalité_aib | B7: 0.1 | C7: </questiontext>
A8: feedback_aib | B8: _ | C8: =CONCATENATE(" <defaultgrade>",points_aib,"</defaultgrade><generalfeedback><text>",feedback_aib,"</text></generalfeedback><penalty>",penalty_aib,"</penalty><hidden>0</hidden>)") -> <defaultgrade>1</defaultgrade><generalfeedback><text>_</text></generalfeedback><penalty>0.1</penalty><hidden>0</hidden>)
A9: Cellule vides_aib | B9: =COUNTBLANK(B1:B8) -> 0 | C9: =CONCATENATE(" <idnumber>",idnumber_aib,"</idnumber><tags><tag><text>",Tag_aib,"</text></tag></tags>") -> <idnumber>210710-210621.92</idnumber><tags><tag><text>Complexe_aib</text></tag></tags> | F9: Cible_aib | G9: Toler_aib | H9: PointsQuestion_aib
A10: question format HTML_aib | B10: =CONCATENATE(" ",B19,B20) -> <p>Soit x=+6+1<strong> i </strong>et&nbsp;y=+3-2<strong> i </strong>deux nombres complexes. Calculer la somme x+y={1:NUMERICAL:=9.00E+00:1.80E-01}+{1:NUMERICAL:=-1.00E+00:2.00E-02}<strong>i</strong>et le produit :&nbsp;x*y={1:NUMERICAL:=2.00E+01:4.00E-01}+{1:NUMERICAL:=-9.00E+00:1.80E-01}<strong> i </strong></p><p> | C10: </question> | E10: R1._aib | F10: =IMREAL(N3) -> 9 | G10: =tolerance_aib*ValMini_aib -> 0.18 | H10: 1 | I10: =CONCATENATE("{",PointsQuestion_aib,":NUMERICAL:=",TEXT(Cible_aib,"0.00E+00"),":",TEXT(ABS(Tolere_aib),"0.00E+00"),"}") -> {1:NUMERICAL:=9.00E+00:1.80E-01}
A11: Repere Var Rep | B11: _aib | E11: R2._aib | F11: =IMAGINARY(N3) -> -1 | G11: =tolerance_aib*ValMini_aib -> -0.02 | H11: 1 | I11: =CONCATENATE("{",PointsQuestion_aib,":NUMERICAL:=",TEXT(Cible_aib,"0.00E+00"),":",TEXT(ABS(Tolere_aib),"0.00E+00"),"}") -> {1:NUMERICAL:=-1.00E+00:2.00E-02}
A12: HTML File | B12: =CONCATENATE(categorie_aib,"_HTML.txt") -> Complexe_HTML.txt | E12: R3._aib | F12: =IMREAL(N4) -> 20 | G12: =tolerance_aib*ValMini_aib -> 0.4 | H12: 1 | I12: =CONCATENATE("{",PointsQuestion_aib,":NUMERICAL:=",TEXT(Cible_aib,"0.00E+00"),":",TEXT(ABS(Tolere_aib),"0.00E+00"),"}") -> {1:NUMERICAL:=2.00E+01:4.00E-01}
A13: https://html-online.com/editor/ | E13: R4._aib | F13: =IMAGINARY(N4) -> -9 | G13: =tolerance_aib*ValMini_aib -> -0.18 | H13: 1 | I13: =CONCATENATE("{",PointsQuestion_aib,":NUMERICAL:=",TEXT(Cible_aib,"0.00E+00"),":",TEXT(ABS(Tolere_aib),"0.00E+00"),"}") -> {1:NUMERICAL:=-9.00E+00:1.80E-01}
C15: 8
A16: Var : | B16: # | C16: 6
A17: Res : | B17: $ | C17: 4
B19: =CONCATENATE("<p>Soit x=",V1._aib,V2._aib,"<strong> i </strong>et&nbsp;y=",V3._aib,V4._aib,"<strong> i </strong>deux nombres complexes. Calculer la somme x+y=",R1._aib,"+",R2._aib,"<strong>i</strong>et le produit :&nbsp;x*y=",R3._aib,"+",R4._aib,"<strong> i </strong></p><p>") -> <p>Soit x=+6+1<strong> i </strong>et&nbsp;y=+3-2<strong> i </strong>deux nombres complexes. Calculer la somme x+y={1:NUMERICAL:=9.00E+00:1.80E-01}+{1:NUMERICAL:=-1.00E+00:2.00E-02}<strong>i</strong>et le produit :&nbsp;x*y={1:NUMERICAL:=2.00E+01:4.00E-01}+{1:NUMERICAL:=-9.00E+00:1.80E-01}<strong> i </strong></p><p> | C19: <p>Soit x=#1#+#2#i et&nbsp;y=#3#+#4#i deux nombres complexes. Calculer la somme x+y=$1$+$2$i et le produit :&nbsp;x*y=$3$+$4$i</p>
B20: =CONCATENATE("") -> 
F22: X | G22: y
F23: =V1._aib -> +6 | G23: =V2._aib -> +1 | O23: =IF(NOT(P17),IF(P16,TRUE,FALSE),FALSE) -> FALSE
F24: =V3._aib -> +3 | G24: =V4._aib -> -2
F25: =F10 -> 9 | G25: =F11 -> -1
F26: =F12 -> 20 | G26: =F13 -> -9
C41: <p>Soit x=",V1._aib,"+",V2._aib," <strong>i</strong> et&nbsp;y=",V2._aib,"+",V3._aib,"<strong>i</strong> deux nombres complexes. Calculer la somme x+y=",R1._aib,"+",R2._aib," <strong>i</strong> et le produit :&nbsp;x*y=",R3._aib,"+",R4._aib," <strong>i</strong></p><p>

Sheet Compl_ModulArgu
A1: catégorie_MAr | B1: Compl_ModulArgu | C1: =CONCATENATE(" <!-- question XLQ ", titre_MAr, "-->") -> <!-- question XLQ Compl_ModulArgu_MAr--> | F1: Valeur Mini_MAr | G1: Valeur Maxi_MAr | H1: Sig. Digit_MAr | I1: Val Choix_MAr | K1: DegRad | L1: =180/PI() -> 57.29577951 | N1: X | O1: Y
B2: Compl_ModulArgu_MAr | C2: =CONCATENATE(" <question type=",CHAR(34),"category",CHAR(34),"><category><text>", categorie_MAr,"</text></category></question>)") -> <question type="category"><category><text>Compl_ModulArgu</text></category></question>) | E2: V1.Reel_MAr | F2: -8 | G2: 8 | H2: 0 | I2: =RANDBETWEEN(ValMini_MAr*10^-SigDig_MAr, ValMaxi_MAr*10^-SigDig_MAr)/10^-SigDig_MAr -> 8 | N2: 0 | O2: 0
A3: Tag_MAr | B3: Compl_ModulArgu_MAr | C3: <question type="cloze"> | E3: V2.Imag_MAr | F3: -8 | G3: 8 | H3: 0 | I3: =RANDBETWEEN(ValMini_MAr*10^-SigDig_MAr, ValMaxi_MAr*10^-SigDig_MAr)/10^-SigDig_MAr -> -1 | L3: =57.3*IF(V1.Reel_MAr>0,ATAN(V2.Imag_MAr/V1.Reel_MAr),ATAN(V2.Imag_MAr/V1.Reel_MAr)+PI()) -> -7.125541188 | N3: =V1.Reel_MAr -> 8 | O3: =V2.Imag_MAr -> -1 | CA3: <p>Soit x="";#1#+#2#<strong>i</strong>un nombre complexe. Calculer son module rho=$1$ et son argument en degr&eacute; (entre -180 et 180) "" $2$</p><p>
A4: idnumber_MAr | B4: =TEXT(NOW(),"aammjj-hhmmss.00") -> 210710-210621.92 | C4: =CONCATENATE(" <name><text>", titre_MAr, "</text></name>") -> <name><text>Compl_ModulArgu_MAr</text></name>
A5: points_MAr | B5: 1 | C5: <questiontext format="html"> | F5: Cible_MAr | G5: Toler_MAr | H5: PointsQuestion_MAr
A6: tolérance_MAr | B6: 0.05 | C6: =CONCATENATE(" <text><![CDATA[<p>", question_MAr, "</p>]]></text>") -> <text><![CDATA[<p> <p>Soit x= 8 + -1 <strong> i </strong> un nombre complexe. Calculer son module rho={1:NUMERICAL:=8.06E+00:4.03E-01} et son argument en degr&eacute; (entre -90 et 270) " {1:NUMERICAL:=-7.13E+00:3.56E-01}</p><p></p>]]></text> | E6: R1.Modu_MAr | F6: =SQRT(V1.Reel_MAr^2+V2.Imag_MAr^2) -> 8.062257748 | G6: =tolerance_MAr*ValMini_MAr -> 0.4031128874 | H6: 1 | I6: =CONCATENATE("{",PointsQuestion_MAr,":NUMERICAL:=",TEXT(Cible_MAr,"0.00E+00"),":",TEXT(ABS(Tolere_MAr),"0.00E+00"),"}") -> {1:NUMERICAL:=8.06E+00:4.03E-01}
A7: penalité_MAr | B7: 0.1 | C7: </questiontext> | E7: R2.ArguDeg_MAr | F7: =L3 -> -7.125541188 | G7: =tolerance_MAr*ValMini_MAr -> -0.3562770594 | H7: 1 | I7: =CONCATENATE("{",PointsQuestion_MAr,":NUMERICAL:=",TEXT(Cible_MAr,"0.00E+00"),":",TEXT(ABS(Tolere_MAr),"0.00E+00"),"}") -> {1:NUMERICAL:=-7.13E+00:3.56E-01}
A8: feedback_MAr | B8: _ | C8: =CONCATENATE(" <defaultgrade>",points_MAr,"</defaultgrade><generalfeedback><text>",feedback_MAr,"</text></generalfeedback><penalty>",penalty_MAr,"</penalty><hidden>0</hidden>)") -> <defaultgrade>1</defaultgrade><generalfeedback><text>_</text></generalfeedback><penalty>0.1</penalty><hidden>0</hidden>)
A9: Cellule vides_MAr | B9: =COUNTBLANK(B1:B8) -> 0 | C9: =CONCATENATE(" <idnumber>",idnumber_MAr,"</idnumber><tags><tag><text>",Tag_MAr,"</text></tag></tags>") -> <idnumber>210710-210621.92</idnumber><tags><tag><text>Compl_ModulArgu_MAr</text></tag></tags>
A10: question format HTML_MAr | B10: =CONCATENATE(" ",B19,B20) -> <p>Soit x= 8 + -1 <strong> i </strong> un nombre complexe. Calculer son module rho={1:NUMERICAL:=8.06E+00:4.03E-01} et son argument en degr&eacute; (entre -90 et 270) " {1:NUMERICAL:=-7.13E+00:3.56E-01}</p><p> | C10: </question>
A11: Repere Var Rep | B11: _MAr
A12: HTML File | B12: =CONCATENATE(categorie_MAr,"_HTML.txt") -> Compl_ModulArgu_HTML.txt
A13: Valide ? | B13: =IF(AND(V1.Reel_MAr<>V2.Imag_MAr,V1.Reel_MAr*V2.Imag_MAr<>0),TRUE,FALSE) -> TRUE
A14: https://html-online.com/editor/
C15: 4
A16: Var : | B16: # | C16: 2
A17: Res : | B17: $ | C17: 2
B19: =CONCATENATE("<p>Soit x= ",V1.Reel_MAr," + ",V2.Imag_MAr," <strong> i </strong> un nombre complexe. Calculer son module rho=",R1.Modu_MAr," et son argument en degr&eacute; (entre -90 et 270) "" ",R2.ArguDeg_MAr,"</p><p>") -> <p>Soit x= 8 + -1 <strong> i </strong> un nombre complexe. Calculer son module rho={1:NUMERICAL:=8.06E+00:4.03E-01} et son argument en degr&eacute; (entre -90 et 270) " {1:NUMERICAL:=-7.13E+00:3.56E-01}</p><p> | C19: <p>Soit x=";#1#+#2#<strong>i</strong>un nombre complexe. Calculer son module rho=$1$ et son argument en degr&eacute; (entre -180 et 180) " $2$</p>
B20: =CONCATENATE("") -> 
C41: <p>Soit x="";",V1.Reel_MAr,"+",V2.Imag_MAr,"<strong>i</strong>un nombre complexe. Calculer son module rho=",R1.Modu_MAr," et son argument en degr&eacute; (entre -180 et 180) "" ",R2.ArguDeg_MAr,"</p><p>

Sheet Comp_Rac
A1: catégorie_Rac | B1: Comp_Rac | C1: =CONCATENATE(" <!-- question XLQ ", titre_Rac, "-->") -> <!-- question XLQ Comp_Rac_Rac--> | F1: Valeur Mini_Rac | G1: Valeur Maxi_Rac | H1: Sig. Digit_Rac | I1: Val Choix_Rac | L1: Degrad | M1: =180/PI() -> 57.29577951
B2: Comp_Rac_Rac | C2: =CONCATENATE(" <question type=",CHAR(34),"category",CHAR(34),"><category><text>", categorie_Rac,"</text></category></question>)") -> <question type="category"><category><text>Comp_Rac</text></category></question>) | E2: V1.Re_Rac | F2: 1 | G2: 9 | H2: 0 | I2: =TEXT(J2*RANDBETWEEN(ValMini_Rac*10^-SigDig_Rac, ValMaxi_Rac*10^-SigDig_Rac)/10^-SigDig_Rac,"+##;-##;0") -> +8 | J2: =IF(RAND()>0.5,1,-1) -> 1 | L2: C1 | M2: =COMPLEX(V1.Re_Rac,V2.Im_Rac) -> 8+5i
A3: Tag_Rac | B3: Comp_Rac_Rac | C3: <question type="cloze"> | E3: V2.Im_Rac | F3: 1 | G3: 9 | H3: 0 | I3: =TEXT(J3*RANDBETWEEN(ValMini_Rac*10^-SigDig_Rac, ValMaxi_Rac*10^-SigDig_Rac)/10^-SigDig_Rac,"+##;-##;0") -> +5 | J3: =IF(RAND()>0.5,1,-1) -> 1 | M3: =IMSQRT(M2) -> 2.95245500660523+0.846752954543592i
A4: idnumber_Rac | B4: =TEXT(NOW(),"aammjj-hhmmss.00") -> 210710-210621.92 | C4: =CONCATENATE(" <name><text>", titre_Rac, "</text></name>") -> <name><text>Comp_Rac_Rac</text></name>
A5: points_Rac | B5: 1 | C5: <questiontext format="html"> | F5: Cible_Rac | G5: Toler_Rac | H5: PointsQuestion_Rac | M5: 0 | N5: 0
A6: tolérance_Rac | B6: 0.05 | C6: =CONCATENATE(" <text><![CDATA[<p>", question_Rac, "</p>]]></text>") -> <text><![CDATA[<p> <p>Soit x=+8+5<strong> i </strong>un&nbsp;nombre complexe. Calculer sa premi&egrave;re racine carr&eacute; (k=0) et la pr&eacute;senter en module et argument&nbsp;&rho; = {1:NUMERICAL:=3.07E+00:1.54E-01} et &Theta;={1:NUMERICAL:=1.60E+01:8.00E-01} ( -180 &lt;&Theta;&lt; 180),et partie r&eacute;elle et imaginaire : &nbsp; \( \sqrt[ ]{x} \)= {1:NUMERICAL:=2.95E+00:1.48E-01} + {1:NUMERICAL:=8.47E-01:4.23E-02} i.&nbsp;</p><p></p>]]></text> | E6: R1._Rac | F6: =IMABS(M3) -> 3.071478656 | G6: =tolerance_Rac*ValMini_Rac -> 0.1535739328 | H6: 1 | I6: =CONCATENATE("{",PointsQuestion_Rac,":NUMERICAL:=",TEXT(Cible_Rac,"0.00E+00"),":",TEXT(ABS(Tolere_Rac),"0.00E+00"),"}") -> {1:NUMERICAL:=3.07E+00:1.54E-01} | M6: =V1.Re_Rac -> +8 | N6: =V2.Im_Rac -> +5
A7: penalité_Rac | B7: 0.1 | C7: </questiontext> | E7: R2._Rac | F7: =M1*IMARGUMENT(M3) -> 16.0026916 | G7: =tolerance_Rac*ValMini_Rac -> 0.8001345802 | H7: 1 | I7: =CONCATENATE("{",PointsQuestion_Rac,":NUMERICAL:=",TEXT(Cible_Rac,"0.00E+00"),":",TEXT(ABS(Tolere_Rac),"0.00E+00"),"}") -> {1:NUMERICAL:=1.60E+01:8.00E-01}
A8: feedback_Rac | B8: _ | C8: =CONCATENATE(" <defaultgrade>",points_Rac,"</defaultgrade><generalfeedback><text>",feedback_Rac,"</text></generalfeedback><penalty>",penalty_Rac,"</penalty><hidden>0</hidden>)") -> <defaultgrade>1</defaultgrade><generalfeedback><text>_</text></generalfeedback><penalty>0.1</penalty><hidden>0</hidden>) | E8: R3._Rac | F8: =IMREAL(M3) -> 2.952455007 | G8: =tolerance_Rac*ValMini_Rac -> 0.1476227503 | H8: 1 | I8: =CONCATENATE("{",PointsQuestion_Rac,":NUMERICAL:=",TEXT(Cible_Rac,"0.00E+00"),":",TEXT(ABS(Tolere_Rac),"0.00E+00"),"}") -> {1:NUMERICAL:=2.95E+00:1.48E-01} | M8: 0 | N8: 0
A9: Cellule vides_Rac | B9: =COUNTBLANK(B1:B8) -> 0 | C9: =CONCATENATE(" <idnumber>",idnumber_Rac,"</idnumber><tags><tag><text>",Tag_Rac,"</text></tag></tags>") -> <idnumber>210710-210621.92</idnumber><tags><tag><text>Comp_Rac_Rac</text></tag></tags> | E9: R4._Rac | F9: =IMAGINARY(M3) -> 0.8467529545 | G9: =tolerance_Rac*ValMini_Rac -> 0.04233764773 | H9: 1 | I9: =CONCATENATE("{",PointsQuestion_Rac,":NUMERICAL:=",TEXT(Cible_Rac,"0.00E+00"),":",TEXT(ABS(Tolere_Rac),"0.00E+00"),"}") -> {1:NUMERICAL:=8.47E-01:4.23E-02} | M9: =F8 -> 2.952455007 | N9: =F9 -> 0.8467529545
A10: question format HTML_Rac | B10: =CONCATENATE(" ",B19,B20,B21) -> <p>Soit x=+8+5<strong> i </strong>un&nbsp;nombre complexe. Calculer sa premi&egrave;re racine carr&eacute; (k=0) et la pr&eacute;senter en module et argument&nbsp;&rho; = {1:NUMERICAL:=3.07E+00:1.54E-01} et &Theta;={1:NUMERICAL:=1.60E+01:8.00E-01} ( -180 &lt;&Theta;&lt; 180),et partie r&eacute;elle et imaginaire : &nbsp; \( \sqrt[ ]{x} \)= {1:NUMERICAL:=2.95E+00:1.48E-01} + {1:NUMERICAL:=8.47E-01:4.23E-02} i.&nbsp;</p><p> | C10: </question>
A11: Repere Var Rep | B11: _Rac
A12: HTML File | B12: =CONCATENATE(categorie_Rac,"_HTML.txt") -> Comp_Rac_HTML.txt
A13: https://html-online.com/editor/
C15: 4
A16: Var : | B16: # | C16: 2
A17: Res : | B17: $ | C17: 8 | M17: \( \sqrt[]{x} \)
B19: =CONCATENATE("<p>Soit x=",V1.Re_Rac,V2.Im_Rac,"<strong> i </strong>un&nbsp;nombre complexe. Calculer sa premi&egrave;re racine carr&eacute; (k=0) et la pr&eacute;senter en module et argument&nbsp;&rho; = ",R1._Rac," et &Theta;=",R2._Rac," ( -180 &lt;&Theta;&lt; 180),") -> <p>Soit x=+8+5<strong> i </strong>un&nbsp;nombre complexe. Calculer sa premi&egrave;re racine carr&eacute; (k=0) et la pr&eacute;senter en module et argument&nbsp;&rho; = {1:NUMERICAL:=3.07E+00:1.54E-01} et &Theta;={1:NUMERICAL:=1.60E+01:8.00E-01} ( -180 &lt;&Theta;&lt; 180), | C19: <p>Soit x=#1#+#2#i un&nbsp;nombre complexe. Calculer sa premi&egrave;re racine carr&eacute; (k=0) et la pr&eacute;senter en module et argument&nbsp;&rho; = $1$ et &Theta;=$2$ ( -180 &lt;&Theta;&lt; 180), et partie r&eacute;elle et imaginaire :&nbsp; = $3$ + $4$ i.&nbsp;</p> | L19: degré | M19: racine | N19: formule
B20: =CONCATENATE("et partie r&eacute;elle et imaginaire : &nbsp; \( \sqrt[ ]{x} \)= ",R3._Rac," + ",R4._Rac," i.&nbsp;</p><p>") -> et partie r&eacute;elle et imaginaire : &nbsp; \( \sqrt[ ]{x} \)= {1:NUMERICAL:=2.95E+00:1.48E-01} + {1:NUMERICAL:=8.47E-01:4.23E-02} i.&nbsp;</p><p> | M20: x | N20: =CONCATENATE("\( \sqrt[",L20,"]{",M20,"} \)") -> \( \sqrt[ ]{x} \) | O20: \( \sqrt[ ]{x} \)
B21: =CONCATENATE("") ->  | L21: 3 | M21: y | N21: =CONCATENATE("\( \sqrt[",L21,"]{",M21,"} \)") -> \( \sqrt[3]{y} \)
O23: =IF(NOT(P17),IF(P16,TRUE,FALSE),FALSE) -> FALSE
C41: <p>Soit x=",V1._aib,"+",V2._aib," <strong>i</strong> et&nbsp;y=",V2._aib,"+",V3._aib,"<strong>i</strong> deux nombres complexes. Calculer la somme x+y=",R1._aib,"+",R2._aib," <strong>i</strong> et le produit :&nbsp;x*y=",R3._aib,"+",R4._aib," <strong>i</strong></p><p>

Sheet Comp_Div
A1: catégorie_CoDiv | B1: Comp_Div | C1: =CONCATENATE(" <!-- question XLQ ", titre_CoDiv, "-->") -> <!-- question XLQ Comp_Div_CoDiv--> | F1: Valeur Mini_CoDiv | G1: Valeur Maxi_CoDiv | H1: Sig. Digit_CoDiv | I1: Val Choix_CoDiv
B2: Comp_Div_CoDiv | C2: =CONCATENATE(" <question type=",CHAR(34),"category",CHAR(34),"><category><text>", categorie_CoDiv,"</text></category></question>)") -> <question type="category"><category><text>Comp_Div</text></category></question>) | E2: V1._CoDiv | F2: -5 | G2: 6 | H2: 0 | I2: =TEXT(J2*RANDBETWEEN(ValMini_CoDiv*10^-SigDig_CoDiv, ValMaxi_CoDiv*10^-SigDig_CoDiv)/10^-SigDig_CoDiv,"+##;-##;0") -> -1 | J2: =IF(RAND()>0.5,1,-1) -> 1
A3: Tag_CoDiv | B3: Comp_Div_CoDiv | C3: <question type="cloze"> | E3: V2._CoDiv | F3: 1 | G3: 6 | H3: 0 | I3: =TEXT(J3*RANDBETWEEN(ValMini_CoDiv*10^-SigDig_CoDiv, ValMaxi_CoDiv*10^-SigDig_CoDiv)/10^-SigDig_CoDiv,"+##;-##;0") -> +2 | J3: =IF(RAND()>0.5,1,-1) -> 1 | L3: C1 | M3: =COMPLEX(V1._CoDiv,V2._CoDiv) -> -1+2i | N3: =IMDIV(M3,M4) -> -0.5+0.5i | CA3: <p>Soit x=#1#+#2#i et&nbsp;y=#3#+#4#i deux nombres complexes. Calculer le ratio x/y=$1$+$2$i sous forme cart&eacute;sienne.</p><p>
A4: idnumber_CoDiv | B4: =TEXT(NOW(),"aammjj-hhmmss.00") -> 210710-210621.92 | C4: =CONCATENATE(" <name><text>", titre_CoDiv, "</text></name>") -> <name><text>Comp_Div_CoDiv</text></name> | E4: V3._CoDiv | F4: -5 | G4: 6 | H4: 0 | I4: =TEXT(J4*RANDBETWEEN(ValMini_CoDiv*10^-SigDig_CoDiv, ValMaxi_CoDiv*10^-SigDig_CoDiv)/10^-SigDig_CoDiv,"+##;-##;0") -> +3 | J4: -1 | L4: C2 | M4: =COMPLEX(V3._CoDiv,V4._CoDiv) -> 3-i
A5: points_CoDiv | B5: 1 | C5: <questiontext format="html"> | E5: V4._CoDiv | F5: -5 | G5: -1 | H5: 0 | I5: =TEXT(J5*RANDBETWEEN(ValMini_CoDiv*10^-SigDig_CoDiv, ValMaxi_CoDiv*10^-SigDig_CoDiv)/10^-SigDig_CoDiv,"+##;-##;0") -> -1 | J5: 1
A6: tolérance_CoDiv | B6: 0.05 | C6: =CONCATENATE(" <text><![CDATA[<p>", question_CoDiv, "</p>]]></text>") -> <text><![CDATA[<p> <p>Soit x=-1+2<strong> i </strong> et &nbsp; y =+3-1<strong> i </strong>deux nombres complexes. Calculer le ratio x/y={1:NUMERICAL:=-5.00E-01:2.50E-02}+{1:NUMERICAL:=5.00E-01:2.50E-02}<strong> i </strong>sous forme cart&eacute;sienne.</p><p></p>]]></text>
A7: penalité_CoDiv | B7: 0.1 | C7: </questiontext> | F7: Cible_CoDiv | G7: Toler_CoDiv | H7: PointsQuestion_CoDiv
A8: feedback_CoDiv | B8: _ | C8: =CONCATENATE(" <defaultgrade>",points_CoDiv,"</defaultgrade><generalfeedback><text>",feedback_CoDiv,"</text></generalfeedback><penalty>",penalty_CoDiv,"</penalty><hidden>0</hidden>)") -> <defaultgrade>1</defaultgrade><generalfeedback><text>_</text></generalfeedback><penalty>0.1</penalty><hidden>0</hidden>) | E8: R1._CoDiv | F8: =IMREAL(N3) -> -0.5 | G8: =tolerance_CoDiv*ValMini_CoDiv -> -0.025 | H8: 1 | I8: =CONCATENATE("{",PointsQuestion_CoDiv,":NUMERICAL:=",TEXT(Cible_CoDiv,"0.00E+00"),":",TEXT(ABS(Tolere_CoDiv),"0.00E+00"),"}") -> {1:NUMERICAL:=-5.00E-01:2.50E-02}
A9: Cellule vides_CoDiv | B9: =COUNTBLANK(B1:B8) -> 0 | C9: =CONCATENATE(" <idnumber>",idnumber_CoDiv,"</idnumber><tags><tag><text>",Tag_CoDiv,"</text></tag></tags>") -> <idnumber>210710-210621.92</idnumber><tags><tag><text>Comp_Div_CoDiv</text></tag></tags> | E9: R2._CoDiv | F9: =IMAGINARY(N3) -> 0.5 | G9: =tolerance_CoDiv*ValMini_CoDiv -> 0.025 | H9: 1 | I9: =CONCATENATE("{",PointsQuestion_CoDiv,":NUMERICAL:=",TEXT(Cible_CoDiv,"0.00E+00"),":",TEXT(ABS(Tolere_CoDiv),"0.00E+00"),"}") -> {1:NUMERICAL:=5.00E-01:2.50E-02}
A10: question format HTML_CoDiv | B10: =CONCATENATE(" ",B19,B20) -> <p>Soit x=-1+2<strong> i </strong> et &nbsp; y =+3-1<strong> i </strong>deux nombres complexes. Calculer le ratio x/y={1:NUMERICAL:=-5.00E-01:2.50E-02}+{1:NUMERICAL:=5.00E-01:2.50E-02}<strong> i </strong>sous forme cart&eacute;sienne.</p><p> | C10: </question>
A11: Repere Var Rep | B11: _CoDiv
A12: HTML File | B12: =CONCATENATE(categorie_CoDiv,"_HTML.txt") -> Comp_Div_HTML.txt
A13: https://html-online.com/editor/
C15: 6
A16: Var : | B16: # | C16: 4
A17: Res : | B17: $ | C17: 2
B19: =CONCATENATE("<p>Soit x=",V1._CoDiv,V2._CoDiv,"<strong> i </strong> et &nbsp; y =",V3._CoDiv,V4._CoDiv,"<strong> i </strong>deux nombres complexes. Calculer le ratio x/y=",R1._CoDiv, "+",R2._CoDiv,"<strong> i </strong>sous forme cart&eacute;sienne.</p><p>") -> <p>Soit x=-1+2<strong> i </strong> et &nbsp; y =+3-1<strong> i </strong>deux nombres complexes. Calculer le ratio x/y={1:NUMERICAL:=-5.00E-01:2.50E-02}+{1:NUMERICAL:=5.00E-01:2.50E-02}<strong> i </strong>sous forme cart&eacute;sienne.</p><p> | C19: <p>Soit x=#1#+#2#i et&nbsp;y=#3#+#4#i deux nombres complexes. Calculer le ratio x/y=$1$+$2$i sous forme cart&eacute;sienne.</p>
B20: =CONCATENATE("") -> 
O23: =IF(NOT(P17),IF(P16,TRUE,FALSE),FALSE) -> FALSE
C41: <p>Soit x=",V1._aib,"+",V2._aib," <strong>i</strong> et&nbsp;y=",V2._aib,"+",V3._aib,"<strong>i</strong> deux nombres complexes. Calculer la somme x+y=",R1._aib,"+",R2._aib," <strong>i</strong> et le produit :&nbsp;x*y=",R3._aib,"+",R4._aib," <strong>i</strong></p><p>

Sheet Comp_Calc
A1: catégorie_ | B1: Comp_Calc | C1: =CONCATENATE(" <!-- question XLQ ", titre_, "-->") -> <!-- question XLQ Comp_Calc_--> | F1: Valeur Mini_ | G1: Valeur Maxi_ | H1: Sig. Digit_ | I1: Val Choix_
B2: Comp_Calc_ | C2: =CONCATENATE(" <question type=",CHAR(34),"category",CHAR(34),"><category><text>", categorie_,"</text></category></question>)") -> <question type="category"><category><text>Comp_Calc</text></category></question>) | E2: V1._ | F2: 1 | G2: 4 | H2: 0 | I2: =TEXT(J2*RANDBETWEEN(ValMini_*10^-SigDig_, ValMaxi_*10^-SigDig_)/10^-SigDig_,"+##;-##;0") -> -1 | J2: =IF(RAND()>0.5,1,-1) -> -1 | K2: R1
A3: Tag_ | B3: Comp_Calc_ | C3: <question type="cloze"> | E3: V2._ | F3: 1 | G3: 4 | H3: 0 | I3: +4 | J3: =IF(RAND()>0.5,1,-1) -> 1 | K3: Im1 | L3: C1 | M3: =COMPLEX(V1._,V2._) -> -1+4i | N3: =IMSUM($M$3,$M$4) -> 2+2i | O3: somme | CA3: <p>Soit x=#1#+#2#i et&nbsp;y=#3#+#4#i deux nombres complexes. Calculer et &eacute;crire sous la forme alg&eacute;brique</p><p><p>x + y&nbsp; =$1$+$2$i&nbsp;</p><p><p>x- y = $3$ +$4$i</p><p><p>#5#x +#6#y&nbsp;= $5$ +$6$i</p><p><p>xy&nbsp; = $7$ + $8$i</p><p><p>x*x=&nbsp;&nbsp;$9$ +$10$i</p><p><p>&nbsp;</p><p>
A4: idnumber_ | B4: =TEXT(NOW(),"aammjj-hhmmss.00") -> 210710-210621.92 | C4: =CONCATENATE(" <name><text>", titre_, "</text></name>") -> <name><text>Comp_Calc_</text></name> | E4: V3._ | F4: 1 | G4: 4 | H4: 0 | I4: +3 | J4: 1 | K4: R2 | L4: C2 | M4: =COMPLEX(V3._,V4._) -> 3-2i | N4: =IMSUB($M$3,$M$4) -> -4+6i | O4: difference
A5: points_ | B5: 1 | C5: <questiontext format="html"> | E5: V4._ | F5: 1 | G5: 4 | H5: 0 | I5: -2 | J5: -1 | K5: Im2 | N5: =COMPLEX(V1._*V5._+V3._*V6._,V2._*V5._+V4._*V6._) -> -16+14i | O5: fonc
A6: tolérance_ | B6: 0.05 | C6: =CONCATENATE(" <text><![CDATA[<p>", question_, "</p>]]></text>") -> <text><![CDATA[<p> <p>Soit x=-1+4<strong> i </strong>et&nbsp;y=+3-2<strong> i </strong>deux nombres complexes. Calculer et &eacute;crire sous la forme alg&eacute;brique</p><p><p>x + y&nbsp; ={1:NUMERICAL:=2.00E+00:1.00E-01}+{1:NUMERICAL:=2.00E+00:1.00E-01}<strong> i </strong>&nbsp;</p><p><p>x- y = {1:NUMERICAL:=-4.00E+00:2.00E-01} +{1:NUMERICAL:=6.00E+00:3.00E-01}<strong> i </strong></p><p><p>+1x +-5y&nbsp;={1:NUMERICAL:=-1.60E+01:8.00E-01} +{1:NUMERICAL:=1.40E+01:7.00E-01}<strong> i </strong></p><p><p>xy&nbsp; = {1:NUMERICAL:=5.00E+00:2.50E-01} + {1:NUMERICAL:=1.40E+01:7.00E-01}<strong> i </strong></p><p><p>x*x=&nbsp;&nbsp;{1:NUMERICAL:=-1.50E+01:7.50E-01} +{1:NUMERICAL:=-8.00E+00:4.00E-01}<strong> i </strong></p><p><p>&nbsp;</p><p></p>]]></text> | E6: V5._ | F6: 1 | G6: 4 | H6: 0 | I6: +1 | J6: 1 | K6: Mult1 | N6: =IMPRODUCT(M3,M4) -> 5+14i | O6: produit
A7: penalité_ | B7: 0.1 | C7: </questiontext> | E7: V6._ | F7: 1 | G7: 5 | H7: 0 | I7: -5 | J7: -1 | K7: Mult2 | N7: =IMPRODUCT(M3,M3) -> -15-8i | O7: x2
A8: feedback_ | B8: _ | C8: =CONCATENATE(" <defaultgrade>",points_,"</defaultgrade><generalfeedback><text>",feedback_,"</text></generalfeedback><penalty>",penalty_,"</penalty><hidden>0</hidden>)") -> <defaultgrade>1</defaultgrade><generalfeedback><text>_</text></generalfeedback><penalty>0.1</penalty><hidden>0</hidden>)
A9: Cellule vides_ | B9: =COUNTBLANK(B1:B8) -> 0 | C9: =CONCATENATE(" <idnumber>",idnumber_,"</idnumber><tags><tag><text>",Tag_,"</text></tag></tags>") -> <idnumber>210710-210621.92</idnumber><tags><tag><text>Comp_Calc_</text></tag></tags> | F9: Cible_ | G9: Toler_ | H9: PointsQuestion_
A10: question format HTML_ | B10: =CONCATENATE(" ",B19,B20,B21,B22) -> <p>Soit x=-1+4<strong> i </strong>et&nbsp;y=+3-2<strong> i </strong>deux nombres complexes. Calculer et &eacute;crire sous la forme alg&eacute;brique</p><p><p>x + y&nbsp; ={1:NUMERICAL:=2.00E+00:1.00E-01}+{1:NUMERICAL:=2.00E+00:1.00E-01}<strong> i </strong>&nbsp;</p><p><p>x- y = {1:NUMERICAL:=-4.00E+00:2.00E-01} +{1:NUMERICAL:=6.00E+00:3.00E-01}<strong> i </strong></p><p><p>+1x +-5y&nbsp;={1:NUMERICAL:=-1.60E+01:8.00E-01} +{1:NUMERICAL:=1.40E+01:7.00E-01}<strong> i </strong></p><p><p>xy&nbsp; = {1:NUMERICAL:=5.00E+00:2.50E-01} + {1:NUMERICAL:=1.40E+01:7.00E-01}<strong> i </strong></p><p><p>x*x=&nbsp;&nbsp;{1:NUMERICAL:=-1.50E+01:7.50E-01} +{1:NUMERICAL:=-8.00E+00:4.00E-01}<strong> i </strong></p><p><p>&nbsp;</p><p> | C10: </question> | E10: R1._ | F10: =IMREAL(N3) -> 2 | G10: =tolerance_*ValMini_ -> 0.1 | H10: 1 | I10: =CONCATENATE("{",PointsQuestion_,":NUMERICAL:=",TEXT(Cible_,"0.00E+00"),":",TEXT(ABS(Tolere_),"0.00E+00"),"}") -> {1:NUMERICAL:=2.00E+00:1.00E-01}
A11: Repere Var Rep | B11: _ | E11: R2._ | F11: =IMAGINARY(N3) -> 2 | G11: 0.1 | H11: 1 | I11: {1:NUMERICAL:=2.00E+00:1.00E-01}
A12: HTML File | B12: =CONCATENATE(categorie_,"_HTML.txt") -> Comp_Calc_HTML.txt | E12: R3._ | F12: =IMREAL(N4) -> -4 | G12: -0.2 | H12: 1 | I12: {1:NUMERICAL:=-4.00E+00:2.00E-01}
A13: https://html-online.com/editor/ | E13: R4._ | F13: =IMAGINARY(N4) -> 6 | G13: 0.3 | H13: 1 | I13: {1:NUMERICAL:=6.00E+00:3.00E-01}
E14: R5._ | F14: =IMREAL(N5) -> -16 | G14: -0.8 | H14: 1 | I14: {1:NUMERICAL:=-1.60E+01:8.00E-01}
C15: 8 | E15: R6._ | F15: =IMAGINARY(N5) -> 14 | G15: 0.7 | H15: 1 | I15: {1:NUMERICAL:=1.40E+01:7.00E-01}
A16: Var : | B16: # | C16: 6 | E16: R7._ | F16: =IMREAL(N6) -> 5 | G16: 0.25 | H16: 1 | I16: {1:NUMERICAL:=5.00E+00:2.50E-01}
A17: Res : | B17: $ | C17: 10 | E17: R8._ | F17: =IMAGINARY(N6) -> 14 | G17: 0.7 | H17: 1 | I17: {1:NUMERICAL:=1.40E+01:7.00E-01}
E18: R9._ | F18: =IMREAL(N7) -> -15 | G18: -0.75 | H18: 1 | I18: {1:NUMERICAL:=-1.50E+01:7.50E-01}
B19: =CONCATENATE("<p>Soit x=",V1._,V2._,"<strong> i </strong>et&nbsp;y=",V3._,V4._,"<strong> i </strong>deux nombres complexes. Calculer et &eacute;crire sous la forme alg&eacute;brique</p><p><p>x + y&nbsp; =",R1._,"+",R2._,"<strong> i </strong>&nbsp;</p><p><p>x- y = ",R3._," +",R4._,"<strong> i </strong></p><p><p>",V5._,"x +",V6._,"y&nbsp;=") -> <p>Soit x=-1+4<strong> i </strong>et&nbsp;y=+3-2<strong> i </strong>deux nombres complexes. Calculer et &eacute;crire sous la forme alg&eacute;brique</p><p><p>x + y&nbsp; ={1:NUMERICAL:=2.00E+00:1.00E-01}+{1:NUMERICAL:=2.00E+00:1.00E-01}<strong> i </strong>&nbsp;</p><p><p>x- y = {1:NUMERICAL:=-4.00E+00:2.00E-01} +{1:NUMERICAL:=6.00E+00:3.00E-01}<strong> i </strong></p><p><p>+1x +-5y&nbsp;= | C19: <p>Soit x=#1#+#2#i et&nbsp;y=#3#+#4#i deux nombres complexes. Calculer et &eacute;crire sous la forme alg&eacute;brique</p> | E19: R10._ | F19: =IMAGINARY(N7) -> -8 | G19: -0.4 | H19: 1 | I19: {1:NUMERICAL:=-8.00E+00:4.00E-01}
B20: =CONCATENATE("",R5._," +",R6._,"<strong> i </strong></p><p><p>xy&nbsp; = ",R7._," + ",R8._,"<strong> i </strong></p><p><p>x*x=&nbsp;&nbsp;",R9._," +",R10._,"<strong> i </strong></p><p><p>&nbsp;</p><p>") -> {1:NUMERICAL:=-1.60E+01:8.00E-01} +{1:NUMERICAL:=1.40E+01:7.00E-01}<strong> i </strong></p><p><p>xy&nbsp; = {1:NUMERICAL:=5.00E+00:2.50E-01} + {1:NUMERICAL:=1.40E+01:7.00E-01}<strong> i </strong></p><p><p>x*x=&nbsp;&nbsp;{1:NUMERICAL:=-1.50E+01:7.50E-01} +{1:NUMERICAL:=-8.00E+00:4.00E-01}<strong> i </strong></p><p><p>&nbsp;</p><p> | C20: <p>x + y&nbsp; =$1$+$2$i&nbsp;</p>
B21: =CONCATENATE("") ->  | C21: <p>x- y = $3$ +$4$i</p>
B22: =CONCATENATE("") ->  | C22: <p>#5#x +#6#y&nbsp;= $5$ +$6$i</p>
C23: <p>xy&nbsp; = $7$ + $8$i</p> | O23: =IF(NOT(P17),IF(P16,TRUE,FALSE),FALSE) -> FALSE
C24: <p>x*x=&nbsp;&nbsp;$9$ +$10$i</p>
C25: <p>&nbsp;</p>
C41: <p>Soit x=",V1._aib,"+",V2._aib," <strong>i</strong> et&nbsp;y=",V2._aib,"+",V3._aib,"<strong>i</strong> deux nombres complexes. Calculer la somme x+y=",R1._aib,"+",R2._aib," <strong>i</strong> et le produit :&nbsp;x*y=",R3._aib,"+",R4._aib," <strong>i</strong></p><p>

Sheet Comp_Trian
A1: catégorie_trian | B1: Comp_Trian | C1: =CONCATENATE(" <!-- question XLQ ", titre_trian, "-->") -> <!-- question XLQ Comp_Trian_trian--> | F1: Valeur Mini_trian | G1: Valeur Maxi_trian | H1: Sig. Digit_trian | I1: Val Choix_trian
B2: Comp_Trian_trian | C2: =CONCATENATE(" <question type=",CHAR(34),"category",CHAR(34),"><category><text>", categorie_trian,"</text></category></question>)") -> <question type="category"><category><text>Comp_Trian</text></category></question>) | E2: V1._trian | F2: 1 | G2: 4 | H2: 0 | I2: =TEXT(J2*RANDBETWEEN(ValMini_trian*10^-SigDig_trian, ValMaxi_trian*10^-SigDig_trian)/10^-SigDig_trian,"+##;-##;0") -> +1 | J2: =IF(RAND()>0.5,1,-1) -> 1 | K2: R1 | P2: distance | S2: angle | V2: x | W2: y
A3: Tag_trian | B3: Comp_Trian_trian | C3: <question type="cloze"> | E3: V2._trian | F3: 1 | G3: 4 | H3: 0 | I3: +3 | J3: =IF(RAND()>0.5,1,-1) -> 1 | K3: Im1 | L3: A | M3: =COMPLEX(V1._trian,V2._trian) -> 1+3i | N3: ZAB | O3: =IMSUB(M4,M3) -> -5-4i | P3: =IMABS(O3) -> 6.403124237 | Q3: AB, AC | R3: =IMDIV(IMSUB(M4,M3),IMSUB(M5,M3)) -> 0.576923076923077-1.11538461538462i | S3: =ABS(180*IMARGUMENT(R3)/PI()) -> 62.65012422 | U3: A | V3: =V1._trian -> +1 | W3: =V2._trian -> +3 | X3: A | CA3: <p>Soit z<sub>A</sub>=#1#+#2#i et z<sub>B</sub>=#3#+#4#i et z<sub>C</sub>&nbsp;=#5#+#6#i trois nombres complexes affixes des points A, B, C.</p><p><p>D&eacute;terminer les 3 longueurs dans le plan complexe :&nbsp;</p><p><p>AB =$1$</p><p><p>AC= $2$</p><p><p>BC = $3$</p><p><p>D&eacute;terminer les 3 angles (en valeur absolue et en degr&eacute;) pour chaque sommet du triangle :</p><p><p>(BAC) : $4$</p><p><p>(ABC) : $5$</p><p><p>(ACB) : $6$</p><p><p>En d&eacute;duire la nature du triangle (ABC) :&nbsp;$7$</p><p>
A4: idnumber_trian | B4: =TEXT(NOW(),"aammjj-hhmmss.00") -> 210710-210621.92 | C4: =CONCATENATE(" <name><text>", titre_trian, "</text></name>") -> <name><text>Comp_Trian_trian</text></name> | E4: V3._trian | F4: 1 | G4: 4 | H4: 0 | I4: -4 | J4: -1 | K4: R2 | L4: B | M4: =COMPLEX(V3._trian,V4._trian) -> -4-i | N4: ZAC | O4: =IMSUB(M5,M3) -> 1-5i | P4: =IMABS(O4) -> 5.099019514 | Q4: CA,CB | R4: =IMDIV(IMSUB(M4,M5),IMSUB(M3,M5)) -> 0.423076923076923+1.11538461538462i | S4: =ABS(180*IMARGUMENT(R4)/PI()) -> 69.22774532 | U4: B | V4: =V3._trian -> -4 | W4: =V4._trian -> -1 | X4: B
A5: points_trian | B5: 1 | C5: <questiontext format="html"> | E5: V4._trian | F5: 1 | G5: 4 | H5: 0 | I5: -1 | J5: -1 | K5: Im2 | L5: C | M5: =COMPLEX(V5._trian,V6._trian) -> 2-2i | N5: ZBC | O5: =IMSUB(M5,M4) -> 6-i | P5: 6.08276253 | Q5: BA, BC | R5: =IMDIV(IMSUB(M3,M4),IMSUB(M5,M4)) -> 0.702702702702703+0.783783783783784i | S5: 48.12213046 | U5: C | V5: =V5._trian -> +2 | W5: =V6._trian -> -2 | X5: C
A6: tolérance_trian | B6: 0.05 | C6: =CONCATENATE(" <text><![CDATA[<p>", question_trian, "</p>]]></text>") -> <text><![CDATA[<p> <p>Soit z<sub>A</sub>=+1+3<strong> i </strong> et z<sub>B</sub>=-4-1<strong> i </strong> et z<sub>C</sub>&nbsp;=+2-2<strong> i </strong>trois nombres complexes affixes des points A, B, C.</p><p><p>D&eacute;terminer les 3 longueurs dans le plan complexe:&nbsp;</p><p><p>AB ={1:NUMERICAL:=6.40E+00:3.20E-01}</p><p><p>AC= {1:NUMERICAL:=5.10E+00:2.55E-01}</p><p><p>BC = {1:NUMERICAL:=6.08E+00:3.04E-01}</p><p><p>D&eacute;terminer les 3 angles (en valeur absolue et en degr&eacute;) pour chaque sommet du triangle :</p><p><p>(BAC) : {1:NUMERICAL:=6.27E+01:3.13E+00}</p><p><p>(ABC): {1:NUMERICAL:=6.92E+01:3.46E+00}</p><p><p>(ACB) : {1:NUMERICAL:=4.81E+01:2.41E+00}</p><p><p>En d&eacute;duire la nature du triangle (ABC) :&nbsp;{1:MULTICHOICE:%0%isoc&egrave;le~%0%&eacute;quilat&eacute;ral~%0%rectangle~%100%quelconque}</p><p>FAUXVRAI</p>]]></text> | E6: V5._trian | F6: 1 | G6: 4 | H6: 0 | I6: +2 | J6: 1 | K6: R3 | S6: =SUM(S3:S5) -> 180 | V6: =V3 -> +1 | W6: =W3 -> +3
A7: penalité_trian | B7: 0.1 | C7: </questiontext> | E7: V6._trian | F7: 1 | G7: 5 | H7: 0 | I7: -2 | J7: -1 | K7: Im3
A8: feedback_trian | B8: _ | C8: =CONCATENATE(" <defaultgrade>",points_trian,"</defaultgrade><generalfeedback><text>",feedback_trian,"</text></generalfeedback><penalty>",penalty_trian,"</penalty><hidden>0</hidden>)") -> <defaultgrade>1</defaultgrade><generalfeedback><text>_</text></generalfeedback><penalty>0.1</penalty><hidden>0</hidden>)
A9: Cellule vides_trian | B9: =COUNTBLANK(B1:B8) -> 0 | C9: =CONCATENATE(" <idnumber>",idnumber_trian,"</idnumber><tags><tag><text>",Tag_trian,"</text></tag></tags>") -> <idnumber>210710-210621.92</idnumber><tags><tag><text>Comp_Trian_trian</text></tag></tags> | F9: Cible_trian | G9: Toler_trian | H9: PointsQuestion_trian | O9: nombre | P9: =ISNUMBER(P5*P4*P3*S3*S4*S5) -> TRUE
A10: question format HTML_trian | B10: =CONCATENATE(" ",B19,B20,B21,B22,O23,O24) -> <p>Soit z<sub>A</sub>=+1+3<strong> i </strong> et z<sub>B</sub>=-4-1<strong> i </strong> et z<sub>C</sub>&nbsp;=+2-2<strong> i </strong>trois nombres complexes affixes des points A, B, C.</p><p><p>D&eacute;terminer les 3 longueurs dans le plan complexe:&nbsp;</p><p><p>AB ={1:NUMERICAL:=6.40E+00:3.20E-01}</p><p><p>AC= {1:NUMERICAL:=5.10E+00:2.55E-01}</p><p><p>BC = {1:NUMERICAL:=6.08E+00:3.04E-01}</p><p><p>D&eacute;terminer les 3 angles (en valeur absolue et en degr&eacute;) pour chaque sommet du triangle :</p><p><p>(BAC) : {1:NUMERICAL:=6.27E+01:3.13E+00}</p><p><p>(ABC): {1:NUMERICAL:=6.92E+01:3.46E+00}</p><p><p>(ACB) : {1:NUMERICAL:=4.81E+01:2.41E+00}</p><p><p>En d&eacute;duire la nature du triangle (ABC) :&nbsp;{1:MULTICHOICE:%0%isoc&egrave;le~%0%&eacute;quilat&eacute;ral~%0%rectangle~%100%quelconque}</p><p>FAUXVRAI | C10: </question> | E10: R1.L1_trian | F10: =P3 -> 6.403124237 | G10: =tolerance_trian*ValMini_trian -> 0.3201562119 | H10: 1 | I10: =CONCATENATE("{",PointsQuestion_trian,":NUMERICAL:=",TEXT(Cible_trian,"0.00E+00"),":",TEXT(ABS(Tolere_trian),"0.00E+00"),"}") -> {1:NUMERICAL:=6.40E+00:3.20E-01} | J10: AB | O10: non nul | P10: =IF(P3*P4*P5*S3*S4*S5=0,FALSE,TRUE) -> TRUE
A11: Repere Var Rep | B11: _trian | E11: R2.L2_trian | F11: =P4 -> 5.099019514 | G11: 0.2549509757 | H11: 1 | I11: {1:NUMERICAL:=5.10E+00:2.55E-01} | J11: AC | N11: =IF(P11,"%100%","%0%") -> %0% | O11: isoc&egrave;le | P11: =IF(OR(P3=P4,P3=P5,P4=P5),TRUE,FALSE) -> FALSE | T11: L'angle orienté est égal à l'argument du rapport .
A12: HTML File | B12: =CONCATENATE(categorie_trian,"_HTML.txt") -> Comp_Trian_HTML.txt | E12: R3.L3_trian | F12: =P5 -> 6.08276253 | G12: 0.3041381265 | H12: 1 | I12: {1:NUMERICAL:=6.08E+00:3.04E-01} | J12: BC | N12: =IF(P12,"~%100%","~%0%") -> ~%0% | O12: &eacute;quilat&eacute;ral | P12: =IF(AND(P5=P4,P4=P3),TRUE,FALSE) -> FALSE
A13: Valide ? | B13: =ISLOGICAL(P15) -> TRUE | D13: =IF(NOT(P17),IF(P16,TRUE,FALSE),FALSE) -> FALSE | E13: R4.A1_trian | F13: =S3 -> 62.65012422 | G13: 3.132506211 | H13: 1 | I13: {1:NUMERICAL:=6.27E+01:3.13E+00} | J13: AB,AC | N13: =IF(P13,"~%100%","~%0%") -> ~%0% | O13: rectangle | P13: =IF(OR(S3=90,S4=90,S5=90),TRUE,FALSE) -> FALSE
A14: https://html-online.com/editor/ | E14: R5.A2_trian | F14: =S4 -> 69.22774532 | G14: 3.461387266 | H14: 1 | I14: {1:NUMERICAL:=6.92E+01:3.46E+00} | J14: AB,AC | N14: =IF(P14,"~%100%","~%0%") -> ~%100% | O14: quelconque | P14: =IF(AND(P9,P10,NOT(P11),NOT(P12),NOT(P13)),TRUE,FALSE) -> TRUE | W14: x | X14: y
C15: 8 | E15: R6.A3_trian | F15: =S5 -> 48.12213046 | G15: 2.406106523 | H15: 1 | I15: {1:NUMERICAL:=4.81E+01:2.41E+00} | J15: BA,BC | O15: Valide | P15: =IF(AND(P9,P10),TRUE,FALSE) -> TRUE | W15: =V3-1+1 -> 1 | X15: 3
A16: Var : | B16: # | C16: 6 | E16: R7.Nature_trian | F16: =CONCATENATE(N11,O11,N12,O12,N13,O13,N14,O14) -> %0%isoc&egrave;le~%0%&eacute;quilat&eacute;ral~%0%rectangle~%100%quelconque | H16: 1 | I16: =CONCATENATE("{",PointsQuestion_trian,":MULTICHOICE:",F16,"}") -> {1:MULTICHOICE:%0%isoc&egrave;le~%0%&eacute;quilat&eacute;ral~%0%rectangle~%100%quelconque} | O16: valide et non quelconque | P16: =IF(AND(P15,NOT(P14)),TRUE,FALSE) -> FALSE | W16: -4 | X16: -1
A17: Res : | B17: $ | C17: 7 | P17: =ISERROR(P16) -> FALSE | W17: 2 | X17: -2
W18: 1 | X18: 3
B19: =CONCATENATE("<p>Soit z<sub>A</sub>=",V1._trian,V2._trian,"<strong> i </strong> et z<sub>B</sub>=",V3._trian,V4._trian,"<strong> i </strong> et z<sub>C</sub>&nbsp;=",V5._trian,V6._trian,"<strong> i </strong>trois nombres complexes affixes des points A, B, C.</p><p><p>D&eacute;terminer les 3 longueurs dans le plan complexe") -> <p>Soit z<sub>A</sub>=+1+3<strong> i </strong> et z<sub>B</sub>=-4-1<strong> i </strong> et z<sub>C</sub>&nbsp;=+2-2<strong> i </strong>trois nombres complexes affixes des points A, B, C.</p><p><p>D&eacute;terminer les 3 longueurs dans le plan complexe | C19: <p>Soit z<sub>A</sub>=#1#+#2#i et z<sub>B</sub>=#3#+#4#i et z<sub>C</sub>&nbsp;=#5#+#6#i trois nombres complexes affixes des points A, B, C.</p>
B20: =CONCATENATE(":&nbsp;</p><p><p>AB =",R1.L1_trian,"</p><p><p>AC= ",R2.L2_trian,"</p><p><p>BC = ",R3.L3_trian,"</p><p><p>D&eacute;terminer les 3 angles (en valeur absolue et en degr&eacute;) pour chaque sommet du triangle :</p><p><p>(BAC) : ",R4.A1_trian,"</p><p><p>(ABC)") -> :&nbsp;</p><p><p>AB ={1:NUMERICAL:=6.40E+00:3.20E-01}</p><p><p>AC= {1:NUMERICAL:=5.10E+00:2.55E-01}</p><p><p>BC = {1:NUMERICAL:=6.08E+00:3.04E-01}</p><p><p>D&eacute;terminer les 3 angles (en valeur absolue et en degr&eacute;) pour chaque sommet du triangle :</p><p><p>(BAC) : {1:NUMERICAL:=6.27E+01:3.13E+00}</p><p><p>(ABC) | C20: <p>D&eacute;terminer les 3 longueurs dans le plan complexe :&nbsp;</p>
B21: =CONCATENATE(": ",R5.A2_trian,"</p><p><p>(ACB) : ",R6.A3_trian,"</p><p><p>En d&eacute;duire la nature du triangle (ABC) :&nbsp;",R7.Nature_trian,"</p><p>") -> : {1:NUMERICAL:=6.92E+01:3.46E+00}</p><p><p>(ACB) : {1:NUMERICAL:=4.81E+01:2.41E+00}</p><p><p>En d&eacute;duire la nature du triangle (ABC) :&nbsp;{1:MULTICHOICE:%0%isoc&egrave;le~%0%&eacute;quilat&eacute;ral~%0%rectangle~%100%quelconque}</p><p> | C21: <p>AB =$1$</p>
C22: <p>AC= $2$</p>
C23: <p>BC = $3$</p> | N23: Pas de quelconque | O23: =IF(NOT(P17),IF(P16,TRUE,FALSE),FALSE) -> FALSE
C24: <p>D&eacute;terminer les 3 angles (en valeur absolue et en degr&eacute;) pour chaque sommet du triangle :</p> | N24: Tous | O24: =IF(NOT(P17),IF(P15,TRUE,FALSE),FALSE) -> TRUE
C25: <p>(BAC) : $4$</p> | I25: {1:MULTICHOICE:%100%answer1#feedback1~%0%answer2#feedback2}
C26: <p>(ABC) : $5$</p>
C27: <p>(ACB) : $6$</p>
C28: <p>En d&eacute;duire la nature du triangle (ABC) :&nbsp;$7$</p>
C41: <p>Soit x=",V1._aib,"+",V2._aib," <strong>i</strong> et&nbsp;y=",V2._aib,"+",V3._aib,"<strong>i</strong> deux nombres complexes. Calculer la somme x+y=",R1._aib,"+",R2._aib," <strong>i</strong> et le produit :&nbsp;x*y=",R3._aib,"+",R4._aib," <strong>i</strong></p><p>

Sheet Comp_Polyno
A1: catégorie_Racine | B1: Comp_Polyno | C1: =CONCATENATE(" <!-- question XLQ ", titre_Racine, "-->") -> <!-- question XLQ Comp_Polyno_Racine--> | F1: Valeur Mini_Racine | G1: Valeur Maxi_Racine | H1: Sig. Digit_Racine | I1: Val Choix_Racine | L1: Az2+Bz+C=0
B2: Comp_Polyno_Racine | C2: =CONCATENATE(" <question type=",CHAR(34),"category",CHAR(34),"><category><text>", categorie_Racine,"</text></category></question>)") -> <question type="category"><category><text>Comp_Polyno</text></category></question>) | E2: V1._Racine | F2: 1 | G2: 4 | H2: 0 | I2: =TEXT(J2*RANDBETWEEN(ValMini_Racine*10^-SigDig_Racine, ValMaxi_Racine*10^-SigDig_Racine)/10^-SigDig_Racine,"+##;-##;0") -> -3 | J2: =IF(RAND()>0.5,1,-1) -> -1
A3: Tag_Racine | B3: Comp_Polyno_Racine | C3: <question type="cloze"> | E3: V2._Racine | F3: 1 | G3: 4 | H3: 0 | I3: -4 | J3: =IF(RAND()>0.5,1,-1) -> -1 | L3: A | M3: =COMPLEX(V1._Racine,V2._Racine) -> -3-4i | N3: B2 | O3: =IMPRODUCT(M4,M4) -> -8-6i | Q3: R1 | R3: =IMDIV(IMSUM(M7,O6),IMPRODUCT(2,M3)) -> -0.251604790073086+0.93932517604902i | CA3: <p>Soit A=#1#+#2#i et B=#3#+#4#i et C=#5#+#6#i trois nombres complexes. On souhaite trouver les racine de l'&eacute;quation Az2+Bz+C.&nbsp;</p><p><p>Calculez les d&eacute;terminant :</p><p><p>&Delta; = $5$ + $6$i</p><p><p>D&eacute;terminer les deux racines :</p><p><p>Z1 = $1$ + $2$i</p><p><p>Z2 = $3$ + $4$i</p><p><p>&nbsp;</p><p><p>&nbsp;</p><p>
A4: idnumber_Racine | B4: =TEXT(NOW(),"aammjj-hhmmss.00") -> 210710-210621.92 | C4: =CONCATENATE(" <name><text>", titre_Racine, "</text></name>") -> <name><text>Comp_Polyno_Racine</text></name> | E4: V3._Racine | F4: 1 | G4: 4 | H4: 0 | I4: -1 | J4: -1 | L4: B | M4: =COMPLEX(V3._Racine,V4._Racine) -> -1+3i | N4: -4ac | O4: =IMPRODUCT(-4,M3,M5) -> 72-4i | Q4: R2 | R4: =IMDIV(IMSUB(M7,O6),IMPRODUCT(2,M3)) -> 0.611604790073086-0.41932517604902i
A5: points_Racine | B5: 1 | C5: <questiontext format="html"> | E5: V4._Racine | F5: 1 | G5: 4 | H5: 0 | I5: +3 | J5: 1 | L5: C | M5: =COMPLEX(V5._Racine,V6._Racine) -> 2-3i | N5: Delta | O5: =IMSUM(O3,O4) -> 64-10i
A6: tolérance_Racine | B6: 0.05 | C6: =CONCATENATE(" <text><![CDATA[<p>", question_Racine, "</p>]]></text>") -> <text><![CDATA[<p> <p>Soit A=-3-4<strong>i</strong>et B=-1+3<strong> i </strong>et C=+2-3<strong> i </strong>trois nombres complexes. On souhaite trouver les racine de l'&eacute;quation Az2+Bz+C.&nbsp;</p><p><p>Calculez le discriminant :</p><p><p>&Delta; ={1:NUMERICAL:=6.40E+01:3.20E+00} + {1:NUMERICAL:=-1.00E+01:5.00E-01}<strong> i </strong></p><p><p>D&eacute;terminer les deux racines :</p><p><p>Z1 = {1:NUMERICAL:=-2.52E-01:1.26E-02} + {1:NUMERICAL:=9.39E-01:4.70E-02}<strong> i </strong></p><p><p>Z2 = {1:NUMERICAL:=6.12E-01:3.06E-02} + {1:NUMERICAL:=-4.19E-01:2.10E-02}<strong> i </strong></p><p><p>&nbsp;</p><p><p>&nbsp;</p><p></p>]]></text> | E6: V5._Racine | F6: 1 | G6: 4 | H6: 0 | I6: +2 | J6: 1 | N6: racine(Delta) | O6: =IMSQRT(O5) -> 8.02423014883068-0.623112735709433i
A7: penalité_Racine | B7: 0.1 | C7: </questiontext> | E7: V6._Racine | F7: 1 | G7: 5 | H7: 0 | I7: -3 | J7: -1 | L7: -B | M7: =IMSUB(0,M4) -> 1-3i
A8: feedback_Racine | B8: _ | C8: =CONCATENATE(" <defaultgrade>",points_Racine,"</defaultgrade><generalfeedback><text>",feedback_Racine,"</text></generalfeedback><penalty>",penalty_Racine,"</penalty><hidden>0</hidden>)") -> <defaultgrade>1</defaultgrade><generalfeedback><text>_</text></generalfeedback><penalty>0.1</penalty><hidden>0</hidden>)
A9: Cellule vides_Racine | B9: =COUNTBLANK(B1:B8) -> 0 | C9: =CONCATENATE(" <idnumber>",idnumber_Racine,"</idnumber><tags><tag><text>",Tag_Racine,"</text></tag></tags>") -> <idnumber>210710-210621.92</idnumber><tags><tag><text>Comp_Polyno_Racine</text></tag></tags> | F9: Cible_Racine | G9: Toler_Racine | H9: PointsQuestion_Racine
A10: question format HTML_Racine | B10: =CONCATENATE(" ",B19,B20,B21,B22) -> <p>Soit A=-3-4<strong>i</strong>et B=-1+3<strong> i </strong>et C=+2-3<strong> i </strong>trois nombres complexes. On souhaite trouver les racine de l'&eacute;quation Az2+Bz+C.&nbsp;</p><p><p>Calculez le discriminant :</p><p><p>&Delta; ={1:NUMERICAL:=6.40E+01:3.20E+00} + {1:NUMERICAL:=-1.00E+01:5.00E-01}<strong> i </strong></p><p><p>D&eacute;terminer les deux racines :</p><p><p>Z1 = {1:NUMERICAL:=-2.52E-01:1.26E-02} + {1:NUMERICAL:=9.39E-01:4.70E-02}<strong> i </strong></p><p><p>Z2 = {1:NUMERICAL:=6.12E-01:3.06E-02} + {1:NUMERICAL:=-4.19E-01:2.10E-02}<strong> i </strong></p><p><p>&nbsp;</p><p><p>&nbsp;</p><p> | C10: </question> | E10: R1._Racine | F10: =IMREAL(R3) -> -0.2516047901 | G10: =tolerance_Racine*ValMini_Racine -> -0.0125802395 | H10: 1 | I10: =CONCATENATE("{",PointsQuestion_Racine,":NUMERICAL:=",TEXT(Cible_Racine,"0.00E+00"),":",TEXT(ABS(Tolere_Racine),"0.00E+00"),"}") -> {1:NUMERICAL:=-2.52E-01:1.26E-02}
A11: Repere Var Rep | B11: _Racine | E11: R2._Racine | F11: =IMAGINARY(R3) -> 0.939325176 | G11: 0.0469662588 | H11: 1 | I11: {1:NUMERICAL:=9.39E-01:4.70E-02}
A12: HTML File | B12: =CONCATENATE(categorie_Racine,"_HTML.txt") -> Comp_Polyno_HTML.txt | E12: R3._Racine | F12: =IMREAL(R4) -> 0.6116047901 | G12: 0.0305802395 | H12: 1 | I12: {1:NUMERICAL:=6.12E-01:3.06E-02} | N12: ax2 | O12: bx | P12: ax2+bc+c
A13: Valide ? | B13: =ISNUMBER(F15) -> TRUE | E13: R4._Racine | F13: =IMAGINARY(R4) -> -0.419325176 | G13: -0.0209662588 | H13: 1 | I13: {1:NUMERICAL:=-4.19E-01:2.10E-02} | M13: Vérification | N13: =IMPRODUCT(M3,R3,R3) -> 0.566370738073977+4.69413954626827i | O13: =IMPRODUCT(M4,R3) -> -2.56637073807397-1.69413954626828i | P13: =IMSUM(N13,O13,M5) -> 7.105427357601E-15-1.06581410364015E-14i
A14: https://html-online.com/editor/ | E14: R5._Delta_R | F14: =IMREAL(O5) -> 64 | G14: 3.2 | H14: 1 | I14: {1:NUMERICAL:=6.40E+01:3.20E+00} | N14: =IMPRODUCT(M3,R4,R4) -> -2.64637073807397+0.745860453731716i | O14: =IMPRODUCT(M4,R4) -> 0.646370738073974+2.25413954626828i | P14: =IMSUM(N14,O14,M5) -> 3.99680288865056E-15-3.99680288865056E-15i
C15: 8 | E15: R6._Delta_im | F15: =IMAGINARY(O5) -> -10 | G15: -0.5 | H15: 1 | I15: {1:NUMERICAL:=-1.00E+01:5.00E-01}
A16: Var : | B16: # | C16: 6
A17: Res : | B17: $ | C17: 6
B19: =CONCATENATE("<p>Soit A=",V1._Racine,V2._Racine,"<strong>i</strong>et B=",V3._Racine,V4._Racine,"<strong> i </strong>et C=",V5._Racine,V6._Racine,"<strong> i </strong>trois nombres complexes. On souhaite trouver les racine de l'&eacute;quation Az2+Bz+C.&nbsp;</p><p><p>Calculez le discriminant :</p><p><p>&Delta; =") -> <p>Soit A=-3-4<strong>i</strong>et B=-1+3<strong> i </strong>et C=+2-3<strong> i </strong>trois nombres complexes. On souhaite trouver les racine de l'&eacute;quation Az2+Bz+C.&nbsp;</p><p><p>Calculez le discriminant :</p><p><p>&Delta; = | C19: <p>Soit A=#1#+#2#i et B=#3#+#4#i et C=#5#+#6#i trois nombres complexes. On souhaite trouver les racine de l'&eacute;quation Az2+Bz+C.&nbsp;</p>
B20: =CONCATENATE("",R5._Delta_R," + ",R6._Delta_im,"<strong> i </strong></p><p><p>D&eacute;terminer les deux racines :</p><p><p>Z1 = ",R1._Racine," + ",R2._Racine,"<strong> i </strong></p><p><p>Z2 = ",R3._Racine," + ",R4._Racine,"<strong> i </strong></p><p><p>&nbsp;</p><p><p>&nbsp;</p><p>") -> {1:NUMERICAL:=6.40E+01:3.20E+00} + {1:NUMERICAL:=-1.00E+01:5.00E-01}<strong> i </strong></p><p><p>D&eacute;terminer les deux racines :</p><p><p>Z1 = {1:NUMERICAL:=-2.52E-01:1.26E-02} + {1:NUMERICAL:=9.39E-01:4.70E-02}<strong> i </strong></p><p><p>Z2 = {1:NUMERICAL:=6.12E-01:3.06E-02} + {1:NUMERICAL:=-4.19E-01:2.10E-02}<strong> i </strong></p><p><p>&nbsp;</p><p><p>&nbsp;</p><p> | C20: <p>Calculez les d&eacute;terminant :</p>
B21: =CONCATENATE("") ->  | C21: <p>&Delta; = $5$ + $6$i</p>
B22: =CONCATENATE("") ->  | C22: <p>D&eacute;terminer les deux racines :</p>
C23: <p>Z1 = $1$ + $2$i</p> | O23: =IF(NOT(P17),IF(P16,TRUE,FALSE),FALSE) -> FALSE
C24: <p>Z2 = $3$ + $4$i</p>
C25: <p>&nbsp;</p>
C26: <p>&nbsp;</p>
C41: <p>Soit x=",V1._aib,"+",V2._aib," <strong>i</strong> et&nbsp;y=",V2._aib,"+",V3._aib,"<strong>i</strong> deux nombres complexes. Calculer la somme x+y=",R1._aib,"+",R2._aib," <strong>i</strong> et le produit :&nbsp;x*y=",R3._aib,"+",R4._aib," <strong>i</strong></p><p>
